Ref No,Fund Type,Dept,Cost Centre Description    ,Description    ,Creditor Name    ,GL Code Net Amount,Payment date        
2,Revenue,CAHD,Central - Commissioned Services,Permanent Residential,1 St Georges House,13333.52, 15-Dec-2020
3,Revenue,CAHD,Supporting People Programme,Grants to Voluntary Bodies,1625 Independent People,15167.00, 01-Dec-2020
4,Revenue,CAHD,Supporting People Programme,Grants to Voluntary Bodies,1625 Independent People,15167.00, 30-Dec-2020
5,Revenue,CAHD,CSC - Care Leavers Independent Living,Independent Living,16Pluscare Support Solutions,32627.40, 07-Dec-2020
6,Revenue,CAHD,South - Commissioned Services,Permanent Residential,2Nd Floor Building,5630.76, 15-Dec-2020
7,Revenue,CAHD,South - Commissioned Services,Permanent Residential,2Nd Floor Building,2806.12, 15-Dec-2020
8,Revenue,CAHD,Central - Commissioned Services,Other Small Contracts,3 Trees Community Support Ltd,5262.81, 01-Dec-2020
9,Revenue,CAHD,Central - Commissioned Services,Supported Living,3 Trees Community Support Ltd,5155.10, 01-Dec-2020
10,Revenue,CAHD,Central - Commissioned Services,Other Small Contracts,3 Trees Community Support Ltd,5261.28, 01-Dec-2020
11,Revenue,CAHD,Central - Commissioned Services,Supported Living,3 Trees Community Support Ltd,5157.96, 01-Dec-2020
12,Revenue,CAHD,Central - Commissioned Services,Other Small Contracts,3 Trees Community Support Ltd,5109.42, 01-Dec-2020
13,Revenue,CAHD,Central - Commissioned Services,Supported Living,3 Trees Community Support Ltd,5160.08, 01-Dec-2020
14,Revenue,CAHD,Central - Commissioned Services,Other Small Contracts,3 Trees Community Support Ltd,5263.82, 16-Dec-2020
15,Revenue,CAHD,Central - Commissioned Services,Supported Living,3 Trees Community Support Ltd,5167.18, 16-Dec-2020
16,Revenue,CAHD,Central - Commissioned Services,Other Small Contracts,3 Trees Community Support Ltd,5129.36, 15-Dec-2020
17,Revenue,CAHD,Central - Commissioned Services,Supported Living,3 Trees Community Support Ltd,5161.51, 15-Dec-2020
18,Revenue,CAHD,Central - Commissioned Services,Other Small Contracts,3 Trees Community Support Ltd,5259.32, 30-Dec-2020
19,Revenue,CAHD,Central - Commissioned Services,Supported Living,3 Trees Community Support Ltd,5170.04, 30-Dec-2020
20,Revenue,CAHD,South - Commissioned Services,Permanent Nursing,3Rd Floor  The Aspect,3593.88, 15-Dec-2020
21,Revenue,CAHD,North - Community based support,Permanent Nursing,3Rd Floor  The Aspect,3234.72, 15-Dec-2020
22,Revenue,CAHD,South - Commissioned Services,Permanent Nursing,3Rd Floor  The Aspect,2287.36, 15-Dec-2020
23,Revenue,CAHD,Central - Commissioned Services,Permanent Residential,5Th Floor Harlech Court,15254.92, 15-Dec-2020
24,Revenue,CAHD,18-25 Year Olds,Permanent Residential,5Th Floor Harlech Court,18219.32, 15-Dec-2020
25,Revenue,CAHD,South - Commissioned Services,Permanent Residential,5Th Floor Harlech Court,17000.48, 15-Dec-2020
26,Revenue,CAHD,South - Commissioned Services,Permanent Residential,5Th Floor Harlech Court,10627.92, 15-Dec-2020
27,Revenue,CAHD,S28A cases,Permanent Residential,5Th Floor Harlech Court,11122.76, 15-Dec-2020
28,Revenue,CAHD,South - Commissioned Services,Permanent Residential,5Th Floor Harlech Court,11665.12, 15-Dec-2020
29,Revenue,CAHD,Covid - ASC - Infection Control,Grants to Voluntary Bodies,5Th Floor Harlech Court,3832.73, 02-Dec-2020
30,Revenue,CAHD,North - Community based support,Permanent Residential,5Th Floor Harlech Court,12498.56, 15-Dec-2020
31,Revenue,CAHD,North - Community based support,Permanent Residential,5Th Floor Harlech Court,10537.24, 15-Dec-2020
32,Revenue,CAHD,North - Community based support,Permanent Residential,5Th Floor Harlech Court,9071.12, 15-Dec-2020
33,Revenue,CAHD,18-25 Year Olds,Day Care / Social Activities,A+bility Ltd,556.00, 22-Dec-2020
34,Revenue,CAHD,18-25 Year Olds,Day Care / Social Activities,A+bility Ltd,834.00, 22-Dec-2020
35,Revenue,CAHD,Early Years Inclusion Fund,Other Public Bodies,Abacus Pre-School,650.00, 11-Dec-2020
36,Revenue,CAHD,Early Years Inclusion Fund,Other Public Bodies,Abacus Pre-School,2000.00, 30-Dec-2020
37,Revenue,CAHD,Early Years Inclusion Fund,Other Public Bodies,Abacus Pre-School,650.00, 30-Dec-2020
38,Revenue,CAHD,Early Years Inclusion Fund,Other Public Bodies,Abbeywood Tots Day Nursery Ltd,3600.00, 16-Dec-2020
39,Revenue,CAHD,South - Commissioned Services,Permanent Nursing,Acacia House,2996.00, 15-Dec-2020
40,Revenue,CAHD,Jointly Funded H&SC Packages,Permanent Residential,Acorn Care Providers,2310.92, 15-Dec-2020
41,Revenue,CAHD,Section 117 Placements MH Younger,Permanent Residential,Acorn Care Providers,5481.28, 15-Dec-2020
42,Revenue,CAHD,North - S117,Permanent Residential,Acorn Care Providers,3978.00, 15-Dec-2020
43,Revenue,CAHD,Jointly Funded H&SC Packages,Permanent Residential,Acorn Care Providers,2142.00, 15-Dec-2020
44,Revenue,CAHD,MH Purchasing - Younger,Permanent Residential,Acorn Care Providers,6382.04, 15-Dec-2020
45,Revenue,CAHD,Jointly Funded H&SC Packages,Permanent Residential,Acorn Care Providers,3436.48, 15-Dec-2020
46,Revenue,CAHD,MH Purchasing - Younger,Permanent Residential,Acorn Care Providers,6266.88, 15-Dec-2020
47,Revenue,CAHD,Training Budget - Children`s Social Serv,Training Expenses,Acorn Health & Safety Limited,449.00, 16-Dec-2020
48,Revenue,CAHD,Training - Adult Services,Training Expenses,Acorn Health & Safety Limited,477.00, 17-Dec-2020
49,Revenue,CAHD,Training - Adult Services,Training Expenses,Acorn Health & Safety Limited,477.00, 17-Dec-2020
50,Revenue,CAHD,Training - Adult Services,Training Expenses,Acorn Health & Safety Limited,477.00, 30-Dec-2020
51,Revenue,CAHD,CSC - OT Equipment - Children,Daily Living Equipment,Action Assist Ltd,567.00, 30-Dec-2020
52,Revenue,CAHD,CSC - Agency Fostering,Foster Parent Allowances,Action for Children,3771.30, 18-Dec-2020
53,Revenue,CAHD,CSC - Agency Fostering,Foster Parent Allowances,Action for Children,3542.10, 18-Dec-2020
54,Revenue,CAHD,CSC - Agency Fostering,Foster Parent Allowances,Action for Children,3542.10, 18-Dec-2020
55,Revenue,CAHD,South - Commissioned Services,Permanent Nursing,Administration And Revenue Centre,2789.80, 15-Dec-2020
56,Revenue,CAHD,South Glos Users in South Glos Homes,Permanent Nursing,Administration And Revenue Centre,735.68, 15-Dec-2020
57,Revenue,CAHD,South - Commissioned Services,Permanent Nursing,Administration And Revenue Centre,2445.96, 15-Dec-2020
58,Revenue,CAHD,South - Commissioned Services,Permanent Nursing,Administration And Revenue Centre,2445.96, 15-Dec-2020
59,Revenue,CAHD,South Glos Users in South Glos Homes,Permanent Nursing,Administration And Revenue Centre,735.68, 15-Dec-2020
60,Revenue,CAHD,South - Commissioned Services,Permanent Residential,Administration And Revenue Centre,2511.80, 15-Dec-2020
61,Revenue,CAHD,South Glos Users in South Glos Homes,Permanent Nursing,Administration And Revenue Centre,735.68, 15-Dec-2020
62,Revenue,CAHD,South - Commissioned Services,Permanent Nursing,Administration And Revenue Centre,2949.60, 15-Dec-2020
63,Revenue,CAHD,South Glos Users in South Glos Homes,Permanent Nursing,Administration And Revenue Centre,735.68, 15-Dec-2020
64,Revenue,CAHD,South Glos Users in South Glos Homes,Permanent Nursing,Administration And Revenue Centre,735.68, 15-Dec-2020
65,Revenue,CAHD,South Glos Users in South Glos Homes,Permanent Nursing,Administration And Revenue Centre,735.68, 15-Dec-2020
66,Revenue,CAHD,South Glos Users in South Glos Homes,Permanent Nursing,Administration And Revenue Centre,735.68, 15-Dec-2020
67,Revenue,CAHD,South - Commissioned Services,Permanent Nursing,Administration And Revenue Centre,2949.60, 15-Dec-2020
68,Revenue,CAHD,South Glos Users in South Glos Homes,Permanent Nursing,Administration And Revenue Centre,735.68, 15-Dec-2020
69,Revenue,CAHD,South - Commissioned Services,Permanent Residential,Administration And Revenue Centre,3203.04, 15-Dec-2020
70,Revenue,CAHD,South - Commissioned Services,Permanent Residential,Administration And Revenue Centre,3000.00, 15-Dec-2020
71,Revenue,CAHD,South Glos Users in South Glos Homes,Permanent Nursing,Administration And Revenue Centre,735.68, 15-Dec-2020
72,Revenue,CAHD,South Glos Users in South Glos Homes,Permanent Nursing,Administration And Revenue Centre,735.68, 15-Dec-2020
73,Revenue,CAHD,South - Commissioned Services,Permanent Residential,Administration And Revenue Centre,3366.00, 15-Dec-2020
74,Revenue,CAHD,South - Commissioned Services,Permanent Nursing,Administration And Revenue Centre,2924.56, 15-Dec-2020
75,Revenue,CAHD,South - Commissioned Services,Permanent Residential,Administration And Revenue Centre,3200.00, 15-Dec-2020
76,Revenue,CAHD,North - Community based support,Respite Planned - Residential,Administration And Revenue Centre,6678.57, 15-Dec-2020
77,Revenue,CAHD,North - Community based support,Respite Planned - Residential,Administration And Revenue Centre,3400.00, 15-Dec-2020
78,Revenue,CAHD,North - Community based support,Respite Planned - Residential,Administration And Revenue Centre,728.57, 15-Dec-2020
79,Revenue,CAHD,South - Commissioned Services,Permanent Nursing,Administration And Revenue Centre,2511.80, 15-Dec-2020
80,Revenue,CAHD,South Glos Users in South Glos Homes,Permanent Nursing,Administration And Revenue Centre,735.68, 15-Dec-2020
81,Revenue,CAHD,South - Commissioned Services,Permanent Nursing,Administration And Revenue Centre,2445.96, 15-Dec-2020
82,Revenue,CAHD,South Glos Users in South Glos Homes,Permanent Nursing,Administration And Revenue Centre,735.68, 15-Dec-2020
83,Revenue,CAHD,South - Commissioned Services,Permanent Nursing,Administration And Revenue Centre,2445.96, 15-Dec-2020
84,Revenue,CAHD,South Glos Users in South Glos Homes,Permanent Nursing,Administration And Revenue Centre,735.68, 15-Dec-2020
85,Revenue,CAHD,South - Commissioned Services,Permanent Residential,Administration And Revenue Centre,3190.56, 15-Dec-2020
86,Revenue,CAHD,South - Commissioned Services,Permanent Nursing,Administration And Revenue Centre,2445.96, 15-Dec-2020
87,Revenue,CAHD,South Glos Users in South Glos Homes,Permanent Nursing,Administration And Revenue Centre,735.68, 15-Dec-2020
88,Revenue,CAHD,North - Community based support,Respite Planned - Nursing,Administration And Revenue Centre,3264.00, 15-Dec-2020
89,Revenue,CAHD,South - Commissioned Services,Permanent Residential,Administration And Revenue Centre,2949.60, 15-Dec-2020
90,Revenue,CAHD,South Glos Users in South Glos Homes,Permanent Nursing,Administration And Revenue Centre,735.68, 15-Dec-2020
91,Revenue,CAHD,South - Commissioned Services,Other Small Contracts,Advantedge Commercial Finance Limited,1010.88, 18-Dec-2020
92,Revenue,CAHD,South - Commissioned Services,Other Small Contracts,Advantedge Commercial Finance Limited,544.32, 18-Dec-2020
93,Revenue,CAHD,South - Commissioned Services,Other Small Contracts,Advantedge Commercial Finance Limited,918.54, 21-Dec-2020
94,Revenue,CAHD,South - Commissioned Services,Other Small Contracts,Advantedge Commercial Finance Limited,1302.48, 18-Dec-2020
95,Revenue,CAHD,South - Commissioned Services,Other Small Contracts,Advantedge Commercial Finance Limited,2449.44, 18-Dec-2020
96,Revenue,CAHD,South - Commissioned Services,Other Small Contracts,Advantedge Commercial Finance Limited,1360.80, 18-Dec-2020
97,Revenue,CAHD,South - Commissioned Services,Other Small Contracts,Advantedge Commercial Finance Limited,972.00, 15-Dec-2020
98,Revenue,CAHD,South - Commissioned Services,Other Small Contracts,Advantedge Commercial Finance Limited,845.64, 15-Dec-2020
99,Revenue,CAHD,South - Commissioned Services,Other Small Contracts,Advantedge Commercial Finance Limited,962.28, 23-Dec-2020
100,Revenue,CAHD,South - Commissioned Services,Other Small Contracts,Advantedge Commercial Finance Limited,816.48, 23-Dec-2020
101,Revenue,CAHD,South - Commissioned Services,Other Small Contracts,Advantedge Commercial Finance Limited,680.40, 23-Dec-2020
102,Revenue,CAHD,South - Commissioned Services,Other Small Contracts,Advantedge Commercial Finance Limited,2449.44, 23-Dec-2020
103,Revenue,CAHD,South - Commissioned Services,Other Small Contracts,Advantedge Commercial Finance Limited,972.00, 24-Dec-2020
104,Revenue,CAHD,South - Commissioned Services,Other Small Contracts,Advantedge Commercial Finance Limited,690.12, 30-Dec-2020
105,Revenue,CAHD,South - Commissioned Services,Other Small Contracts,Advantedge Commercial Finance Limited,544.32, 24-Dec-2020
106,Revenue,CAHD,South - Commissioned Services,Other Small Contracts,Advantedge Commercial Finance Limited,821.34, 24-Dec-2020
107,Revenue,CAHD,South - Commissioned Services,Other Small Contracts,Advantedge Commercial Finance Limited,1360.80, 24-Dec-2020
108,Revenue,CAHD,CSC - Vinney Green Secure Unit,R & M by Departments,Affordable Skip Hire Bristol Ltd,460.00, 08-Dec-2020
109,Revenue,CAHD,South - Commissioned Services,Day Care / Social Activities,Age Concern,634.08, 15-Dec-2020
110,Revenue,CAHD,Central - Commissioned Services,Day Care / Social Activities,Age Concern,546.72, 15-Dec-2020
111,Revenue,CAHD,Central - Commissioned Services,Day Care / Social Activities,Age Concern,546.72, 15-Dec-2020
112,Revenue,CAHD,Mental Health and Emotional Wellbeing,Grants to Voluntary Bodies,Age UK South Gloucestershire,13725.00, 30-Dec-2020
113,Revenue,CAHD,Covid 19 -Adult Social Care,Other Supplies & Services,Age UK South Gloucestershire,15750.00, 14-Dec-2020
114,Revenue,CAHD,South - Commissioned Services,Other Small Contracts,Agincare UK Limited,1622.88, 02-Dec-2020
115,Revenue,CAHD,Younger MH non-res purchasing,Other Small Contracts,Agincare UK Limited,154.56, 02-Dec-2020
116,Revenue,CAHD,South - Commissioned Services,Other Small Contracts,Agincare UK Limited,1564.92, 16-Dec-2020
117,Revenue,CAHD,Younger MH non-res purchasing,Other Small Contracts,Agincare UK Limited,154.56, 16-Dec-2020
118,Revenue,CAHD,South - Commissioned Services,Other Small Contracts,Agincare UK Limited,1313.76, 21-Dec-2020
119,Revenue,CAHD,Younger MH non-res purchasing,Other Small Contracts,Agincare UK Limited,154.56, 21-Dec-2020
120,Revenue,CAHD,South - Commissioned Services,Other Small Contracts,Agincare UK Limited,1487.64, 30-Dec-2020
121,Revenue,CAHD,Younger MH non-res purchasing,Other Small Contracts,Agincare UK Limited,101.43, 30-Dec-2020
122,Revenue,CAHD,Extra Care Housing,Private & Voluntary Home Care,Agincare UK Limited,24391.34, 01-Dec-2020
123,Revenue,CAHD,Extra Care Housing,Private & Voluntary Home Care,Agincare UK Limited,24391.34, 30-Dec-2020
124,Revenue,CAHD,Extra Care Housing,Private & Voluntary Home Care,Agincare UK Limited,11734.93, 01-Dec-2020
125,Revenue,CAHD,Extra Care Housing,Private & Voluntary Home Care,Agincare UK Limited,11734.93, 30-Dec-2020
126,Revenue,CAHD,Extra Care Housing,Private & Voluntary Home Care,Agincare UK Limited,29078.70, 04-Dec-2020
127,Revenue,CAHD,Extra Care Housing,Private & Voluntary Home Care,Agincare UK Limited,29078.70, 30-Dec-2020
128,Revenue,CAHD,Central - Commissioned Services,Permanent Residential,Alexander House,12155.16, 15-Dec-2020
129,Revenue,CAHD,Alexandra Way,Uniforms & Clothing,Alexandra,424.50, 24-Dec-2020
130,Revenue,CAHD,Alexandra Way,Uniforms & Clothing,Alexandra,424.50, 24-Dec-2020
131,Revenue,CAHD,CSC - Adoption Support Fund,Post Adoption,Individual,915.00, 23-Dec-2020
132,Revenue,CAHD,CSC - Adoption Support Fund,Post Adoption,Individual,566.00, 23-Dec-2020
133,Revenue,CAHD,CSC - Adoption Support Fund,Post Adoption,Individual,611.25, 23-Dec-2020
134,Revenue,CAHD,South - Commissioned Services,Other Small Contracts,AliMo Care Ltd,731.34, 08-Dec-2020
135,Revenue,CAHD,North - Community based support,Other Small Contracts,AliMo Care Ltd,129.06, 08-Dec-2020
136,Revenue,CAHD,South - Commissioned Services,Other Small Contracts,AliMo Care Ltd,717.00, 08-Dec-2020
137,Revenue,CAHD,North - Community based support,Other Small Contracts,AliMo Care Ltd,124.28, 08-Dec-2020
138,Revenue,CAHD,South - Commissioned Services,Other Small Contracts,AliMo Care Ltd,760.02, 21-Dec-2020
139,Revenue,CAHD,North - Community based support,Other Small Contracts,AliMo Care Ltd,124.28, 21-Dec-2020
140,Revenue,CAHD,South - Commissioned Services,Other Small Contracts,AliMo Care Ltd,779.14, 21-Dec-2020
141,Revenue,CAHD,North - Community based support,Other Small Contracts,AliMo Care Ltd,133.84, 21-Dec-2020
142,Revenue,CAHD,South - Commissioned Services,Other Small Contracts,AliMo Care Ltd,736.12, 21-Dec-2020
143,Revenue,CAHD,North - Community based support,Other Small Contracts,AliMo Care Ltd,86.04, 21-Dec-2020
144,Revenue,CAHD,North - Community based support,Permanent Nursing,Allambie Court,2320.44, 15-Dec-2020
145,Revenue,CAHD,Central - Commissioned Services,Permanent Residential,Alvony House Residential Care Home,3000.00, 15-Dec-2020
146,Revenue,CAHD,Mental Health and Emotional Wellbeing,Grants to Voluntary Bodies,Alzheimers Society,11142.75, 30-Dec-2020
147,Revenue,CAHD,CSC - Residential Placements,Permanent Residential,Amberleigh Care Ltd,16877.14, 10-Dec-2020
148,Revenue,CAHD,CSC - Residential Placements,Permanent Residential,Amberleigh Care Ltd,16877.14, 10-Dec-2020
149,Revenue,CAHD,CSC - Residential Placements,Permanent Residential,Amberleigh Care Ltd,17439.71, 29-Dec-2020
150,Revenue,CAHD,CSC - Residential Placements,Permanent Residential,Amberleigh Care Ltd,17439.71, 29-Dec-2020
151,Revenue,CAHD,CSC - Residential Placements,Permanent Residential,Ambito Care and Education,19920.87, 07-Dec-2020
152,Revenue,CAHD,CSC - Residential Placements,Permanent Residential,Ambito Care and Education,19920.87, 07-Dec-2020
153,Revenue,CAHD,CSC - Residential Placements,Permanent Residential,Ambito Care and Education,19930.88, 07-Dec-2020
154,Revenue,CAHD,CSC - Residential Placements,Permanent Residential,Ambito Care and Education,19920.87, 30-Dec-2020
155,Revenue,CAHD,CSC - Residential Placements,Permanent Residential,Ambito Care and Education,19930.88, 30-Dec-2020
156,Revenue,CAHD,A & CL - Engagement Provision 20/21,Computer Equipment - Purchase,Amey Computer Services,1041.00, 17-Dec-2020
157,Revenue,CAHD,CSC - Agency Fostering,Foster Parent Allowances,Amicus Foster Care Ltd,4721.61, 08-Dec-2020
158,Revenue,CAHD,CSC - Agency Fostering,Foster Parent Allowances,Amicus Foster Care Ltd,4641.72, 08-Dec-2020
159,Revenue,CAHD,CSC - Agency Fostering,Foster Parent Allowances,Amicus Foster Care Ltd,4879.00, 30-Dec-2020
160,Revenue,CAHD,CSC - Agency Fostering,Foster Parent Allowances,Amicus Foster Care Ltd,4796.44, 30-Dec-2020
161,Revenue,CAHD,Supporting People Programme,Grants to Voluntary Bodies,Anchor Hanover Group,1039.00, 01-Dec-2020
162,Revenue,CAHD,Supporting People Programme,Grants to Voluntary Bodies,Anchor Hanover Group,1039.00, 30-Dec-2020
163,Revenue,CAHD,Supporting People Programme,Grants to Voluntary Bodies,Anchor Hanover Group,847.00, 01-Dec-2020
164,Revenue,CAHD,Supporting People Programme,Grants to Voluntary Bodies,Anchor Hanover Group,847.00, 30-Dec-2020
165,Revenue,CAHD,CSC - Legal Fees,Legal Fees,Andrea Toller,2430.00, 09-Dec-2020
166,Revenue,CAHD,Covid - ASC - Infection Control,Grants to Voluntary Bodies,Angel Care Support Limited,3045.70, 24-Dec-2020
167,Revenue,CAHD,Community Support - North,Preventative Assistance,Apex Removal Group Ltd,650.00, 18-Dec-2020
168,Revenue,CAHD,CSC - Vinney Green Secure Unit,R & M by Departments,Apre Surfacing Limited,595.00, 30-Dec-2020
169,Revenue,CAHD,Younger MH non-res purchasing,Supported Living,Arch Care Rehab Services Ltd,718.96, 21-Dec-2020
170,Revenue,CAHD,Younger MH non-res purchasing,Supported Living,Archcare Rehab Limited,1957.40, 15-Dec-2020
171,Revenue,CAHD,North - Community based support,Permanent Nursing,Argentum Lodge,4000.00, 15-Dec-2020
172,Revenue,CAHD,South - Commissioned Services,Permanent Residential,Ash View House,5529.44, 15-Dec-2020
173,Revenue,CAHD,Jointly Funded H&SC Packages,Permanent Residential,Ash View House,1133.64, 15-Dec-2020
174,Revenue,CAHD,S117 Placements PCT,Permanent Residential,Ash View House,7707.44, 15-Dec-2020
175,Revenue,CAHD,North - Community based support,Permanent Residential,Ash View House,7099.52, 15-Dec-2020
176,Revenue,CAHD,North - Community based support,Permanent Residential,Ash View House,7120.00, 15-Dec-2020
177,Revenue,CAHD,Section 117 Placements MH Younger,Permanent Residential,Ash View House,5022.60, 15-Dec-2020
178,Revenue,CAHD,Jointly Funded H&SC Packages,Permanent Residential,Ash View House,2152.60, 15-Dec-2020
179,Revenue,CAHD,South - S117,Permanent Residential,Ash View House,6826.64, 15-Dec-2020
180,Revenue,CAHD,South - Commissioned Services,Permanent Residential,Ash View House,6747.84, 15-Dec-2020
181,Revenue,CAHD,Covid - ASC - Infection Control,Grants to Voluntary Bodies,Ash View House,5923.30, 02-Dec-2020
182,Revenue,CAHD,Drug and Alcohol Programme,Rent,Ashville Asset Management Limited,1213.70, 24-Dec-2020
183,Revenue,CAHD,Drug and Alcohol Programme,Rent,Ashville Asset Management Limited,4550.00, 24-Dec-2020
184,Revenue,CAHD,North - Community based support,Permanent Residential,Aspects 2 Limited,7231.88, 15-Dec-2020
185,Revenue,CAHD,Supporting People Programme,Grants to Voluntary Bodies,Aspects and Milestones Trust,3441.00, 01-Dec-2020
186,Revenue,CAHD,Supporting People Programme,Grants to Voluntary Bodies,Aspects and Milestones Trust,1725.00, 01-Dec-2020
187,Revenue,CAHD,Supporting People Programme,Grants to Voluntary Bodies,Aspects and Milestones Trust,3441.00, 30-Dec-2020
188,Revenue,CAHD,Supporting People Programme,Grants to Voluntary Bodies,Aspects and Milestones Trust,1725.00, 30-Dec-2020
189,Revenue,CAHD,Covid - ASC - Infection Control,Grants to Voluntary Bodies,Aspirations Support Bristol Limited,1450.30, 29-Dec-2020
190,Revenue,CAHD,CSC - Care Leavers Independent Living,Adults - Family Support,Aspirations Support Bristol Limited,15419.68, 23-Dec-2020
191,Revenue,CAHD,CSC - Legal Fees,Legal Fees,Aspire Social Work Services Limited,3275.60, 16-Dec-2020
192,Revenue,CAHD,South - Commissioned Services,Day Care / Social Activities,Ategi Limited,828.00, 29-Dec-2020
193,Revenue,CAHD,South - Commissioned Services,Adults - Family Support,Ategi Limited,1607.91, 04-Dec-2020
194,Revenue,CAHD,Shared Lives,Other Supplies & Services,Ategi Limited,53502.00, 30-Dec-2020
195,Revenue,CAHD,South - Commissioned Services,Adults - Family Support,Ategi Limited,17773.52, 09-Dec-2020
196,Revenue,CAHD,Independent Special Placements - Post 16,Other Private Contractors,Aurora Hedgeway School,18589.84, 24-Dec-2020
197,Revenue,CAHD,Independent Special Placements - Post 16,Other Private Contractors,Aurora Hedgeway School,17603.84, 29-Dec-2020
198,Revenue,CAHD,Independent Special Placements - Pre 16,Other Private Contractors,Aurora Hedgeway School,2006.72, 24-Dec-2020
199,Revenue,CAHD,Independent Special Placements - Pre 16,Other Private Contractors,Aurora Hedgeway School,15457.42, 24-Dec-2020
200,Revenue,CAHD,Independent Special Placements - Pre 16,Other Private Contractors,Aurora Hedgeway School,24091.00, 24-Dec-2020
201,Revenue,CAHD,Independent Special Placements - Pre 16,Other Private Contractors,Aurora Hedgeway School,26341.78, 24-Dec-2020
202,Revenue,CAHD,Independent Special Placements - Pre 16,Other Private Contractors,Aurora Hedgeway School,15457.42, 23-Dec-2020
203,Revenue,CAHD,Independent Special Placements - Post 16,Other Private Contractors,Aurora Hedgeway School,17258.67, 24-Dec-2020
204,Revenue,CAHD,Independent Special Placements - Pre 16,Other Private Contractors,Aurora Hedgeway School,21367.64, 23-Dec-2020
205,Revenue,CAHD,Independent Special Placements - Pre 16,Other Private Contractors,Aurora Hedgeway School,15457.42, 24-Dec-2020
206,Revenue,CAHD,Independent Special Placements - Post 16,Other Private Contractors,Aurora Hedgeway School,18589.84, 24-Dec-2020
207,Revenue,CAHD,Independent Special Placements - Pre 16,Other Private Contractors,Aurora Hedgeway School,15457.42, 23-Dec-2020
208,Revenue,CAHD,Independent Special Placements - Pre 16,Other Private Contractors,Aurora Hedgeway School,15457.42, 23-Dec-2020
209,Revenue,CAHD,Independent Special Placements - Pre 16,Other Private Contractors,Aurora Hedgeway School,15457.42, 23-Dec-2020
210,Revenue,CAHD,Independent Special Placements - Pre 16,Other Private Contractors,Aurora Hedgeway School,17603.84, 23-Dec-2020
211,Revenue,CAHD,Independent Special Placements - Post 16,Other Private Contractors,Aurora Hedgeway School,17603.84, 24-Dec-2020
212,Revenue,CAHD,Independent Special Placements - Pre 16,Other Private Contractors,Aurora Hedgeway School,15457.42, 23-Dec-2020
213,Revenue,CAHD,South - Commissioned Services,Permanent Residential,Autism Specialised Care Homes,6506.88, 15-Dec-2020
214,Revenue,CAHD,Younger Adult Mental Health,Health Services (Third Party Payments),Avon & Wiltshire Mental Health,1693.33, 14-Dec-2020
215,Revenue,CAHD,South - Commissioned Services,Permanent Nursing,Avon Lodge Care Centre,4341.36, 15-Dec-2020
216,Revenue,CAHD,South Glos Users in South Glos Homes,Permanent Nursing,Avon Lodge Care Centre,735.68, 15-Dec-2020
217,Revenue,CAHD,South Glos Users in South Glos Homes,Permanent Nursing,Avon Lodge Care Centre,735.68, 15-Dec-2020
218,Revenue,CAHD,South - Commissioned Services,Permanent Nursing,Avon Lodge Care Centre,4311.16, 15-Dec-2020
219,Revenue,CAHD,South Glos Users in South Glos Homes,Permanent Nursing,Avon Lodge Care Centre,735.68, 15-Dec-2020
220,Revenue,CAHD,South Glos Users in South Glos Homes,Permanent Nursing,Avon Lodge Care Centre,735.68, 15-Dec-2020
221,Revenue,CAHD,South - Commissioned Services,Permanent Nursing,Avon Lodge Care Centre,4537.76, 15-Dec-2020
222,Revenue,CAHD,South Glos Users in South Glos Homes,Permanent Nursing,Avon Lodge Care Centre,735.68, 15-Dec-2020
223,Revenue,CAHD,Central - Commissioned Services,Permanent Nursing,Avon Lodge Care Centre,1077.79, 15-Dec-2020
224,Revenue,CAHD,South Glos Users in South Glos Homes,Permanent Nursing,Avon Lodge Care Centre,735.68, 15-Dec-2020
225,Revenue,CAHD,South - Commissioned Services,Respite Planned - Nursing,Avon Lodge Care Centre,1282.29, 15-Dec-2020
226,Revenue,CAHD,South Glos Users in South Glos Homes,Permanent Nursing,Avon Lodge Care Centre,735.68, 15-Dec-2020
227,Revenue,CAHD,South - Commissioned Services,Permanent Nursing,Avon Lodge Care Centre,3448.20, 15-Dec-2020
228,Revenue,CAHD,South Glos Users in South Glos Homes,Permanent Nursing,Avon Lodge Care Centre,735.68, 15-Dec-2020
229,Revenue,CAHD,South - Commissioned Services,Permanent Nursing,Avon Lodge Care Centre,4311.16, 15-Dec-2020
230,Revenue,CAHD,South Glos Users in South Glos Homes,Permanent Nursing,Avon Lodge Care Centre,735.68, 15-Dec-2020
231,Revenue,CAHD,South - Commissioned Services,Permanent Nursing,Avon Lodge Care Centre,4347.88, 15-Dec-2020
232,Revenue,CAHD,South Glos Users in South Glos Homes,Permanent Nursing,Avon Lodge Care Centre,735.68, 15-Dec-2020
233,Revenue,CAHD,South Glos Users in South Glos Homes,Permanent Nursing,Avon Lodge Care Centre,735.68, 15-Dec-2020
234,Revenue,CAHD,South Glos Users in South Glos Homes,Permanent Nursing,Avon Lodge Care Centre,735.68, 15-Dec-2020
235,Revenue,CAHD,South - Commissioned Services,Permanent Nursing,Avon Lodge Care Centre,4403.84, 15-Dec-2020
236,Revenue,CAHD,South Glos Users in South Glos Homes,Permanent Nursing,Avon Lodge Care Centre,735.68, 15-Dec-2020
237,Revenue,CAHD,South - Commissioned Services,Permanent Nursing,Avon Lodge Care Centre,4311.16, 15-Dec-2020
238,Revenue,CAHD,South Glos Users in South Glos Homes,Permanent Nursing,Avon Lodge Care Centre,735.68, 15-Dec-2020
239,Revenue,CAHD,South Glos Users in South Glos Homes,Permanent Nursing,Avon Lodge Care Centre,735.68, 15-Dec-2020
240,Revenue,CAHD,Central - Commissioned Services,Permanent Nursing,Avon Lodge Care Centre,3884.80, 15-Dec-2020
241,Revenue,CAHD,South Glos Users in South Glos Homes,Permanent Nursing,Avon Lodge Care Centre,735.68, 15-Dec-2020
242,Revenue,CAHD,South - Commissioned Services,Respite Emergency - Residential,Avon Lodge Care Centre,1530.00, 15-Dec-2020
243,Revenue,CAHD,South - Commissioned Services,Respite Emergency - Residential,Avon Lodge Care Centre,1092.86, 15-Dec-2020
244,Revenue,CAHD,South - Commissioned Services,Respite Emergency - Residential,Avon Lodge Care Centre,655.71, 15-Dec-2020
245,Revenue,CAHD,North - Community based support,Permanent Nursing,Avon Lodge Care Centre,3060.00, 15-Dec-2020
246,Revenue,CAHD,South - Commissioned Services,Respite Planned - Nursing,Avon Lodge Care Centre,4077.86, 15-Dec-2020
247,Revenue,CAHD,North - Community based support,Permanent Residential,Avon Lodge Care Centre,3460.00, 15-Dec-2020
248,Revenue,CAHD,South - Commissioned Services,Permanent Nursing,Avon Lodge Care Centre,4530.04, 15-Dec-2020
249,Revenue,CAHD,South Glos Users in South Glos Homes,Permanent Nursing,Avon Lodge Care Centre,735.68, 15-Dec-2020
250,Revenue,CAHD,South - S117,Permanent Nursing,Avon Lodge Care Centre,3885.48, 15-Dec-2020
251,Revenue,CAHD,South Glos Users in South Glos Homes,Permanent Nursing,Avon Lodge Care Centre,735.68, 15-Dec-2020
252,Revenue,CAHD,South - Commissioned Services,Respite Planned - Nursing,Avon Lodge Care Centre,3212.86, 15-Dec-2020
253,Revenue,CAHD,Covid 19- Spend on behalf of NHS,Respite Planned - Nursing,Avon Lodge Care Centre,3500.00, 15-Dec-2020
254,Revenue,CAHD,South - Commissioned Services,Permanent Residential,Avon Lodge Care Centre,3060.00, 15-Dec-2020
255,Revenue,CAHD,South Glos Users in South Glos Homes,Permanent Nursing,Avon Lodge Care Centre,735.68, 15-Dec-2020
256,Revenue,CAHD,South Glos Users in South Glos Homes,Permanent Nursing,Avon Lodge Care Centre,735.68, 15-Dec-2020
257,Revenue,CAHD,South - Commissioned Services,Permanent Residential,Avon Valley Care Home,3960.00, 15-Dec-2020
258,Revenue,CAHD,South - Commissioned Services,Permanent Residential,Avon Valley Care Home,4000.00, 15-Dec-2020
259,Revenue,CAHD,South - Commissioned Services,Permanent Residential,Avon Valley Care Home,3771.43, 15-Dec-2020
260,Revenue,CAHD,South - Commissioned Services,Permanent Residential,Avon Valley Care Home,3960.00, 15-Dec-2020
261,Revenue,CAHD,South - Commissioned Services,Permanent Residential,Avon Valley Care Home,4000.00, 15-Dec-2020
262,Revenue,CAHD,South - Commissioned Services,Permanent Residential,Avon Valley Care Home,4800.00, 15-Dec-2020
263,Revenue,CAHD,South - Commissioned Services,Permanent Residential,Avon Valley Care Home,3960.00, 15-Dec-2020
264,Revenue,CAHD,South - Commissioned Services,Permanent Residential,Avon Valley Care Home,4000.00, 15-Dec-2020
265,Revenue,CAHD,North - Community based support,Permanent Residential,Avon Valley Care Home,3600.00, 15-Dec-2020
266,Revenue,CAHD,Central - Commissioned Services,Permanent Residential,Avon Valley Care Home,4000.00, 15-Dec-2020
267,Revenue,CAHD,Covid - ASC - Infection Control,Grants to Voluntary Bodies,Avon Valley Care Home,27177.51, 10-Dec-2020
268,Revenue,CAHD,North - Community based support,Permanent Residential,Avonmere Care Home,4680.00, 15-Dec-2020
269,Revenue,CAHD,Covid 19- Spend on behalf of NHS,Respite Planned - Residential,Avonmere Care Home,4714.29, 15-Dec-2020
270,Revenue,CAHD,Covid 19- Spend on behalf of NHS,Respite Planned - Residential,Avonmere Care Home,1100.00, 15-Dec-2020
271,Revenue,CAHD,Covid 19- Spend on behalf of NHS,Respite Planned - Residential,Avonmere Care Home,785.71, 15-Dec-2020
272,Revenue,CAHD,Covid 19- Spend on behalf of NHS,Respite Planned - Residential,Avonmere Care Home,4400.00, 15-Dec-2020
273,Revenue,CAHD,North - Community based support,Respite Emergency - Residential,Avonmere Care Home,3510.00, 15-Dec-2020
274,Revenue,CAHD,North - Community based support,Permanent Residential,Avonmere Care Home,4386.80, 15-Dec-2020
275,Revenue,CAHD,North - Community based support,Permanent Residential,Avonmere Care Home,5420.00, 15-Dec-2020
276,Revenue,CAHD,North - Community based support,Permanent Residential,Avonmere Care Home,4892.00, 15-Dec-2020
277,Revenue,CAHD,Covid 19 -Adult Social Care,Respite Planned - Residential,Avonmere Care Home,4400.00, 15-Dec-2020
278,Revenue,CAHD,North - Community based support,Permanent Residential,Avonmere Care Home,4420.00, 15-Dec-2020
279,Revenue,CAHD,North - Community based support,Permanent Residential,Avonmere Care Home,4620.00, 15-Dec-2020
280,Revenue,CAHD,Covid 19- Spend on behalf of NHS,Respite Planned - Residential,Avonmere Care Home,4242.86, 15-Dec-2020
281,Revenue,CAHD,North - Community based support,Permanent Residential,Avonmere Care Home,4892.00, 15-Dec-2020
282,Revenue,CAHD,North - Community based support,Permanent Residential,Avonmere Care Home,4600.00, 15-Dec-2020
283,Revenue,CAHD,Covid 19- Spend on behalf of NHS,Respite Planned - Residential,Avonmere Care Home,5657.14, 15-Dec-2020
284,Revenue,CAHD,Covid 19- Spend on behalf of NHS,Respite Planned - Residential,Avonmere Care Home,4400.00, 15-Dec-2020
285,Revenue,CAHD,Covid 19- Spend on behalf of NHS,Respite Planned - Residential,Avonmere Care Home,4400.00, 15-Dec-2020
286,Revenue,CAHD,Covid 19- Spend on behalf of NHS,Respite Planned - Residential,Avonmere Care Home,8957.14, 15-Dec-2020
287,Revenue,CAHD,North - Community based support,Permanent Residential,Avonmere Care Home,4892.00, 15-Dec-2020
288,Revenue,CAHD,Covid 19- Spend on behalf of NHS,Respite Planned - Residential,Avonmere Care Home,1100.00, 15-Dec-2020
289,Revenue,CAHD,Covid 19- Spend on behalf of NHS,Respite Planned - Residential,Avonmere Care Home,4400.00, 15-Dec-2020
290,Revenue,CAHD,Covid 19- Spend on behalf of NHS,Respite Planned - Residential,Avonmere Care Home,4557.15, 15-Dec-2020
291,Revenue,CAHD,Covid 19- Spend on behalf of NHS,Respite Planned - Residential,Avonmere Care Home,1257.14, 15-Dec-2020
292,Revenue,CAHD,Covid - ASC - Infection Control,Grants to Voluntary Bodies,Avonmere Care Home,26480.65, 10-Dec-2020
293,Revenue,CAHD,Covid 19- Spend on behalf of NHS,Respite Planned - Residential,Badminton Place,3771.43, 15-Dec-2020
294,Revenue,CAHD,Covid 19- Spend on behalf of NHS,Respite Planned - Residential,Badminton Place,3428.57, 15-Dec-2020
295,Revenue,CAHD,Covid 19- Spend on behalf of NHS,Respite Planned - Nursing,Badminton Place,4457.14, 15-Dec-2020
296,Revenue,CAHD,Covid 19- Spend on behalf of NHS,Respite Planned - Nursing,Badminton Place,4457.14, 15-Dec-2020
297,Revenue,CAHD,Covid 19- Spend on behalf of NHS,Respite Planned - Nursing,Badminton Place,2742.86, 15-Dec-2020
298,Revenue,CAHD,North - Community based support,Respite Emergency - Residential,Badminton Place,3085.71, 15-Dec-2020
299,Revenue,CAHD,Covid 19- Spend on behalf of NHS,Respite Planned - Nursing,Badminton Place,4285.71, 15-Dec-2020
300,Revenue,CAHD,Covid 19- Spend on behalf of NHS,Respite Planned - Nursing,Badminton Place,2914.29, 15-Dec-2020
301,Revenue,CAHD,Covid 19- Spend on behalf of NHS,Respite Planned - Residential,Badminton Place,857.14, 15-Dec-2020
302,Revenue,CAHD,Covid 19- Spend on behalf of NHS,Respite Planned - Nursing,Badminton Place,4628.57, 15-Dec-2020
303,Revenue,CAHD,Covid - ASC - Infection Control,Grants to Voluntary Bodies,Badminton Place,25086.93, 29-Dec-2020
304,Revenue,CAHD,Covid 19- Spend on behalf of NHS,Respite Planned - Nursing,Badminton Place,70000.00, 22-Dec-2020
305,Revenue,CAHD,Pensions - Non DSG,Annual Pension,Bath & North East Somerset Council,105048.83, 03-Dec-2020
306,Revenue,CAHD,Pensions - Non DSG,Annual Pension,Bath & North East Somerset Council,105301.77, 30-Dec-2020
307,Revenue,CAHD,CSC - Adoption Support Fund,Post Adoption,Individual,805.00, 29-Dec-2020
308,Revenue,CAHD,CSC - Adoption Support Fund,Post Adoption,Individual,1365.00, 30-Dec-2020
309,Revenue,CAHD,CSC - Adoption Support Fund,Post Adoption,Individual,1575.00, 24-Dec-2020
310,Revenue,CAHD,South Glos Users in South Glos Homes,Permanent Nursing,Beaufort Grange Care Home,735.68, 15-Dec-2020
311,Revenue,CAHD,South Glos Users in South Glos Homes,Permanent Nursing,Beaufort Grange Care Home,735.68, 15-Dec-2020
312,Revenue,CAHD,South Glos Users in South Glos Homes,Permanent Nursing,Beaufort Grange Care Home,735.68, 15-Dec-2020
313,Revenue,CAHD,South Glos Users in South Glos Homes,Permanent Nursing,Beaufort Grange Care Home,735.68, 15-Dec-2020
314,Revenue,CAHD,South Glos Users in South Glos Homes,Permanent Nursing,Beaufort Grange Care Home,735.68, 15-Dec-2020
315,Revenue,CAHD,South Glos Users in South Glos Homes,Permanent Nursing,Beaufort Grange Care Home,735.68, 15-Dec-2020
316,Revenue,CAHD,South Glos Users in South Glos Homes,Permanent Nursing,Beaufort Grange Care Home,735.68, 15-Dec-2020
317,Revenue,CAHD,South Glos Users in South Glos Homes,Permanent Nursing,Beaufort Grange Care Home,735.68, 15-Dec-2020
318,Revenue,CAHD,North - S117,Permanent Nursing,Beaufort Grange Care Home,4877.04, 15-Dec-2020
319,Revenue,CAHD,South Glos Users in South Glos Homes,Permanent Nursing,Beaufort Grange Care Home,735.68, 15-Dec-2020
320,Revenue,CAHD,South Glos Users in South Glos Homes,Permanent Nursing,Beaufort Grange Care Home,735.68, 15-Dec-2020
321,Revenue,CAHD,South Glos Users in South Glos Homes,Permanent Nursing,Beaufort Grange Care Home,735.68, 15-Dec-2020
322,Revenue,CAHD,Central - Commissioned Services,Permanent Nursing,Beaufort Grange Care Home,58499.14, 15-Dec-2020
323,Revenue,CAHD,Central - Commissioned Services,Permanent Nursing,Beaufort Grange Care Home,11784.00, 15-Dec-2020
324,Revenue,CAHD,South Glos Users in South Glos Homes,Permanent Nursing,Beaufort Grange Care Home,735.68, 15-Dec-2020
325,Revenue,CAHD,South Glos Users in South Glos Homes,Permanent Nursing,Beaufort Grange Care Home,735.68, 15-Dec-2020
326,Revenue,CAHD,South Glos Users in South Glos Homes,Permanent Nursing,Beaufort Grange Care Home,735.68, 15-Dec-2020
327,Revenue,CAHD,South Glos Users in South Glos Homes,Permanent Nursing,Beaufort Grange Care Home,735.68, 15-Dec-2020
328,Revenue,CAHD,South Glos Users in South Glos Homes,Permanent Nursing,Beaufort Grange Care Home,735.68, 15-Dec-2020
329,Revenue,CAHD,South Glos Users in South Glos Homes,Permanent Nursing,Beaufort Grange Care Home,735.68, 15-Dec-2020
330,Revenue,CAHD,South Glos Users in South Glos Homes,Permanent Nursing,Beaufort Grange Care Home,735.68, 15-Dec-2020
331,Revenue,CAHD,South Glos Users in South Glos Homes,Permanent Nursing,Beaufort Grange Care Home,735.68, 15-Dec-2020
332,Revenue,CAHD,South Glos Users in South Glos Homes,Permanent Nursing,Beaufort Grange Care Home,735.68, 15-Dec-2020
333,Revenue,CAHD,South Glos Users in South Glos Homes,Permanent Nursing,Beaufort Grange Care Home,735.68, 15-Dec-2020
334,Revenue,CAHD,South Glos Users in South Glos Homes,Permanent Nursing,Beaufort Grange Care Home,735.68, 15-Dec-2020
335,Revenue,CAHD,South Glos Users in South Glos Homes,Permanent Nursing,Beaufort Grange Care Home,735.68, 15-Dec-2020
336,Revenue,CAHD,South Glos Users in South Glos Homes,Permanent Nursing,Beaufort Grange Care Home,735.68, 15-Dec-2020
337,Revenue,CAHD,South Glos Users in South Glos Homes,Permanent Nursing,Beaufort Grange Care Home,735.68, 15-Dec-2020
338,Revenue,CAHD,South Glos Users in South Glos Homes,Permanent Nursing,Beaufort Grange Care Home,735.68, 15-Dec-2020
339,Revenue,CAHD,Central - Commissioned Services,Permanent Nursing,Beaufort Grange Care Home,5500.00, 15-Dec-2020
340,Revenue,CAHD,South Glos Users in South Glos Homes,Permanent Nursing,Beaufort Grange Care Home,735.68, 15-Dec-2020
341,Revenue,CAHD,South Glos Users in South Glos Homes,Permanent Nursing,Beaufort Grange Care Home,735.68, 15-Dec-2020
342,Revenue,CAHD,South Glos Users in South Glos Homes,Permanent Nursing,Beaufort Grange Care Home,735.68, 15-Dec-2020
343,Revenue,CAHD,South Glos Users in South Glos Homes,Permanent Nursing,Beaufort Grange Care Home,735.68, 15-Dec-2020
344,Revenue,CAHD,South Glos Users in South Glos Homes,Permanent Nursing,Beaufort Grange Care Home,735.68, 15-Dec-2020
345,Revenue,CAHD,South Glos Users in South Glos Homes,Permanent Nursing,Beaufort Grange Care Home,735.68, 15-Dec-2020
346,Revenue,CAHD,South Glos Users in South Glos Homes,Permanent Nursing,Beaufort Grange Care Home,735.68, 15-Dec-2020
347,Revenue,CAHD,South Glos Users in South Glos Homes,Permanent Nursing,Beaufort Grange Care Home,735.68, 15-Dec-2020
348,Revenue,CAHD,South Glos Users in South Glos Homes,Permanent Nursing,Beaufort Grange Care Home,735.68, 15-Dec-2020
349,Revenue,CAHD,South Glos Users in South Glos Homes,Permanent Nursing,Beaufort Grange Care Home,735.68, 15-Dec-2020
350,Revenue,CAHD,South Glos Users in South Glos Homes,Permanent Nursing,Beaufort Grange Care Home,735.68, 15-Dec-2020
351,Revenue,CAHD,South Glos Users in South Glos Homes,Permanent Nursing,Beaufort Grange Care Home,735.68, 15-Dec-2020
352,Revenue,CAHD,South Glos Users in South Glos Homes,Permanent Nursing,Beaufort Grange Care Home,735.68, 15-Dec-2020
353,Revenue,CAHD,South Glos Users in South Glos Homes,Permanent Nursing,Beaufort Grange Care Home,735.68, 15-Dec-2020
354,Revenue,CAHD,South Glos Users in South Glos Homes,Permanent Nursing,Beaufort Grange Care Home,735.68, 15-Dec-2020
355,Revenue,CAHD,South Glos Users in South Glos Homes,Permanent Nursing,Beaufort Grange Care Home,735.68, 15-Dec-2020
356,Revenue,CAHD,South Glos Users in South Glos Homes,Permanent Nursing,Beaufort Grange Care Home,735.68, 15-Dec-2020
357,Revenue,CAHD,North - Community based support,Permanent Residential,Beaufort House,2600.56, 15-Dec-2020
358,Revenue,CAHD,Central - Commissioned Services,Permanent Residential,Beaufort House,2924.56, 15-Dec-2020
359,Revenue,CAHD,Central - Commissioned Services,Permanent Residential,Beaufort House,2831.12, 15-Dec-2020
360,Revenue,CAHD,North - Community based support,Permanent Residential,Beaufort House,2622.84, 15-Dec-2020
361,Revenue,CAHD,South - Commissioned Services,Permanent Residential,Beaufort House,2587.56, 15-Dec-2020
362,Revenue,CAHD,Central - Commissioned Services,Permanent Residential,Beaufort House,8485.71, 15-Dec-2020
363,Revenue,CAHD,Central - Commissioned Services,Permanent Residential,Beaufort House,514.29, 15-Dec-2020
364,Revenue,CAHD,Central - Commissioned Services,Fees & Charges Income - General,Beaufort House,828.50, 15-Dec-2020
365,Revenue,CAHD,Central - Commissioned Services,Permanent Residential,Beaufort House,4207.14, 15-Dec-2020
366,Revenue,CAHD,Central - Commissioned Services,Permanent Residential,Beaufort House,3800.00, 15-Dec-2020
367,Revenue,CAHD,Central - Commissioned Services,Permanent Residential,Beaufort House,3800.00, 15-Dec-2020
368,Revenue,CAHD,Central - Commissioned Services,Permanent Residential,Beaufort House,4342.86, 15-Dec-2020
369,Revenue,CAHD,Central - Commissioned Services,Fees & Charges Income - General,Beaufort House,659.19, 15-Dec-2020
370,Revenue,CAHD,Central - Commissioned Services,Fees & Charges Income - General,Beaufort House,819.29, 15-Dec-2020
371,Revenue,CAHD,North - Community based support,Permanent Residential,Beaufort House,19714.29, 15-Dec-2020
372,Revenue,CAHD,North - Community based support,Permanent Residential,Beaufort House,4000.00, 15-Dec-2020
373,Revenue,CAHD,North - Community based support,Permanent Residential,Beaufort House,2753.92, 15-Dec-2020
374,Revenue,CAHD,Central - Commissioned Services,Permanent Residential,Beaufort House,3600.00, 15-Dec-2020
375,Revenue,CAHD,Central - Commissioned Services,Permanent Residential,Beaufort House,2957.14, 15-Dec-2020
376,Revenue,CAHD,Central - Commissioned Services,Permanent Residential,Beaufort House,3200.00, 15-Dec-2020
377,Revenue,CAHD,Central - Commissioned Services,Permanent Residential,Beaufort House,6685.71, 15-Dec-2020
378,Revenue,CAHD,Central - Commissioned Services,Permanent Residential,Beaufort House,6685.71, 15-Dec-2020
379,Revenue,CAHD,Central - Commissioned Services,Permanent Residential,Beaufort House,3600.00, 15-Dec-2020
380,Revenue,CAHD,Covid 19- Spend on behalf of NHS,Respite Planned - Residential,Beaufort House,7228.57, 15-Dec-2020
381,Revenue,CAHD,Central - Commissioned Services,Permanent Residential,Beaufort House,3600.00, 15-Dec-2020
382,Revenue,CAHD,Central - Bed Purchasing and Direct Payments,Permanent Residential,Beaufort House,3400.00, 15-Dec-2020
383,Revenue,CAHD,South - Commissioned Services,Permanent Residential,Beech House,3018.84, 15-Dec-2020
384,Revenue,CAHD,South Glos Users in South Glos Homes,Permanent Nursing,Beech House,735.68, 15-Dec-2020
385,Revenue,CAHD,North - Community based support,Permanent Nursing,Beech House,4365.60, 15-Dec-2020
386,Revenue,CAHD,South Glos Users in South Glos Homes,Permanent Nursing,Beech House,735.68, 15-Dec-2020
387,Revenue,CAHD,Bed Purchasing - Southmead Hospital,Permanent Residential,Beech House,4280.00, 15-Dec-2020
388,Revenue,CAHD,South Glos Users in South Glos Homes,Permanent Nursing,Beech House,735.68, 15-Dec-2020
389,Revenue,CAHD,South Glos Users in South Glos Homes,Permanent Nursing,Beech House,735.68, 15-Dec-2020
390,Revenue,CAHD,South Glos Users in South Glos Homes,Permanent Nursing,Beech House,735.68, 15-Dec-2020
391,Revenue,CAHD,South Glos Users in South Glos Homes,Permanent Nursing,Beech House,735.68, 15-Dec-2020
392,Revenue,CAHD,South Glos Users in South Glos Homes,Permanent Nursing,Beech House,735.68, 15-Dec-2020
393,Revenue,CAHD,South Glos Users in South Glos Homes,Permanent Nursing,Beech House,735.68, 15-Dec-2020
394,Revenue,CAHD,North - Community based support,Permanent Nursing,Beech House,4280.00, 15-Dec-2020
395,Revenue,CAHD,South Glos Users in South Glos Homes,Permanent Nursing,Beech House,735.68, 15-Dec-2020
396,Revenue,CAHD,South Glos Users in South Glos Homes,Permanent Nursing,Beech House,735.68, 15-Dec-2020
397,Revenue,CAHD,South Glos Users in South Glos Homes,Permanent Nursing,Beech House,735.68, 15-Dec-2020
398,Revenue,CAHD,North - Community based support,Permanent Residential,Beech House,9965.71, 15-Dec-2020
399,Revenue,CAHD,North - Community based support,Permanent Nursing,Beech House,4308.04, 15-Dec-2020
400,Revenue,CAHD,South Glos Users in South Glos Homes,Permanent Nursing,Beech House,735.68, 15-Dec-2020
401,Revenue,CAHD,South Glos Users in South Glos Homes,Permanent Nursing,Beech House,735.68, 15-Dec-2020
402,Revenue,CAHD,South Glos Users in South Glos Homes,Permanent Nursing,Beech House,735.68, 15-Dec-2020
403,Revenue,CAHD,Bed Purchasing - Southmead Hospital,Permanent Nursing,Beech House,4360.00, 15-Dec-2020
404,Revenue,CAHD,South Glos Users in South Glos Homes,Permanent Nursing,Beech House,735.68, 15-Dec-2020
405,Revenue,CAHD,South Glos Users in South Glos Homes,Permanent Nursing,Beech House,735.68, 15-Dec-2020
406,Revenue,CAHD,South Glos Users in South Glos Homes,Permanent Nursing,Beech House,735.68, 15-Dec-2020
407,Revenue,CAHD,South Glos Users in South Glos Homes,Permanent Nursing,Beechwood Care Home,1044.00, 15-Dec-2020
408,Revenue,CAHD,South - S117,Permanent Residential,Bidna House,3692.64, 15-Dec-2020
409,Revenue,CAHD,Placements OLA Special Schools and RB,Other L.A.s - General,Blaise High School,834.88, 21-Dec-2020
410,Revenue,CAHD,Statemented Support Payments to OLAs,Other Public Bodies,Blaise High School,907.83, 21-Dec-2020
411,Revenue,CAHD,CSC - Vinney Green Secure Unit,R & M by Departments,Blake Powell,550.00, 10-Dec-2020
412,Revenue,CAHD,CSC - Vinney Green Secure Unit,R & M by Departments,Blake Powell,1000.00, 10-Dec-2020
413,Revenue,CAHD,Covid 19 -Adult Social Care,Other Small Contracts,Blakehill Healthcare Ltd,25.00, 17-Dec-2020
414,Revenue,CAHD,Central - Commissioned Services,Other Small Contracts,Blakehill Healthcare Ltd,7112.82, 17-Dec-2020
415,Revenue,CAHD,South - Commissioned Services,Other Small Contracts,Blakehill Healthcare Ltd,2619.93, 17-Dec-2020
416,Revenue,CAHD,North - Community based support,Other Small Contracts,Blakehill Healthcare Ltd,1037.50, 17-Dec-2020
417,Revenue,CAHD,Covid 19 -Adult Social Care,Other Small Contracts,Blakehill Healthcare Ltd,25.00, 17-Dec-2020
418,Revenue,CAHD,Central - Commissioned Services,Other Small Contracts,Blakehill Healthcare Ltd,6684.69, 17-Dec-2020
419,Revenue,CAHD,Central - Commissioned Services,Supported Living,Blakehill Healthcare Ltd,150.08, 17-Dec-2020
420,Revenue,CAHD,South - Commissioned Services,Other Small Contracts,Blakehill Healthcare Ltd,3144.93, 17-Dec-2020
421,Revenue,CAHD,North - Community based support,Other Small Contracts,Blakehill Healthcare Ltd,1075.00, 17-Dec-2020
422,Revenue,CAHD,Covid 19 -Adult Social Care,Other Small Contracts,Blakehill Healthcare Ltd,25.00, 17-Dec-2020
423,Revenue,CAHD,Central - Commissioned Services,Other Small Contracts,Blakehill Healthcare Ltd,6631.49, 17-Dec-2020
424,Revenue,CAHD,South - Commissioned Services,Other Small Contracts,Blakehill Healthcare Ltd,2313.68, 17-Dec-2020
425,Revenue,CAHD,North - Community based support,Other Small Contracts,Blakehill Healthcare Ltd,1087.50, 17-Dec-2020
426,Revenue,CAHD,Covid 19 -Adult Social Care,Other Small Contracts,Blakehill Healthcare Ltd,25.00, 16-Dec-2020
427,Revenue,CAHD,Central - Commissioned Services,Other Small Contracts,Blakehill Healthcare Ltd,6975.08, 16-Dec-2020
428,Revenue,CAHD,South - Commissioned Services,Other Small Contracts,Blakehill Healthcare Ltd,3144.93, 16-Dec-2020
429,Revenue,CAHD,North - Community based support,Other Small Contracts,Blakehill Healthcare Ltd,1068.75, 16-Dec-2020
430,Revenue,CAHD,Covid 19 -Adult Social Care,Other Small Contracts,Blakehill Healthcare Ltd,25.00, 17-Dec-2020
431,Revenue,CAHD,Central - Commissioned Services,Other Small Contracts,Blakehill Healthcare Ltd,5500.16, 17-Dec-2020
432,Revenue,CAHD,South - Commissioned Services,Other Small Contracts,Blakehill Healthcare Ltd,2513.68, 17-Dec-2020
433,Revenue,CAHD,North - Community based support,Other Small Contracts,Blakehill Healthcare Ltd,1062.50, 17-Dec-2020
434,Revenue,CAHD,Covid 19 -Adult Social Care,Other Small Contracts,Blakehill Healthcare Ltd,25.00, 15-Dec-2020
435,Revenue,CAHD,Central - Commissioned Services,Other Small Contracts,Blakehill Healthcare Ltd,3818.75, 15-Dec-2020
436,Revenue,CAHD,South - Commissioned Services,Other Small Contracts,Blakehill Healthcare Ltd,2826.18, 15-Dec-2020
437,Revenue,CAHD,North - Community based support,Other Small Contracts,Blakehill Healthcare Ltd,1075.00, 15-Dec-2020
438,Revenue,CAHD,Covid 19 -Adult Social Care,Other Small Contracts,Blakehill Healthcare Ltd,25.00, 15-Dec-2020
439,Revenue,CAHD,Central - Commissioned Services,Other Small Contracts,Blakehill Healthcare Ltd,3325.00, 15-Dec-2020
440,Revenue,CAHD,South - Commissioned Services,Other Small Contracts,Blakehill Healthcare Ltd,3263.68, 15-Dec-2020
441,Revenue,CAHD,North - Community based support,Other Small Contracts,Blakehill Healthcare Ltd,1093.75, 15-Dec-2020
442,Revenue,CAHD,Covid 19 -Adult Social Care,Other Small Contracts,Blakehill Healthcare Ltd,25.00, 11-Dec-2020
443,Revenue,CAHD,Central - Commissioned Services,Other Small Contracts,Blakehill Healthcare Ltd,3231.25, 11-Dec-2020
444,Revenue,CAHD,South - Commissioned Services,Other Small Contracts,Blakehill Healthcare Ltd,2807.43, 11-Dec-2020
445,Revenue,CAHD,North - Community based support,Other Small Contracts,Blakehill Healthcare Ltd,1100.00, 11-Dec-2020
446,Revenue,CAHD,Covid 19 -Adult Social Care,Other Small Contracts,Blakehill Healthcare Ltd,25.00, 15-Dec-2020
447,Revenue,CAHD,Central - Commissioned Services,Other Small Contracts,Blakehill Healthcare Ltd,3362.50, 15-Dec-2020
448,Revenue,CAHD,South - Commissioned Services,Other Small Contracts,Blakehill Healthcare Ltd,3008.26, 15-Dec-2020
449,Revenue,CAHD,North - Community based support,Other Small Contracts,Blakehill Healthcare Ltd,1081.25, 15-Dec-2020
450,Revenue,CAHD,Covid 19 -Adult Social Care,Other Small Contracts,Blakehill Healthcare Ltd,25.00, 21-Dec-2020
451,Revenue,CAHD,Central - Commissioned Services,Other Small Contracts,Blakehill Healthcare Ltd,3931.25, 21-Dec-2020
452,Revenue,CAHD,South - Commissioned Services,Other Small Contracts,Blakehill Healthcare Ltd,3676.18, 21-Dec-2020
453,Revenue,CAHD,North - Community based support,Other Small Contracts,Blakehill Healthcare Ltd,875.00, 21-Dec-2020
454,Revenue,CAHD,Covid 19 -Adult Social Care,Other Small Contracts,Blakehill Healthcare Ltd,25.00, 21-Dec-2020
455,Revenue,CAHD,Central - Commissioned Services,Other Small Contracts,Blakehill Healthcare Ltd,3981.25, 21-Dec-2020
456,Revenue,CAHD,South - Commissioned Services,Other Small Contracts,Blakehill Healthcare Ltd,3832.43, 21-Dec-2020
457,Revenue,CAHD,North - Community based support,Other Small Contracts,Blakehill Healthcare Ltd,687.50, 21-Dec-2020
458,Revenue,CAHD,Covid 19 -Adult Social Care,Other Small Contracts,Blakehill Healthcare Ltd,31.25, 21-Dec-2020
459,Revenue,CAHD,Central - Commissioned Services,Other Small Contracts,Blakehill Healthcare Ltd,3825.00, 21-Dec-2020
460,Revenue,CAHD,South - Commissioned Services,Other Small Contracts,Blakehill Healthcare Ltd,3819.93, 21-Dec-2020
461,Revenue,CAHD,North - Community based support,Other Small Contracts,Blakehill Healthcare Ltd,662.50, 21-Dec-2020
462,Revenue,CAHD,Covid 19 -Adult Social Care,Other Small Contracts,Blakehill Healthcare Ltd,25.00, 30-Dec-2020
463,Revenue,CAHD,Central - Commissioned Services,Other Small Contracts,Blakehill Healthcare Ltd,3762.50, 30-Dec-2020
464,Revenue,CAHD,South - Commissioned Services,Other Small Contracts,Blakehill Healthcare Ltd,3461.68, 30-Dec-2020
465,Revenue,CAHD,North - Community based support,Other Small Contracts,Blakehill Healthcare Ltd,681.25, 30-Dec-2020
466,Revenue,CAHD,Covid 19 -Adult Social Care,Other Small Contracts,Blakehill Healthcare Ltd,25.00, 30-Dec-2020
467,Revenue,CAHD,Central - Commissioned Services,Other Small Contracts,Blakehill Healthcare Ltd,3975.00, 30-Dec-2020
468,Revenue,CAHD,South - Commissioned Services,Other Small Contracts,Blakehill Healthcare Ltd,3576.18, 30-Dec-2020
469,Revenue,CAHD,North - Community based support,Other Small Contracts,Blakehill Healthcare Ltd,693.75, 30-Dec-2020
470,Revenue,CAHD,Central - Commissioned Services,Other Small Contracts,Blakehill Healthcare Ltd,3925.00, 30-Dec-2020
471,Revenue,CAHD,South - Commissioned Services,Other Small Contracts,Blakehill Healthcare Ltd,3694.93, 30-Dec-2020
472,Revenue,CAHD,North - Community based support,Other Small Contracts,Blakehill Healthcare Ltd,712.50, 30-Dec-2020
473,Revenue,CAHD,Central - Commissioned Services,Other Small Contracts,Blakehill Healthcare Ltd,662.50, 14-Dec-2020
474,Revenue,CAHD,Central - Commissioned Services,Other Small Contracts,Blakehill Healthcare Ltd,3397.03, 21-Dec-2020
475,Revenue,CAHD,South Glos Users in South Glos Homes,Permanent Nursing,Blossom Fields Nursing Home,735.68, 15-Dec-2020
476,Revenue,CAHD,South Glos Users in South Glos Homes,Permanent Nursing,Blossom Fields Nursing Home,1024.70, 15-Dec-2020
477,Revenue,CAHD,South Glos Users in South Glos Homes,Permanent Nursing,Blossom Fields Nursing Home,735.68, 15-Dec-2020
478,Revenue,CAHD,South Glos Users in South Glos Homes,Permanent Nursing,Blossom Fields Nursing Home,735.68, 15-Dec-2020
479,Revenue,CAHD,North - Community based support,Permanent Nursing,Blossom Fields Nursing Home,4770.40, 15-Dec-2020
480,Revenue,CAHD,South Glos Users in South Glos Homes,Permanent Nursing,Blossom Fields Nursing Home,735.68, 15-Dec-2020
481,Revenue,CAHD,South Glos Users in South Glos Homes,Permanent Nursing,Blossom Fields Nursing Home,735.68, 15-Dec-2020
482,Revenue,CAHD,North - Community based support,Permanent Nursing,Blossom Fields Nursing Home,4352.80, 15-Dec-2020
483,Revenue,CAHD,South Glos Users in South Glos Homes,Permanent Nursing,Blossom Fields Nursing Home,735.68, 15-Dec-2020
484,Revenue,CAHD,South Glos Users in South Glos Homes,Permanent Nursing,Blossom Fields Nursing Home,735.68, 15-Dec-2020
485,Revenue,CAHD,South - Commissioned Services,Permanent Nursing,Blossom Fields Nursing Home,4501.36, 15-Dec-2020
486,Revenue,CAHD,South Glos Users in South Glos Homes,Permanent Nursing,Blossom Fields Nursing Home,735.68, 15-Dec-2020
487,Revenue,CAHD,South Glos Users in South Glos Homes,Permanent Nursing,Blossom Fields Nursing Home,735.68, 15-Dec-2020
488,Revenue,CAHD,North - Community based support,Permanent Nursing,Blossom Fields Nursing Home,4799.88, 15-Dec-2020
489,Revenue,CAHD,South Glos Users in South Glos Homes,Permanent Nursing,Blossom Fields Nursing Home,735.68, 15-Dec-2020
490,Revenue,CAHD,South Glos Users in South Glos Homes,Permanent Nursing,Blossom Fields Nursing Home,735.68, 15-Dec-2020
491,Revenue,CAHD,South Glos Users in South Glos Homes,Permanent Nursing,Blossom Fields Nursing Home,735.68, 15-Dec-2020
492,Revenue,CAHD,North - Community based support,Permanent Nursing,Blossom Fields Nursing Home,4800.00, 15-Dec-2020
493,Revenue,CAHD,South Glos Users in South Glos Homes,Permanent Nursing,Blossom Fields Nursing Home,735.68, 15-Dec-2020
494,Revenue,CAHD,South Glos Users in South Glos Homes,Permanent Nursing,Blossom Fields Nursing Home,735.68, 15-Dec-2020
495,Revenue,CAHD,South Glos Users in South Glos Homes,Permanent Nursing,Blossom Fields Nursing Home,735.68, 15-Dec-2020
496,Revenue,CAHD,South - Commissioned Services,Permanent Nursing,Blossom Fields Nursing Home,4039.20, 15-Dec-2020
497,Revenue,CAHD,South Glos Users in South Glos Homes,Permanent Nursing,Blossom Fields Nursing Home,735.68, 15-Dec-2020
498,Revenue,CAHD,South Glos Users in South Glos Homes,Permanent Nursing,Blossom Fields Nursing Home,735.68, 15-Dec-2020
499,Revenue,CAHD,South Glos Users in South Glos Homes,Permanent Nursing,Blossom Fields Nursing Home,735.68, 15-Dec-2020
500,Revenue,CAHD,Central - Commissioned Services,Permanent Nursing,Blossom Fields Nursing Home,4039.20, 15-Dec-2020
501,Revenue,CAHD,South Glos Users in South Glos Homes,Permanent Nursing,Blossom Fields Nursing Home,735.68, 15-Dec-2020
502,Revenue,CAHD,South Glos Users in South Glos Homes,Permanent Nursing,Blossom Fields Nursing Home,735.68, 15-Dec-2020
503,Revenue,CAHD,South Glos Users in South Glos Homes,Permanent Nursing,Blossom Fields Nursing Home,735.68, 15-Dec-2020
504,Revenue,CAHD,South Glos Users in South Glos Homes,Permanent Nursing,Blossom Fields Nursing Home,735.68, 15-Dec-2020
505,Revenue,CAHD,South Glos Users in South Glos Homes,Permanent Nursing,Blossom Fields Nursing Home,735.68, 15-Dec-2020
506,Revenue,CAHD,Central - Commissioned Services,Permanent Nursing,Blossom Fields Nursing Home,4400.00, 15-Dec-2020
507,Revenue,CAHD,South Glos Users in South Glos Homes,Permanent Nursing,Blossom Fields Nursing Home,735.68, 15-Dec-2020
508,Revenue,CAHD,North - Community based support,Permanent Nursing,Blossom Fields Nursing Home,4039.20, 15-Dec-2020
509,Revenue,CAHD,South Glos Users in South Glos Homes,Permanent Nursing,Blossom Fields Nursing Home,735.68, 15-Dec-2020
510,Revenue,CAHD,South Glos Users in South Glos Homes,Permanent Nursing,Blossom Fields Nursing Home,735.68, 15-Dec-2020
511,Revenue,CAHD,South Glos Users in South Glos Homes,Permanent Nursing,Blossom Fields Nursing Home,735.68, 15-Dec-2020
512,Revenue,CAHD,North - Community based support,Permanent Nursing,Blossom Fields Nursing Home,3707.64, 15-Dec-2020
513,Revenue,CAHD,South Glos Users in South Glos Homes,Permanent Nursing,Blossom Fields Nursing Home,735.68, 15-Dec-2020
514,Revenue,CAHD,Central - Commissioned Services,Permanent Residential,Blossom Fields Nursing Home,5770.29, 15-Dec-2020
515,Revenue,CAHD,Central - Commissioned Services,Permanent Residential,Blossom Fields Nursing Home,4039.20, 15-Dec-2020
516,Revenue,CAHD,South - bed purchasing and direct  payments,Permanent Nursing,Blossom Fields Nursing Home,4039.20, 15-Dec-2020
517,Revenue,CAHD,South Glos Users in South Glos Homes,Permanent Nursing,Blossom Fields Nursing Home,735.68, 15-Dec-2020
518,Revenue,CAHD,North - Community based support,Permanent Nursing,Blossom Fields Nursing Home,4800.00, 15-Dec-2020
519,Revenue,CAHD,South Glos Users in South Glos Homes,Permanent Nursing,Blossom Fields Nursing Home,735.68, 15-Dec-2020
520,Revenue,CAHD,South Glos Users in South Glos Homes,Permanent Nursing,Blossom Fields Nursing Home,735.68, 15-Dec-2020
521,Revenue,CAHD,South Glos Users in South Glos Homes,Permanent Nursing,Blossom Fields Nursing Home,735.68, 15-Dec-2020
522,Revenue,CAHD,Central - Commissioned Services,Permanent Nursing,Blossom Fields Nursing Home,4039.20, 15-Dec-2020
523,Revenue,CAHD,South Glos Users in South Glos Homes,Permanent Nursing,Blossom Fields Nursing Home,735.68, 15-Dec-2020
524,Revenue,CAHD,South Glos Users in South Glos Homes,Permanent Nursing,Blossom Fields Nursing Home,735.68, 15-Dec-2020
525,Revenue,CAHD,Central - Commissioned Services,Permanent Residential,Blossom Fields Nursing Home,4039.20, 15-Dec-2020
526,Revenue,CAHD,Central - Commissioned Services,Permanent Residential,Blossom Fields Nursing Home,2885.14, 15-Dec-2020
527,Revenue,CAHD,Central - Commissioned Services,Fees & Charges Income - General,Blossom Fields Nursing Home,1371.31, 15-Dec-2020
528,Revenue,CAHD,South - Commissioned Services,Permanent Nursing,Blossom Fields Nursing Home,4683.04, 15-Dec-2020
529,Revenue,CAHD,South Glos Users in South Glos Homes,Permanent Nursing,Blossom Fields Nursing Home,735.68, 15-Dec-2020
530,Revenue,CAHD,Central - Commissioned Services,Permanent Nursing,Blossom Fields Nursing Home,5008.60, 15-Dec-2020
531,Revenue,CAHD,South Glos Users in South Glos Homes,Permanent Nursing,Blossom Fields Nursing Home,735.68, 15-Dec-2020
532,Revenue,CAHD,Central - Commissioned Services,Permanent Nursing,Blossom Fields Nursing Home,4039.20, 15-Dec-2020
533,Revenue,CAHD,South - Commissioned Services,Permanent Nursing,Blossom Fields Nursing Home,3854.40, 15-Dec-2020
534,Revenue,CAHD,South Glos Users in South Glos Homes,Permanent Nursing,Blossom Fields Nursing Home,735.68, 15-Dec-2020
535,Revenue,CAHD,South - Commissioned Services,Permanent Nursing,Blossom Fields Nursing Home,4039.20, 15-Dec-2020
536,Revenue,CAHD,South Glos Users in South Glos Homes,Permanent Nursing,Blossom Fields Nursing Home,735.68, 15-Dec-2020
537,Revenue,CAHD,South - Commissioned Services,Respite Emergency - Residential,Blossom Fields Nursing Home,18750.00, 15-Dec-2020
538,Revenue,CAHD,South - Commissioned Services,Respite Emergency - Residential,Blossom Fields Nursing Home,3440.57, 15-Dec-2020
539,Revenue,CAHD,South - Commissioned Services,Respite Emergency - Residential,Blossom Fields Nursing Home,22718.46, 15-Dec-2020
540,Revenue,CAHD,Central - Commissioned Services,Permanent Nursing,Blossom Fields Nursing Home,4039.20, 15-Dec-2020
541,Revenue,CAHD,South Glos Users in South Glos Homes,Permanent Nursing,Blossom Fields Nursing Home,735.68, 15-Dec-2020
542,Revenue,CAHD,North - Community based support,Permanent Nursing,Blossom Fields Nursing Home,4039.20, 15-Dec-2020
543,Revenue,CAHD,South Glos Users in South Glos Homes,Permanent Nursing,Blossom Fields Nursing Home,735.68, 15-Dec-2020
544,Revenue,CAHD,Covid 19 -Adult Social Care,Respite Planned - Nursing,Blossom Fields Nursing Home,2838.79, 15-Dec-2020
545,Revenue,CAHD,Central - Commissioned Services,Permanent Nursing,Blossom Fields Nursing Home,4039.20, 15-Dec-2020
546,Revenue,CAHD,South Glos Users in South Glos Homes,Permanent Nursing,Blossom Fields Nursing Home,735.68, 15-Dec-2020
547,Revenue,CAHD,South Glos Users in South Glos Homes,Permanent Nursing,Blossom Fields Nursing Home,735.68, 15-Dec-2020
548,Revenue,CAHD,Central - Commissioned Services,Permanent Nursing,Blossom Fields Nursing Home,4683.04, 15-Dec-2020
549,Revenue,CAHD,South Glos Users in South Glos Homes,Permanent Nursing,Blossom Fields Nursing Home,735.68, 15-Dec-2020
550,Revenue,CAHD,Central - Commissioned Services,Permanent Nursing,Blossom Fields Nursing Home,4800.00, 15-Dec-2020
551,Revenue,CAHD,South Glos Users in South Glos Homes,Permanent Nursing,Blossom Fields Nursing Home,735.68, 15-Dec-2020
552,Revenue,CAHD,North - Community based support,Permanent Nursing,Blossom Fields Nursing Home,4500.56, 15-Dec-2020
553,Revenue,CAHD,South Glos Users in South Glos Homes,Permanent Nursing,Blossom Fields Nursing Home,735.68, 15-Dec-2020
554,Revenue,CAHD,South - Commissioned Services,Permanent Residential,Blossom Fields Nursing Home,5000.00, 15-Dec-2020
555,Revenue,CAHD,South - Commissioned Services,Permanent Residential,Blossom Fields Nursing Home,4285.71, 15-Dec-2020
556,Revenue,CAHD,South - Commissioned Services,Permanent Residential,Blossom Fields Nursing Home,2426.00, 15-Dec-2020
557,Revenue,CAHD,Jointly Funded H&SC Packages,Permanent Residential,Blossom Fields Nursing Home,1176.00, 15-Dec-2020
558,Revenue,CAHD,South - Commissioned Services,Permanent Nursing,Blossom Fields Nursing Home,714.29, 15-Dec-2020
559,Revenue,CAHD,North - Community based support,Permanent Nursing,Blossom Fields Nursing Home,4920.00, 15-Dec-2020
560,Revenue,CAHD,South Glos Users in South Glos Homes,Permanent Nursing,Blossom Fields Nursing Home,735.68, 15-Dec-2020
561,Revenue,CAHD,South Glos Users in South Glos Homes,Permanent Nursing,Blossom Fields Nursing Home,735.68, 15-Dec-2020
562,Revenue,CAHD,Central - Commissioned Services,Permanent Nursing,Blossom Fields Nursing Home,4675.44, 15-Dec-2020
563,Revenue,CAHD,South Glos Users in South Glos Homes,Permanent Nursing,Blossom Fields Nursing Home,735.68, 15-Dec-2020
564,Revenue,CAHD,North - Community based support,Permanent Nursing,Blossom Fields Nursing Home,5200.00, 15-Dec-2020
565,Revenue,CAHD,South Glos Users in South Glos Homes,Permanent Nursing,Blossom Fields Nursing Home,735.68, 15-Dec-2020
566,Revenue,CAHD,South Glos Users in South Glos Homes,Permanent Nursing,Blossom Fields Nursing Home,735.68, 15-Dec-2020
567,Revenue,CAHD,South Glos Users in South Glos Homes,Permanent Nursing,Blossom Fields Nursing Home,735.68, 15-Dec-2020
568,Revenue,CAHD,North - S117,Permanent Residential,Blossom Fields Nursing Home,4800.00, 15-Dec-2020
569,Revenue,CAHD,South Glos Users in South Glos Homes,Permanent Nursing,Blossom Fields Nursing Home,735.68, 15-Dec-2020
570,Revenue,CAHD,South Glos Users in South Glos Homes,Permanent Nursing,Blossom Fields Nursing Home,735.68, 15-Dec-2020
571,Revenue,CAHD,North - bed purchasing and direct  payments,Permanent Nursing,Blossom Fields Nursing Home,5000.00, 15-Dec-2020
572,Revenue,CAHD,South Glos Users in South Glos Homes,Permanent Nursing,Blossom Fields Nursing Home,735.68, 15-Dec-2020
573,Revenue,CAHD,Central - Commissioned Services,Fees & Charges Income - General,Blossom Fields Nursing Home,1653.69, 15-Dec-2020
574,Revenue,CAHD,South Glos Users in South Glos Homes,Permanent Nursing,Blossom Fields Nursing Home,735.68, 15-Dec-2020
575,Revenue,CAHD,North - Community based support,Permanent Nursing,Blossom Fields Nursing Home,4039.20, 15-Dec-2020
576,Revenue,CAHD,North - S117,Permanent Residential,Blossom Fields Nursing Home,5000.00, 15-Dec-2020
577,Revenue,CAHD,South Glos Users in South Glos Homes,Permanent Nursing,Blossom Fields Nursing Home,735.68, 15-Dec-2020
578,Revenue,CAHD,South Glos Users in South Glos Homes,Permanent Nursing,Blossom Fields Nursing Home,735.68, 15-Dec-2020
579,Revenue,CAHD,South Glos Users in South Glos Homes,Permanent Nursing,Blossom Fields Nursing Home,735.68, 15-Dec-2020
580,Revenue,CAHD,Central - Commissioned Services,Permanent Nursing,Blossom Fields Nursing Home,4710.40, 15-Dec-2020
581,Revenue,CAHD,South Glos Users in South Glos Homes,Permanent Nursing,Blossom Fields Nursing Home,735.68, 15-Dec-2020
582,Revenue,CAHD,South Glos Users in South Glos Homes,Permanent Nursing,Blossom Fields Nursing Home,735.68, 15-Dec-2020
583,Revenue,CAHD,South Glos Users in South Glos Homes,Permanent Nursing,Blossom Fields Nursing Home,735.68, 15-Dec-2020
584,Revenue,CAHD,Central - Bed Purchasing and Direct Payments,Permanent Residential,Blossom Fields Nursing Home,5000.00, 15-Dec-2020
585,Revenue,CAHD,South Glos Users in South Glos Homes,Permanent Nursing,Blossom Fields Nursing Home,735.68, 15-Dec-2020
586,Revenue,CAHD,South Glos Users in South Glos Homes,Permanent Nursing,Blossom Fields Nursing Home,735.68, 15-Dec-2020
587,Revenue,CAHD,South Glos Users in South Glos Homes,Permanent Nursing,Blossom Fields Nursing Home,735.68, 15-Dec-2020
588,Revenue,CAHD,South Glos Users in South Glos Homes,Permanent Nursing,Blossom Fields Nursing Home,735.68, 15-Dec-2020
589,Revenue,CAHD,South Glos Users in South Glos Homes,Permanent Nursing,Blossom Fields Nursing Home,735.68, 15-Dec-2020
590,Revenue,CAHD,South Glos Users in South Glos Homes,Permanent Nursing,Blossom Fields Nursing Home,735.68, 15-Dec-2020
591,Revenue,CAHD,Central - Commissioned Services,Respite Emergency - Residential,Blossom Fields Nursing Home,1785.71, 15-Dec-2020
592,Revenue,CAHD,South Glos Users in South Glos Homes,Permanent Nursing,Blossom Fields Nursing Home,735.68, 15-Dec-2020
593,Revenue,CAHD,South Glos Users in South Glos Homes,Permanent Nursing,Blossom Fields Nursing Home,735.68, 15-Dec-2020
594,Revenue,CAHD,South Glos Users in South Glos Homes,Permanent Nursing,Blossom Fields Nursing Home,735.68, 15-Dec-2020
595,Revenue,CAHD,North - Community based support,Permanent Nursing,Blossom Fields Nursing Home,4039.20, 15-Dec-2020
596,Revenue,CAHD,North - Community based support,Permanent Nursing,Blossom Fields Nursing Home,1896.60, 15-Dec-2020
597,Revenue,CAHD,North - Community based support,Permanent Nursing,Blossom Fields Nursing Home,2019.60, 15-Dec-2020
598,Revenue,CAHD,Central - Commissioned Services,Permanent Nursing,Blossom Fields Nursing Home,7068.60, 15-Dec-2020
599,Revenue,CAHD,Central - Commissioned Services,Permanent Nursing,Blossom Fields Nursing Home,4039.20, 15-Dec-2020
600,Revenue,CAHD,South Glos Users in South Glos Homes,Permanent Nursing,Blossom Fields Nursing Home,735.68, 15-Dec-2020
601,Revenue,CAHD,South - S117,Permanent Nursing,Blossom Fields Nursing Home,4386.80, 15-Dec-2020
602,Revenue,CAHD,South Glos Users in South Glos Homes,Permanent Nursing,Blossom Fields Nursing Home,735.68, 15-Dec-2020
603,Revenue,CAHD,South Glos Users in South Glos Homes,Permanent Nursing,Blossom Fields Nursing Home,735.68, 15-Dec-2020
604,Revenue,CAHD,Central - Commissioned Services,Permanent Nursing,Blossom Fields Nursing Home,6964.29, 15-Dec-2020
605,Revenue,CAHD,Central - Commissioned Services,Permanent Nursing,Blossom Fields Nursing Home,5000.00, 15-Dec-2020
606,Revenue,CAHD,South - Commissioned Services,Permanent Nursing,Blossom Fields Nursing Home,4039.20, 15-Dec-2020
607,Revenue,CAHD,South Glos Users in South Glos Homes,Permanent Nursing,Blossom Fields Nursing Home,735.68, 15-Dec-2020
608,Revenue,CAHD,South - Commissioned Services,Permanent Nursing,Blossom Fields Nursing Home,4022.92, 15-Dec-2020
609,Revenue,CAHD,South Glos Users in South Glos Homes,Permanent Nursing,Blossom Fields Nursing Home,735.68, 15-Dec-2020
610,Revenue,CAHD,Central - Commissioned Services,Permanent Nursing,Blossom Fields Nursing Home,4039.20, 15-Dec-2020
611,Revenue,CAHD,South Glos Users in South Glos Homes,Permanent Nursing,Blossom Fields Nursing Home,735.68, 15-Dec-2020
612,Revenue,CAHD,South Glos Users in South Glos Homes,Permanent Nursing,Blossom Fields Nursing Home,735.68, 15-Dec-2020
613,Revenue,CAHD,North - Community based support,Permanent Nursing,Blossom Fields Nursing Home,4683.00, 15-Dec-2020
614,Revenue,CAHD,South Glos Users in South Glos Homes,Permanent Nursing,Blossom Fields Nursing Home,735.68, 15-Dec-2020
615,Revenue,CAHD,Statemented Support Payments to OLAs,Other Public Bodies,Blue Coat CE VA Primary School,837.09, 21-Dec-2020
616,Revenue,CAHD,Statemented Support Payments to OLAs,Other Public Bodies,Blue Coat CE VA Primary School,1292.50, 21-Dec-2020
617,Revenue,CAHD,Pathway 1 - Re-Ablement Home Care,Other Small Contracts,Bluebird Care (South Gloucestershire),3592.73, 23-Dec-2020
618,Revenue,CAHD,Central - Commissioned Services,Other Small Contracts,Bluebird Care (South Gloucestershire),1721.54, 30-Dec-2020
619,Revenue,CAHD,Pathway 1 - Re-Ablement Home Care,Other Small Contracts,Bluebird Care (South Gloucestershire),634.20, 23-Dec-2020
620,Revenue,CAHD,Pathway 1 - Re-Ablement Home Care,Other Small Contracts,Bluebird Care (South Gloucestershire),634.20, 15-Dec-2020
621,Revenue,CAHD,Pathway 1 - Re-Ablement Home Care,Other Small Contracts,Bluebird Care (South Gloucestershire),619.10, 18-Dec-2020
622,Revenue,CAHD,Pathway 1 - Re-Ablement Home Care,Other Small Contracts,Bluebird Care (South Gloucestershire),619.10, 22-Dec-2020
623,Revenue,CAHD,Covid 19 -Adult Social Care,Other Small Contracts,Bluebird Care (South Gloucestershire),15.10, 11-Dec-2020
624,Revenue,CAHD,Central - Commissioned Services,Other Small Contracts,Bluebird Care (South Gloucestershire),13739.21, 11-Dec-2020
625,Revenue,CAHD,South - Commissioned Services,Other Small Contracts,Bluebird Care (South Gloucestershire),3112.55, 11-Dec-2020
626,Revenue,CAHD,North - Community based support,Other Small Contracts,Bluebird Care (South Gloucestershire),3267.99, 11-Dec-2020
627,Revenue,CAHD,Resilience Team,Other Small Contracts,Bluebird Care (South Gloucestershire),211.40, 11-Dec-2020
628,Revenue,CAHD,Covid 19 -Adult Social Care,Other Small Contracts,Bluebird Care (South Gloucestershire),15.10, 16-Dec-2020
629,Revenue,CAHD,Central - Commissioned Services,Other Small Contracts,Bluebird Care (South Gloucestershire),14340.92, 16-Dec-2020
630,Revenue,CAHD,South - Commissioned Services,Other Small Contracts,Bluebird Care (South Gloucestershire),3257.59, 16-Dec-2020
631,Revenue,CAHD,North - Community based support,Other Small Contracts,Bluebird Care (South Gloucestershire),3675.84, 16-Dec-2020
632,Revenue,CAHD,Resilience Team,Other Small Contracts,Bluebird Care (South Gloucestershire),211.40, 16-Dec-2020
633,Revenue,CAHD,Central - Commissioned Services,Other Small Contracts,Bluebird Care (South Gloucestershire),13838.19, 16-Dec-2020
634,Revenue,CAHD,South - Commissioned Services,Other Small Contracts,Bluebird Care (South Gloucestershire),3499.19, 16-Dec-2020
635,Revenue,CAHD,North - Community based support,Other Small Contracts,Bluebird Care (South Gloucestershire),3598.54, 16-Dec-2020
636,Revenue,CAHD,Resilience Team,Other Small Contracts,Bluebird Care (South Gloucestershire),181.20, 16-Dec-2020
637,Revenue,CAHD,Central - Commissioned Services,Other Small Contracts,Bluebird Care (South Gloucestershire),14665.80, 21-Dec-2020
638,Revenue,CAHD,South - Commissioned Services,Other Small Contracts,Bluebird Care (South Gloucestershire),3506.74, 21-Dec-2020
639,Revenue,CAHD,North - Community based support,Other Small Contracts,Bluebird Care (South Gloucestershire),3804.04, 21-Dec-2020
640,Revenue,CAHD,Resilience Team,Other Small Contracts,Bluebird Care (South Gloucestershire),203.85, 21-Dec-2020
641,Revenue,CAHD,S28A cases,Permanent Residential,Bradbury House,6505.16, 15-Dec-2020
642,Revenue,CAHD,North - Community based support,Permanent Residential,Bradbury House,10016.24, 15-Dec-2020
643,Revenue,CAHD,Jointly Funded H&SC Packages,Permanent Residential,Bradbury House,8244.08, 15-Dec-2020
644,Revenue,CAHD,North - S117,Permanent Residential,Bradbury House,5969.84, 15-Dec-2020
645,Revenue,CAHD,South - Commissioned Services,Permanent Residential,Bradbury House,10168.08, 15-Dec-2020
646,Revenue,CAHD,Independent Special Placements - Pre 16,Other Private Contractors,Bredon School Ltd,3004.50, 08-Dec-2020
647,Revenue,CAHD,Social Lettings Agency,Rent,Individual,699.32, 24-Dec-2020
648,Revenue,CAHD,Social Lettings Agency,Fees - General,Individual,20.57, 24-Dec-2020
649,Revenue,CAHD,Social Lettings Agency,Rent,Individual,766.10, 03-Dec-2020
650,Revenue,CAHD,Social Lettings Agency,Fees - General,Individual,8.15, 03-Dec-2020
651,Revenue,CAHD,Social Lettings Agency,Rent,Individual,766.10, 30-Dec-2020
652,Revenue,CAHD,Social Lettings Agency,Fees - General,Individual,8.15, 30-Dec-2020
653,Revenue,CAHD,North - bed purchasing and direct  payments,Permanent Residential,Bridge House Care Home,2740.00, 15-Dec-2020
654,Revenue,CAHD,North - Community based support,Permanent Residential,Bridge House Care Home,2848.00, 15-Dec-2020
655,Revenue,CAHD,North - Community based support,Permanent Residential,Bridge House Care Home,2678.04, 15-Dec-2020
656,Revenue,CAHD,South - Commissioned Services,Respite Planned - Residential,Bridge House Care Home,2920.00, 15-Dec-2020
657,Revenue,CAHD,North - Community based support,Permanent Residential,Bridgwater Court Care Home,10773.64, 15-Dec-2020
658,Revenue,CAHD,Early Years Inclusion Fund,Other Public Bodies,Bright Sparks Pre-School,2000.00, 16-Dec-2020
659,Revenue,CAHD,Health Inequalities,Grants to Voluntary Bodies,Bristol & Avon Chinese Womens Group,500.00, 30-Dec-2020
660,Revenue,CAHD,Statemented Support Academies,Other Public Bodies,Bristol & South Gloucestershire UTC,1556.28, 22-Dec-2020
661,Revenue,CAHD,Statemented Support Academies,Other Public Bodies,Bristol & South Gloucestershire UTC,907.83, 22-Dec-2020
662,Revenue,CAHD,Older People`s Commissioned Se,Grants to Voluntary Bodies,Bristol Area Stroke Foundation,19052.75, 30-Dec-2020
663,Revenue,CAHD,Statemented Support Payments to OLAs,Other Public Bodies,Bristol Cathedral Choir School,942.58, 21-Dec-2020
664,Revenue,CAHD,Statemented Support Payments to OLAs,Other Public Bodies,Bristol Cathedral Choir School,880.08, 21-Dec-2020
665,Revenue,CAHD,Transport OLA Special Schools and RB,Client Transport,Bristol City Council,2294.76, 03-Dec-2020
666,Revenue,CAHD,Transport OLA Special Schools and RB,Client Transport,Bristol City Council,4216.00, 03-Dec-2020
667,Revenue,CAHD,Statemented Support Equipment,Educational Supplies & Equipment,Bristol City Council,967.75, 14-Dec-2020
668,Revenue,CAHD,Placements OLA Special Schools and RB,Other L.A.s - General,Bristol City Council - Schools,1981.43, 21-Dec-2020
669,Revenue,CAHD,Placements OLA Special Schools and RB,Other L.A.s - General,Bristol City Council - Schools,1981.43, 21-Dec-2020
670,Revenue,CAHD,Placements OLA Special Schools and RB,Other L.A.s - General,Bristol City Council - Schools,645.99, 21-Dec-2020
671,Revenue,CAHD,Placements OLA Special Schools and RB,Other L.A.s - General,Bristol City Council - Schools,1268.04, 21-Dec-2020
672,Revenue,CAHD,Statemented Support Payments to OLAs,Other Public Bodies,Bristol City Council - Schools,1625.17, 21-Dec-2020
673,Revenue,CAHD,Placements OLA Special Schools and RB,Other L.A.s - General,Bristol City Council - Schools,792.41, 21-Dec-2020
674,Revenue,CAHD,Placements OLA Special Schools and RB,Other L.A.s - General,Bristol City Council - Schools,1268.04, 21-Dec-2020
675,Revenue,CAHD,Statemented Support Payments to OLAs,Other Public Bodies,Bristol City Council - Schools,554.13, 21-Dec-2020
676,Revenue,CAHD,Placements OLA Special Schools and RB,Other L.A.s - General,Bristol City Council - Schools,2774.72, 21-Dec-2020
677,Revenue,CAHD,Placements OLA Special Schools and RB,Other L.A.s - General,Bristol City Council - Schools,645.99, 21-Dec-2020
678,Revenue,CAHD,Placements OLA Special Schools and RB,Other L.A.s - General,Bristol City Council - Schools,2774.72, 21-Dec-2020
679,Revenue,CAHD,Placements OLA Special Schools and RB,Other L.A.s - General,Bristol City Council - Schools,2774.72, 21-Dec-2020
680,Revenue,CAHD,Statemented Support Payments to OLAs,Other Public Bodies,Bristol City Council - Schools,787.54, 21-Dec-2020
681,Revenue,CAHD,Statemented Support Payments to OLAs,Other Public Bodies,Bristol City Council - Schools,635.33, 21-Dec-2020
682,Revenue,CAHD,Placements OLA Special Schools and RB,Other L.A.s - General,Bristol City Council - Schools,1981.43, 21-Dec-2020
683,Revenue,CAHD,Placements OLA Special Schools and RB,Other L.A.s - General,Bristol City Council - Schools,645.99, 21-Dec-2020
684,Revenue,CAHD,Placements OLA Special Schools and RB,Other L.A.s - General,Bristol City Council - Schools,1268.04, 21-Dec-2020
685,Revenue,CAHD,Placements OLA Special Schools and RB,Other L.A.s - General,Bristol City Council - Schools,1981.43, 21-Dec-2020
686,Revenue,CAHD,Placements OLA Special Schools and RB,Other L.A.s - General,Bristol City Council - Schools,1268.04, 21-Dec-2020
687,Revenue,CAHD,Placements OLA Special Schools and RB,Other L.A.s - General,Bristol City Council - Schools,1268.04, 21-Dec-2020
688,Revenue,CAHD,Placements OLA Special Schools and RB,Other L.A.s - General,Bristol City Council - Schools,1981.43, 21-Dec-2020
689,Revenue,CAHD,Placements OLA Special Schools and RB,Other L.A.s - General,Bristol City Council - Schools,1707.43, 21-Dec-2020
690,Revenue,CAHD,Placements OLA Special Schools and RB,Other L.A.s - General,Bristol City Council - Schools,1906.67, 21-Dec-2020
691,Revenue,CAHD,Placements OLA Special Schools and RB,Other L.A.s - General,Bristol City Council - Schools,792.41, 21-Dec-2020
692,Revenue,CAHD,Placements OLA Special Schools and RB,Other L.A.s - General,Bristol City Council - Schools,2774.72, 21-Dec-2020
693,Revenue,CAHD,Placements OLA Special Schools and RB,Other L.A.s - General,Bristol City Council - Schools,1981.43, 21-Dec-2020
694,Revenue,CAHD,Placements OLA Special Schools and RB,Other L.A.s - General,Bristol City Council - Schools,10919.87, 21-Dec-2020
695,Revenue,CAHD,Placements OLA Special Schools and RB,Other L.A.s - General,Bristol City Council - Schools,792.41, 21-Dec-2020
696,Revenue,CAHD,Placements OLA Special Schools and RB,Other L.A.s - General,Bristol City Council - Schools,792.41, 21-Dec-2020
697,Revenue,CAHD,Placements OLA Special Schools and RB,Other L.A.s - General,Bristol City Council - Schools,1981.43, 21-Dec-2020
698,Revenue,CAHD,Placements OLA Special Schools and RB,Other L.A.s - General,Bristol City Council - Schools,645.99, 21-Dec-2020
699,Revenue,CAHD,Placements OLA Special Schools and RB,Other L.A.s - General,Bristol City Council - Schools,792.58, 21-Dec-2020
700,Revenue,CAHD,Placements OLA Special Schools and RB,Other L.A.s - General,Bristol City Council - Schools,2774.72, 21-Dec-2020
701,Revenue,CAHD,Placements OLA Special Schools and RB,Other L.A.s - General,Bristol City Council - Schools,1981.43, 21-Dec-2020
702,Revenue,CAHD,Placements OLA Special Schools and RB,Other L.A.s - General,Bristol City Council - Schools,645.99, 21-Dec-2020
703,Revenue,CAHD,Placements OLA Special Schools and RB,Other L.A.s - General,Bristol City Council - Schools,792.41, 21-Dec-2020
704,Revenue,CAHD,Placements OLA Special Schools and RB,Other L.A.s - General,Bristol City Council - Schools,2774.72, 21-Dec-2020
705,Revenue,CAHD,Placements OLA Special Schools and RB,Other L.A.s - General,Bristol City Council - Schools,645.99, 21-Dec-2020
706,Revenue,CAHD,Placements OLA Special Schools and RB,Other L.A.s - General,Bristol City Council - Schools,1585.17, 21-Dec-2020
707,Revenue,CAHD,Placements OLA Special Schools and RB,Other L.A.s - General,Bristol City Council - Schools,516.77, 21-Dec-2020
708,Revenue,CAHD,Placements OLA Special Schools and RB,Other L.A.s - General,Bristol City Council - Schools,1268.04, 21-Dec-2020
709,Revenue,CAHD,Placements OLA Special Schools and RB,Other L.A.s - General,Bristol City Council - Schools,1268.04, 21-Dec-2020
710,Revenue,CAHD,Placements OLA Special Schools and RB,Other L.A.s - General,Bristol City Council - Schools,1981.43, 21-Dec-2020
711,Revenue,CAHD,Placements OLA Special Schools and RB,Other L.A.s - General,Bristol City Council - Schools,645.99, 21-Dec-2020
712,Revenue,CAHD,Placements OLA Special Schools and RB,Other L.A.s - General,Bristol City Council - Schools,2774.72, 21-Dec-2020
713,Revenue,CAHD,Placements OLA Special Schools and RB,Other L.A.s - General,Bristol City Council - Schools,1268.04, 21-Dec-2020
714,Revenue,CAHD,Placements OLA Special Schools and RB,Other L.A.s - General,Bristol City Council - Schools,1268.04, 21-Dec-2020
715,Revenue,CAHD,Schools Specific Grant Income,Other Public Bodies,Bristol City Council Schools General,630.00, 04-Dec-2020
716,Revenue,CAHD,CSC - LAC Placements,Personal Needs of Clients,Bristol Clifton & West of England Zoological,600.00, 24-Dec-2020
717,Revenue,CAHD,Mental Capacity Act / DOLS,Grants to Voluntary Bodies,Bristol MIND,752.02, 18-Dec-2020
718,Revenue,CAHD,Mental Capacity Act / DOLS,Preventative Assistance,Bristol MIND,556.37, 21-Dec-2020
719,Revenue,CAHD,SEN High Needs - Not at School Base,Other Private Contractors,Bristol Tuition Limited,684.00, 09-Dec-2020
720,Revenue,CAHD,SEN High Needs - Not at School Base,Other Private Contractors,Bristol Tuition Limited,532.00, 09-Dec-2020
721,Revenue,CAHD,Statemented Support Payments to OLAs,Other Public Bodies,Broadlands Academy,1332.27, 21-Dec-2020
722,Revenue,CAHD,Statemented Support Payments to OLAs,Other Public Bodies,Broadlands Academy,835.17, 21-Dec-2020
723,Revenue,CAHD,North - Community based support,Permanent Residential,Brockhills Farm,3300.00, 15-Dec-2020
724,Revenue,CAHD,Supporting People Programme,Grants to Voluntary Bodies,Bromford  :  Merlin Housing Society,15637.00, 01-Dec-2020
725,Revenue,CAHD,Supporting People Programme,Grants to Voluntary Bodies,Bromford  :  Merlin Housing Society,2741.00, 01-Dec-2020
726,Revenue,CAHD,Supporting People Programme,Grants to Voluntary Bodies,Bromford  :  Merlin Housing Society,22940.00, 01-Dec-2020
727,Revenue,CAHD,Supporting People Programme,Grants to Voluntary Bodies,Bromford  :  Merlin Housing Society,1113.00, 01-Dec-2020
728,Revenue,CAHD,Supporting People Programme,Grants to Voluntary Bodies,Bromford  :  Merlin Housing Society,15637.00, 30-Dec-2020
729,Revenue,CAHD,Supporting People Programme,Grants to Voluntary Bodies,Bromford  :  Merlin Housing Society,2741.00, 30-Dec-2020
730,Revenue,CAHD,Supporting People Programme,Grants to Voluntary Bodies,Bromford  :  Merlin Housing Society,22940.00, 30-Dec-2020
731,Revenue,CAHD,Supporting People Programme,Grants to Voluntary Bodies,Bromford  :  Merlin Housing Society,1113.00, 30-Dec-2020
732,Revenue,CAHD,Parent Partnership,Fees - General,Individual,5000.00, 24-Dec-2020
733,Revenue,CAHD,South Glos Users in South Glos Homes,Permanent Nursing,Brunelcare,788.23, 24-Dec-2020
734,Revenue,CAHD,South Glos Users in South Glos Homes,Permanent Nursing,Brunelcare,788.23, 24-Dec-2020
735,Revenue,CAHD,South Glos Users in South Glos Homes,Permanent Nursing,Brunelcare,788.23, 24-Dec-2020
736,Revenue,CAHD,South Glos Users in South Glos Homes,Permanent Nursing,Brunelcare,788.23, 24-Dec-2020
737,Revenue,CAHD,South Glos Users in South Glos Homes,Permanent Nursing,Brunelcare,788.23, 24-Dec-2020
738,Revenue,CAHD,South Glos Users in South Glos Homes,Permanent Nursing,Brunelcare,788.23, 24-Dec-2020
739,Revenue,CAHD,South Glos Users in South Glos Homes,Permanent Nursing,Brunelcare,788.23, 24-Dec-2020
740,Revenue,CAHD,South Glos Users in South Glos Homes,Permanent Nursing,Brunelcare,788.23, 24-Dec-2020
741,Revenue,CAHD,South Glos Users in South Glos Homes,Permanent Nursing,Brunelcare,788.23, 24-Dec-2020
742,Revenue,CAHD,South Glos Users in South Glos Homes,Permanent Nursing,Brunelcare,788.23, 24-Dec-2020
743,Revenue,CAHD,South Glos Users in South Glos Homes,Permanent Nursing,Brunelcare,788.23, 24-Dec-2020
744,Revenue,CAHD,South Glos Users in South Glos Homes,Permanent Nursing,Brunelcare,788.23, 24-Dec-2020
745,Revenue,CAHD,South Glos Users in South Glos Homes,Permanent Nursing,Brunelcare,788.23, 24-Dec-2020
746,Revenue,CAHD,North - S117,Permanent Nursing,Brunelcare,3621.73, 24-Dec-2020
747,Revenue,CAHD,North - S117,Permanent Nursing,Brunelcare,3621.73, 24-Dec-2020
748,Revenue,CAHD,South - Commissioned Services,Permanent Nursing,Brunelcare,3621.73, 24-Dec-2020
749,Revenue,CAHD,South - Commissioned Services,Permanent Nursing,Brunelcare,2629.93, 24-Dec-2020
750,Revenue,CAHD,South - Commissioned Services,Permanent Nursing,Brunelcare,2796.04, 24-Dec-2020
751,Revenue,CAHD,South - Commissioned Services,Permanent Nursing,Brunelcare,2913.64, 24-Dec-2020
752,Revenue,CAHD,South - Commissioned Services,Permanent Nursing,Brunelcare,2617.24, 24-Dec-2020
753,Revenue,CAHD,South - Commissioned Services,Permanent Nursing,Brunelcare,3016.89, 24-Dec-2020
754,Revenue,CAHD,South - Commissioned Services,Permanent Nursing,Brunelcare,2085.47, 24-Dec-2020
755,Revenue,CAHD,Central - Commissioned Services,Permanent Nursing,Brunelcare,2971.41, 24-Dec-2020
756,Revenue,CAHD,South - Commissioned Services,Respite Planned - Nursing,Brunelcare,4409.96, 24-Dec-2020
757,Revenue,CAHD,North - Community based support,Permanent Nursing,Brunelcare,3621.73, 24-Dec-2020
758,Revenue,CAHD,North - Community based support,Permanent Nursing,Brunelcare,2897.53, 24-Dec-2020
759,Revenue,CAHD,North - Community based support,Permanent Nursing,Brunelcare,2886.81, 24-Dec-2020
760,Revenue,CAHD,South - Commissioned Services,Other Small Contracts,Brunelcare,14820.56, 08-Dec-2020
761,Revenue,CAHD,North - Community based support,Other Small Contracts,Brunelcare,346.48, 08-Dec-2020
762,Revenue,CAHD,Central - Commissioned Services,Other Small Contracts,Brunelcare,209.84, 01-Dec-2020
763,Revenue,CAHD,South - Commissioned Services,Other Small Contracts,Brunelcare,15059.68, 01-Dec-2020
764,Revenue,CAHD,North - Community based support,Other Small Contracts,Brunelcare,346.48, 01-Dec-2020
765,Revenue,CAHD,Central - Commissioned Services,Other Small Contracts,Brunelcare,283.04, 08-Dec-2020
766,Revenue,CAHD,South - Commissioned Services,Other Small Contracts,Brunelcare,14425.28, 08-Dec-2020
767,Revenue,CAHD,North - Community based support,Other Small Contracts,Brunelcare,361.12, 08-Dec-2020
768,Revenue,CAHD,Central - Commissioned Services,Other Small Contracts,Brunelcare,283.04, 15-Dec-2020
769,Revenue,CAHD,South - Commissioned Services,Other Small Contracts,Brunelcare,14127.60, 15-Dec-2020
770,Revenue,CAHD,North - Community based support,Other Small Contracts,Brunelcare,370.88, 15-Dec-2020
771,Revenue,CAHD,Central - Commissioned Services,Other Small Contracts,Brunelcare,307.44, 21-Dec-2020
772,Revenue,CAHD,South - Commissioned Services,Other Small Contracts,Brunelcare,14825.44, 21-Dec-2020
773,Revenue,CAHD,North - Community based support,Other Small Contracts,Brunelcare,356.24, 21-Dec-2020
774,Revenue,CAHD,Central - Commissioned Services,Other Small Contracts,Brunelcare,278.16, 21-Dec-2020
775,Revenue,CAHD,South - Commissioned Services,Other Small Contracts,Brunelcare,15220.72, 21-Dec-2020
776,Revenue,CAHD,North - Community based support,Other Small Contracts,Brunelcare,361.12, 21-Dec-2020
777,Revenue,CAHD,Covid - ASC - Infection Control,Grants to Voluntary Bodies,Brunelcare,15228.50, 02-Dec-2020
778,Revenue,CAHD,North - S117,Permanent Residential,Buckland Care,3600.00, 15-Dec-2020
779,Revenue,CAHD,Training - Adult Services,Training Expenses,BW Training & Coaching Ltd,1080.00, 08-Dec-2020
780,Revenue,CAHD,Training - Adult Services,Training Expenses,BW Training & Coaching Ltd,560.00, 17-Dec-2020
781,Revenue,CAHD,Training - Adult Services,Training Expenses,BW Training & Coaching Ltd,1250.00, 14-Dec-2020
782,Revenue,CAHD,Training - Adult Services,Training Expenses,BW Training & Coaching Ltd,680.00, 14-Dec-2020
783,Revenue,CAHD,Training - Adult Services,Training Expenses,BW Training & Coaching Ltd,600.00, 15-Dec-2020
784,Revenue,CAHD,Training - Adult Services,Training Expenses,BW Training & Coaching Ltd,1080.00, 23-Dec-2020
785,Revenue,CAHD,CSC - Vinney Green Secure Unit,Service Contracts (Premises),BWS Standfast Fire & Security Systems,806.00, 07-Dec-2020
786,Revenue,CAHD,CSC - Vinney Green Secure Unit,R & M by Departments,BWS Standfast Fire & Security Systems,3732.30, 30-Dec-2020
787,Revenue,CAHD,CSC - Agency Fostering,Foster Parent Allowances,By the Bridge Ltd,4360.15, 08-Dec-2020
788,Revenue,CAHD,CSC - Agency Fostering,Foster Parent Allowances,By the Bridge Ltd,4242.57, 08-Dec-2020
789,Revenue,CAHD,CSC - Agency Fostering,Foster Parent Allowances,By the Bridge Ltd,4219.50, 30-Dec-2020
790,Revenue,CAHD,CSC - Agency Fostering,Foster Parent Allowances,By the Bridge Ltd,4105.71, 30-Dec-2020
791,Revenue,CAHD,Social Lettings Agency,Rent,Individual,710.96, 24-Dec-2020
792,Revenue,CAHD,Social Lettings Agency,Fees - General,Individual,16.16, 24-Dec-2020
793,Revenue,CAHD,North - Community based support,Permanent Nursing,Clevedon Court Nursing Home,3448.16, 15-Dec-2020
794,Revenue,CAHD,Schools Specific Grant Income,Schools Funding,Cabot Learning Federation,15000.00, 15-Dec-2020
795,Revenue,CAHD,Statemented Support Academies,Other Public Bodies,Cabot Learning Federation,918.71, 22-Dec-2020
796,Revenue,CAHD,Statemented Support Academies,Other Public Bodies,Cabot Learning Federation,1202.39, 22-Dec-2020
797,Revenue,CAHD,Statemented Support Academies,Other Public Bodies,Cabot Learning Federation,908.00, 22-Dec-2020
798,Revenue,CAHD,Statemented Support Academies,Other Public Bodies,Cabot Learning Federation,1666.67, 22-Dec-2020
799,Revenue,CAHD,Statemented Support Academies,Other Public Bodies,Cabot Learning Federation,1103.25, 22-Dec-2020
800,Revenue,CAHD,Statemented Support Academies,Other Public Bodies,Cabot Learning Federation,907.83, 22-Dec-2020
801,Revenue,CAHD,Statemented Support Academies,Other Public Bodies,Cabot Learning Federation,1899.58, 22-Dec-2020
802,Revenue,CAHD,Statemented Support Academies,Other Public Bodies,Cabot Learning Federation,788.22, 22-Dec-2020
803,Revenue,CAHD,Statemented Support Academies,Other Public Bodies,Cabot Learning Federation,957.92, 22-Dec-2020
804,Revenue,CAHD,Statemented Support Academies,Other Public Bodies,Cabot Learning Federation,1654.33, 22-Dec-2020
805,Revenue,CAHD,Statemented Support Academies,Other Public Bodies,Cabot Learning Federation,2206.25, 22-Dec-2020
806,Revenue,CAHD,Statemented Support Payments to OLAs,Other Public Bodies,Cabot Learning Federation,1013.94, 21-Dec-2020
807,Revenue,CAHD,Statemented Support Academies,Other Public Bodies,Cabot Learning Federation,658.75, 22-Dec-2020
808,Revenue,CAHD,Statemented Support Academies,Other Public Bodies,Cabot Learning Federation,1854.42, 22-Dec-2020
809,Revenue,CAHD,Statemented Support Academies,Other Public Bodies,Cabot Learning Federation,632.67, 22-Dec-2020
810,Revenue,CAHD,Statemented Support Academies,Other Public Bodies,Cabot Learning Federation,695.61, 22-Dec-2020
811,Revenue,CAHD,Statemented Support Academies,Other Public Bodies,Cabot Learning Federation,530.55, 22-Dec-2020
812,Revenue,CAHD,Statemented Support Academies,Other Public Bodies,Cabot Learning Federation,918.75, 22-Dec-2020
813,Revenue,CAHD,Statemented Support Academies,Other Public Bodies,Cabot Learning Federation,975.58, 22-Dec-2020
814,Revenue,CAHD,Statemented Support Academies,Other Public Bodies,Cabot Learning Federation,1052.92, 22-Dec-2020
815,Revenue,CAHD,Academy Resource Base Funding,Other Public Bodies,Cabot Learning Federation,821.92, 18-Dec-2020
816,Revenue,CAHD,Academy Resource Base Funding,Other Public Bodies,Cabot Learning Federation,849.32, 18-Dec-2020
817,Revenue,CAHD,Academy Resource Base Funding,Other Public Bodies,Cabot Learning Federation,821.92, 18-Dec-2020
818,Revenue,CAHD,Academy Resource Base Funding,Other Public Bodies,Cabot Learning Federation,849.32, 18-Dec-2020
819,Revenue,CAHD,Academy Resource Base Funding,Other Public Bodies,Cabot Learning Federation,849.32, 18-Dec-2020
820,Revenue,CAHD,Academy Resource Base Funding,Other Public Bodies,Cabot Learning Federation,5753.44, 18-Dec-2020
821,Revenue,CAHD,Academy Resource Base Funding,Other Public Bodies,Cabot Learning Federation,5945.24, 18-Dec-2020
822,Revenue,CAHD,Academy Resource Base Funding,Other Public Bodies,Cabot Learning Federation,5753.44, 18-Dec-2020
823,Revenue,CAHD,Academy Resource Base Funding,Other Public Bodies,Cabot Learning Federation,6794.56, 22-Dec-2020
824,Revenue,CAHD,Academy Resource Base Funding,Other Public Bodies,Cabot Learning Federation,1175.88, 22-Dec-2020
825,Revenue,CAHD,Academy Resource Base Funding,Other Public Bodies,Cabot Learning Federation,1702.97, 22-Dec-2020
826,Revenue,CAHD,Academy Resource Base Funding,Other Public Bodies,Cabot Learning Federation,1540.84, 22-Dec-2020
827,Revenue,CAHD,Academy Resource Base Funding,Other Public Bodies,Cabot Learning Federation,1175.88, 22-Dec-2020
828,Revenue,CAHD,Academy Resource Base Funding,Other Public Bodies,Cabot Learning Federation,1540.84, 22-Dec-2020
829,Revenue,CAHD,Academy Resource Base Funding,Other Public Bodies,Cabot Learning Federation,1175.88, 22-Dec-2020
830,Revenue,CAHD,Academy Resource Base Funding,Other Public Bodies,Cabot Learning Federation,1540.84, 22-Dec-2020
831,Revenue,CAHD,Academy Resource Base Funding,Other Public Bodies,Cabot Learning Federation,1175.88, 22-Dec-2020
832,Revenue,CAHD,Academy Resource Base Funding,Other Public Bodies,Cabot Learning Federation,1175.88, 22-Dec-2020
833,Revenue,CAHD,Academy Resource Base Funding,Other Public Bodies,Cabot Learning Federation,1702.97, 22-Dec-2020
834,Revenue,CAHD,Academy Resource Base Funding,Other Public Bodies,Cabot Learning Federation,648.69, 22-Dec-2020
835,Revenue,CAHD,Academy Resource Base Funding,Other Public Bodies,Cabot Learning Federation,1013.75, 22-Dec-2020
836,Revenue,CAHD,Academy Resource Base Funding,Other Public Bodies,Cabot Learning Federation,648.69, 22-Dec-2020
837,Revenue,CAHD,Academy Resource Base Funding,Other Public Bodies,Cabot Learning Federation,1540.84, 22-Dec-2020
838,Revenue,CAHD,Academy Resource Base Funding,Other Public Bodies,Cabot Learning Federation,2189.53, 22-Dec-2020
839,Revenue,CAHD,Academy Resource Base Funding,Other Public Bodies,Cabot Learning Federation,2189.53, 22-Dec-2020
840,Revenue,CAHD,Academy Resource Base Funding,Other Public Bodies,Cabot Learning Federation,1175.88, 22-Dec-2020
841,Revenue,CAHD,Academy Resource Base Funding,Other Public Bodies,Cabot Learning Federation,1175.88, 22-Dec-2020
842,Revenue,CAHD,Academy Resource Base Funding,Other Public Bodies,Cabot Learning Federation,1175.88, 22-Dec-2020
843,Revenue,CAHD,Academy Resource Base Funding,Other Public Bodies,Cabot Learning Federation,1175.88, 22-Dec-2020
844,Revenue,CAHD,Academy Resource Base Funding,Other Public Bodies,Cabot Learning Federation,1702.97, 22-Dec-2020
845,Revenue,CAHD,Academy Resource Base Funding,Other Public Bodies,Cabot Learning Federation,2032.57, 22-Dec-2020
846,Revenue,CAHD,Statemented Support Payments to OLAs,Other Public Bodies,Cabot Learning Federation,872.46, 21-Dec-2020
847,Revenue,CAHD,Statemented Support Academies,Other Public Bodies,Cabot Learning Federation,6506.68, 22-Dec-2020
848,Revenue,CAHD,Statemented Support Academies,Other Public Bodies,Cabot Learning Federation,710.58, 22-Dec-2020
849,Revenue,CAHD,Statemented Support Academies,Other Public Bodies,Cabot Learning Federation,804.08, 22-Dec-2020
850,Revenue,CAHD,Statemented Support Academies,Other Public Bodies,Cabot Learning Federation,554.13, 22-Dec-2020
851,Revenue,CAHD,Statemented Support Academies,Other Public Bodies,Cabot Learning Federation,742.77, 22-Dec-2020
852,Revenue,CAHD,Statemented Support Academies,Other Public Bodies,Cabot Learning Federation,778.14, 22-Dec-2020
853,Revenue,CAHD,Statemented Support Academies,Other Public Bodies,Cabot Learning Federation,813.51, 22-Dec-2020
854,Revenue,CAHD,Schools Specific Grant Income,Other Public Bodies,Cabot Learning Federation,500.00, 15-Dec-2020
855,Revenue,CAHD,Statemented Support Payments to OLAs,Other Public Bodies,Cabot Learning Federation,601.29, 21-Dec-2020
856,Revenue,CAHD,Statemented Support Academies,Other Public Bodies,Cabot Learning Federation,1131.84, 22-Dec-2020
857,Revenue,CAHD,Statemented Support Academies,Other Public Bodies,Cabot Learning Federation,589.50, 22-Dec-2020
858,Revenue,CAHD,Statemented Support Academies,Other Public Bodies,Cabot Learning Federation,554.13, 22-Dec-2020
859,Revenue,CAHD,Statemented Support Academies,Other Public Bodies,Cabot Learning Federation,801.72, 22-Dec-2020
860,Revenue,CAHD,Statemented Support Academies,Other Public Bodies,Cabot Learning Federation,1096.47, 22-Dec-2020
861,Revenue,CAHD,Statemented Support Academies,Other Public Bodies,Cabot Learning Federation,730.98, 22-Dec-2020
862,Revenue,CAHD,Statemented Support Academies,Other Public Bodies,Cabot Learning Federation,907.83, 22-Dec-2020
863,Revenue,CAHD,Statemented Support Academies,Other Public Bodies,Cabot Learning Federation,801.92, 22-Dec-2020
864,Revenue,CAHD,Statemented Support Academies,Other Public Bodies,Cabot Learning Federation,530.55, 22-Dec-2020
865,Revenue,CAHD,Statemented Support Academies,Other Public Bodies,Cabot Learning Federation,931.41, 22-Dec-2020
866,Revenue,CAHD,Statemented Support Academies,Other Public Bodies,Cabot Learning Federation,577.50, 22-Dec-2020
867,Revenue,CAHD,Statemented Support Academies,Other Public Bodies,Cabot Learning Federation,5188.32, 22-Dec-2020
868,Revenue,CAHD,Statemented Support Academies,Other Public Bodies,Cabot Learning Federation,966.83, 22-Dec-2020
869,Revenue,CAHD,Statemented Support Academies,Other Public Bodies,Cabot Learning Federation,872.46, 22-Dec-2020
870,Revenue,CAHD,Statemented Support Payments to OLAs,Other Public Bodies,Cabot Learning Federation,665.33, 21-Dec-2020
871,Revenue,CAHD,Early Years High Needs Support,Other Private Contractors,Caerleon Childcare,515.70, 21-Dec-2020
872,Revenue,CAHD,North - Community based support,Fees & Charges Income - General,Caernarvon House,758.22, 15-Dec-2020
873,Revenue,CAHD,North - Community based support,Permanent Nursing,Caernarvon House,4710.40, 15-Dec-2020
874,Revenue,CAHD,North - S117,Permanent Nursing,Caernarvon House,3990.24, 15-Dec-2020
875,Revenue,CAHD,South - Commissioned Services,Permanent Nursing,Caernarvon House,4915.20, 15-Dec-2020
876,Revenue,CAHD,South - Commissioned Services,Fees & Charges Income - General,Caernarvon House,1172.51, 15-Dec-2020
877,Revenue,CAHD,South - Commissioned Services,Permanent Nursing,Caernarvon House,4300.80, 15-Dec-2020
878,Revenue,CAHD,South - S117,Permanent Nursing,Caernarvon House,4915.20, 15-Dec-2020
879,Revenue,CAHD,South - Commissioned Services,Permanent Nursing,Caernarvon House,16114.29, 15-Dec-2020
880,Revenue,CAHD,South - Commissioned Services,Permanent Nursing,Caernarvon House,4800.00, 15-Dec-2020
881,Revenue,CAHD,CSC - Residential Placements,Permanent Residential,Cambian Childcare Ltd,18428.70, 04-Dec-2020
882,Revenue,CAHD,CSC - Residential Placements,Permanent Residential,Cambian Childcare Ltd,22500.00, 04-Dec-2020
883,Revenue,CAHD,CSC - Residential Placements,Permanent Residential,Cambian Childcare Ltd,19042.99, 29-Dec-2020
884,Revenue,CAHD,CSC - Residential Placements,Permanent Residential,Cambian Childcare Ltd,23250.00, 29-Dec-2020
885,Revenue,CAHD,Schools Specific Grant Income,Other Public Bodies,Cambian Childcare Ltd,630.00, 04-Dec-2020
886,Revenue,CAHD,Post 16 High Needs Placements,Other Private Contractors,Cambian Whinfell School Limited,9897.57, 15-Dec-2020
887,Revenue,CAHD,Post 16 High Needs Placements,Other Private Contractors,Cambian Whinfell School Limited,48238.15, 24-Dec-2020
888,Revenue,CAHD,Post 16 High Needs Placements,Other Private Contractors,Cambian Whinfell School Limited,24166.67, 29-Dec-2020
889,Revenue,CAHD,CSC - Vinney Green Secure Unit,Educational Materials,Cambridge University Press,560.25, 30-Dec-2020
890,Revenue,CAHD,North - Community based support,Day Care / Social Activities,Camphill Communities Thornbury Limited,966.00, 04-Dec-2020
891,Revenue,CAHD,North - Community based support,Other Small Contracts,Camphill Communities Thornbury Limited,565.11, 04-Dec-2020
892,Revenue,CAHD,North - Community based support,Supported Living,Camphill Communities Thornbury Limited,879.06, 04-Dec-2020
893,Revenue,CAHD,North - Community based support,Day Care / Social Activities,Camphill Communities Thornbury Limited,772.80, 11-Dec-2020
894,Revenue,CAHD,North - Community based support,Other Small Contracts,Camphill Communities Thornbury Limited,1308.93, 11-Dec-2020
895,Revenue,CAHD,North - Community based support,Supported Living,Camphill Communities Thornbury Limited,893.55, 11-Dec-2020
896,Revenue,CAHD,North - Community based support,Day Care / Social Activities,Camphill Communities Thornbury Limited,685.86, 17-Dec-2020
897,Revenue,CAHD,North - Community based support,Other Small Contracts,Camphill Communities Thornbury Limited,1656.69, 17-Dec-2020
898,Revenue,CAHD,North - Community based support,Supported Living,Camphill Communities Thornbury Limited,879.06, 17-Dec-2020
899,Revenue,CAHD,North - Community based support,Day Care / Social Activities,Camphill Communities Thornbury Limited,685.86, 24-Dec-2020
900,Revenue,CAHD,North - Community based support,Other Small Contracts,Camphill Communities Thornbury Limited,1627.71, 24-Dec-2020
901,Revenue,CAHD,North - Community based support,Supported Living,Camphill Communities Thornbury Limited,888.72, 24-Dec-2020
902,Revenue,CAHD,North - Community based support,Day Care / Social Activities,Camphill Communities Thornbury Limited,685.86, 30-Dec-2020
903,Revenue,CAHD,North - Community based support,Other Small Contracts,Camphill Communities Thornbury Limited,1632.54, 30-Dec-2020
904,Revenue,CAHD,North - Community based support,Supported Living,Camphill Communities Thornbury Limited,879.06, 30-Dec-2020
905,Revenue,CAHD,North - S117,Permanent Residential,Canjayor,3937.76, 15-Dec-2020
906,Revenue,CAHD,CSC - Asylum Seekers - Unaccompanied,Foster Parent Allowances,Capstone Foster Care (South West) Limited,3295.80, 02-Dec-2020
907,Revenue,CAHD,CSC - Agency Fostering,Foster Parent Allowances,Capstone Foster Care (South West) Limited,3385.80, 02-Dec-2020
908,Revenue,CAHD,CSC - Agency Fostering,Foster Parent Allowances,Capstone Foster Care (South West) Limited,3385.80, 02-Dec-2020
909,Revenue,CAHD,CSC - Agency Fostering,Foster Parent Allowances,Capstone Foster Care (South West) Limited,3552.90, 02-Dec-2020
910,Revenue,CAHD,CSC - Asylum Seekers - Unaccompanied,Foster Parent Allowances,Capstone Foster Care (South West) Limited,3405.66, 30-Dec-2020
911,Revenue,CAHD,CSC - Agency Fostering,Foster Parent Allowances,Capstone Foster Care (South West) Limited,3671.33, 30-Dec-2020
912,Revenue,CAHD,CSC - Agency Fostering,Foster Parent Allowances,Capstone Foster Care (South West) Limited,3498.66, 30-Dec-2020
913,Revenue,CAHD,CSC - Agency Fostering,Foster Parent Allowances,Capstone Foster Care (South West) Limited,3498.66, 30-Dec-2020
914,Revenue,CAHD,Central - Commissioned Services,Other Small Contracts,Care 1st Homecare,3017.10, 16-Dec-2020
915,Revenue,CAHD,Central - Commissioned Services,Other Small Contracts,Care 1st Homecare,3003.75, 16-Dec-2020
916,Revenue,CAHD,Central - Commissioned Services,Other Small Contracts,Care 1st Homecare,2994.85, 16-Dec-2020
917,Revenue,CAHD,Central - Commissioned Services,Other Small Contracts,Care 1st Homecare,2985.95, 16-Dec-2020
918,Revenue,CAHD,Central - Commissioned Services,Other Small Contracts,Care 1st Homecare,3021.55, 16-Dec-2020
919,Revenue,CAHD,Central - Commissioned Services,Other Small Contracts,Care 1st Homecare,2981.50, 30-Dec-2020
920,Revenue,CAHD,North - Community based support,Supported Living,Care Horizons,5435.28, 15-Dec-2020
921,Revenue,CAHD,North - Community based support,Supported Living,Care Horizons,5435.28, 15-Dec-2020
922,Revenue,CAHD,Central - Commissioned Services,Other Small Contracts,Care Horizons Limited,1242.36, 03-Dec-2020
923,Revenue,CAHD,South - Commissioned Services,Other Small Contracts,Care Horizons Limited,493.00, 03-Dec-2020
924,Revenue,CAHD,North - Community based support,Day Care / Social Activities,Care Horizons Limited,19.72, 03-Dec-2020
925,Revenue,CAHD,North - Community based support,Other Small Contracts,Care Horizons Limited,744.43, 03-Dec-2020
926,Revenue,CAHD,Younger MH non-res purchasing,Other Small Contracts,Care Horizons Limited,236.64, 03-Dec-2020
927,Revenue,CAHD,Central - Commissioned Services,Other Small Contracts,Care Horizons Limited,1188.13, 16-Dec-2020
928,Revenue,CAHD,South - Commissioned Services,Other Small Contracts,Care Horizons Limited,374.68, 16-Dec-2020
929,Revenue,CAHD,North - Community based support,Other Small Contracts,Care Horizons Limited,744.43, 16-Dec-2020
930,Revenue,CAHD,Younger MH non-res purchasing,Other Small Contracts,Care Horizons Limited,236.64, 16-Dec-2020
931,Revenue,CAHD,Central - Commissioned Services,Other Small Contracts,Care Horizons Limited,1227.57, 15-Dec-2020
932,Revenue,CAHD,South - Commissioned Services,Other Small Contracts,Care Horizons Limited,493.00, 15-Dec-2020
933,Revenue,CAHD,North - Community based support,Other Small Contracts,Care Horizons Limited,734.57, 15-Dec-2020
934,Revenue,CAHD,Younger MH non-res purchasing,Other Small Contracts,Care Horizons Limited,251.43, 15-Dec-2020
935,Revenue,CAHD,Central - Commissioned Services,Other Small Contracts,Care Horizons Limited,1193.06, 21-Dec-2020
936,Revenue,CAHD,South - Commissioned Services,Other Small Contracts,Care Horizons Limited,493.00, 21-Dec-2020
937,Revenue,CAHD,North - Community based support,Day Care / Social Activities,Care Horizons Limited,276.08, 21-Dec-2020
938,Revenue,CAHD,North - Community based support,Other Small Contracts,Care Horizons Limited,798.66, 21-Dec-2020
939,Revenue,CAHD,Younger MH non-res purchasing,Other Small Contracts,Care Horizons Limited,241.57, 21-Dec-2020
940,Revenue,CAHD,Covid - ASC - Infection Control,Grants to Voluntary Bodies,Care Unite Ltd t/a Home Instead Senior Care,1595.37, 02-Dec-2020
941,Revenue,CAHD,Covid 19 -Adult Social Care,Other Small Contracts,Carepride Ltd,9.86, 08-Dec-2020
942,Revenue,CAHD,Central - Commissioned Services,Other Small Contracts,Carepride Ltd,596.53, 08-Dec-2020
943,Revenue,CAHD,South - Commissioned Services,Other Small Contracts,Carepride Ltd,98.60, 08-Dec-2020
944,Revenue,CAHD,North - Community based support,Other Small Contracts,Carepride Ltd,236.64, 08-Dec-2020
945,Revenue,CAHD,Covid 19 -Adult Social Care,Other Small Contracts,Carepride Ltd,9.86, 15-Dec-2020
946,Revenue,CAHD,Central - Commissioned Services,Other Small Contracts,Carepride Ltd,557.09, 15-Dec-2020
947,Revenue,CAHD,South - Commissioned Services,Other Small Contracts,Carepride Ltd,93.67, 15-Dec-2020
948,Revenue,CAHD,North - Community based support,Other Small Contracts,Carepride Ltd,221.85, 15-Dec-2020
949,Revenue,CAHD,Covid 19 -Adult Social Care,Other Small Contracts,Carepride Ltd,9.86, 15-Dec-2020
950,Revenue,CAHD,Central - Commissioned Services,Other Small Contracts,Carepride Ltd,616.25, 15-Dec-2020
951,Revenue,CAHD,South - Commissioned Services,Other Small Contracts,Carepride Ltd,98.60, 15-Dec-2020
952,Revenue,CAHD,North - Community based support,Other Small Contracts,Carepride Ltd,226.78, 15-Dec-2020
953,Revenue,CAHD,SLA Grants - Support Serv,Grants to Voluntary Bodies,Carers Support Centre,12275.00, 30-Dec-2020
954,Revenue,CAHD,SLA Grants - Support Serv,Grants to Voluntary Bodies,Carers Support Centre,25275.00, 30-Dec-2020
955,Revenue,CAHD,Health Inequalities,Other Small Contracts,Carers Support Centre,60477.00, 30-Dec-2020
956,Revenue,CAHD,Covid - ASC - Infection Control,Grants to Voluntary Bodies,Caring Comes 1st Limited,6381.47, 16-Dec-2020
957,Revenue,CAHD,CSC - Care Leavers Independent Living,Independent Living,Caring for Communities and People,8582.31, 16-Dec-2020
958,Revenue,CAHD,Supporting People Programme,Grants to Voluntary Bodies,Caring for Communities and People,12849.00, 04-Dec-2020
959,Revenue,CAHD,Supporting People Programme,Grants to Voluntary Bodies,Caring for Communities and People,12849.00, 30-Dec-2020
960,Revenue,CAHD,CSC - Care Leavers Independent Living,Adults - Family Support,Caring for Communities and People,573.76, 14-Dec-2020
961,Revenue,CAHD,CSC - Care Leavers Independent Living,Adults - Family Support,Caring for Communities and People,767.54, 15-Dec-2020
962,Revenue,CAHD,Social Lettings Agency,Rent,Individual,699.32, 21-Dec-2020
963,Revenue,CAHD,Social Lettings Agency,Fees - General,Individual,20.57, 21-Dec-2020
964,Revenue,CAHD,CSC - Legal Fees,Legal Fees,Caroline Mason,750.00, 17-Dec-2020
965,Revenue,CAHD,Statemented Support Academies,Other Public Bodies,Castle School Education Trust,530.55, 22-Dec-2020
966,Revenue,CAHD,Statemented Support Academies,Other Public Bodies,Castle School Education Trust,565.92, 22-Dec-2020
967,Revenue,CAHD,Statemented Support Academies,Other Public Bodies,Castle School Education Trust,778.14, 22-Dec-2020
968,Revenue,CAHD,Statemented Support Academies,Other Public Bodies,Castle School Education Trust,931.41, 22-Dec-2020
969,Revenue,CAHD,Statemented Support Academies,Other Public Bodies,Castle School Education Trust,821.50, 22-Dec-2020
970,Revenue,CAHD,Statemented Support Academies,Other Public Bodies,Castle School Education Trust,672.03, 22-Dec-2020
971,Revenue,CAHD,Statemented Support Academies,Other Public Bodies,Castle School Education Trust,577.71, 22-Dec-2020
972,Revenue,CAHD,Statemented Support Academies,Other Public Bodies,Castle School Education Trust,505.08, 22-Dec-2020
973,Revenue,CAHD,Statemented Support Academies,Other Public Bodies,Castle School Education Trust,1461.96, 22-Dec-2020
974,Revenue,CAHD,Statemented Support Academies,Other Public Bodies,Castle School Education Trust,1002.15, 22-Dec-2020
975,Revenue,CAHD,Statemented Support Academies,Other Public Bodies,Castle School Education Trust,613.08, 22-Dec-2020
976,Revenue,CAHD,Statemented Support Academies,Other Public Bodies,Castle School Education Trust,672.03, 22-Dec-2020
977,Revenue,CAHD,Statemented Support Academies,Other Public Bodies,Castle School Education Trust,1120.05, 22-Dec-2020
978,Revenue,CAHD,Statemented Support Academies,Other Public Bodies,Castle School Education Trust,636.66, 22-Dec-2020
979,Revenue,CAHD,Statemented Support Academies,Other Public Bodies,Castle School Education Trust,589.08, 22-Dec-2020
980,Revenue,CAHD,Statemented Support Academies,Other Public Bodies,Castle School Education Trust,954.99, 22-Dec-2020
981,Revenue,CAHD,Statemented Support Academies,Other Public Bodies,Castle School Education Trust,577.71, 22-Dec-2020
982,Revenue,CAHD,Statemented Support Academies,Other Public Bodies,Castle School Education Trust,624.87, 22-Dec-2020
983,Revenue,CAHD,Statemented Support Academies,Other Public Bodies,Castle School Education Trust,825.30, 22-Dec-2020
984,Revenue,CAHD,Statemented Support Academies,Other Public Bodies,Castle School Education Trust,1190.79, 22-Dec-2020
985,Revenue,CAHD,Statemented Support Academies,Other Public Bodies,Castle School Education Trust,848.88, 22-Dec-2020
986,Revenue,CAHD,Statemented Support Academies,Other Public Bodies,Castle School Education Trust,841.00, 22-Dec-2020
987,Revenue,CAHD,Statemented Support Academies,Other Public Bodies,Castle School Education Trust,1237.95, 22-Dec-2020
988,Revenue,CAHD,Statemented Support Academies,Other Public Bodies,Castle School Education Trust,1061.10, 22-Dec-2020
989,Revenue,CAHD,Statemented Support Academies,Other Public Bodies,Castle School Education Trust,518.76, 22-Dec-2020
990,Revenue,CAHD,Statemented Support Academies,Other Public Bodies,Castle School Education Trust,577.71, 22-Dec-2020
991,Revenue,CAHD,Statemented Support Academies,Other Public Bodies,Castle School Education Trust,1143.63, 22-Dec-2020
992,Revenue,CAHD,Statemented Support Academies,Other Public Bodies,Castle School Education Trust,754.25, 22-Dec-2020
993,Revenue,CAHD,Statemented Support Academies,Other Public Bodies,Castle School Education Trust,1485.54, 22-Dec-2020
994,Revenue,CAHD,Statemented Support Academies,Other Public Bodies,Castle School Education Trust,888.75, 22-Dec-2020
995,Revenue,CAHD,Statemented Support Academies,Other Public Bodies,Castle School Education Trust,1261.75, 22-Dec-2020
996,Revenue,CAHD,Statemented Support Academies,Other Public Bodies,Castle School Education Trust,1322.75, 22-Dec-2020
997,Revenue,CAHD,Statemented Support Academies,Other Public Bodies,Castle School Education Trust,801.92, 22-Dec-2020
998,Revenue,CAHD,Statemented Support Academies,Other Public Bodies,Castle School Education Trust,943.17, 22-Dec-2020
999,Revenue,CAHD,Statemented Support Academies,Other Public Bodies,Castle School Education Trust,1267.50, 22-Dec-2020
1000,Revenue,CAHD,Academy Resource Base Funding,Other Public Bodies,Castle School Education Trust,821.92, 07-Dec-2020
1001,Revenue,CAHD,Academy Resource Base Funding,Other Public Bodies,Castle School Education Trust,849.32, 07-Dec-2020
1002,Revenue,CAHD,Academy Resource Base Funding,Other Public Bodies,Castle School Education Trust,821.92, 07-Dec-2020
1003,Revenue,CAHD,Academy Resource Base Funding,Other Public Bodies,Castle School Education Trust,849.32, 07-Dec-2020
1004,Revenue,CAHD,Academy Resource Base Funding,Other Public Bodies,Castle School Education Trust,821.92, 18-Dec-2020
1005,Revenue,CAHD,Academy Resource Base Funding,Other Public Bodies,Castle School Education Trust,849.32, 18-Dec-2020
1006,Revenue,CAHD,Academy Resource Base Funding,Other Public Bodies,Castle School Education Trust,821.92, 18-Dec-2020
1007,Revenue,CAHD,Academy Resource Base Funding,Other Public Bodies,Castle School Education Trust,849.32, 22-Dec-2020
1008,Revenue,CAHD,Academy Resource Base Funding,Other Public Bodies,Castle School Education Trust,1702.97, 22-Dec-2020
1009,Revenue,CAHD,Academy Resource Base Funding,Other Public Bodies,Castle School Education Trust,1702.97, 22-Dec-2020
1010,Revenue,CAHD,Academy Resource Base Funding,Other Public Bodies,Castle School Education Trust,1702.97, 22-Dec-2020
1011,Revenue,CAHD,Academy Resource Base Funding,Other Public Bodies,Castle School Education Trust,1702.97, 22-Dec-2020
1012,Revenue,CAHD,Academy Resource Base Funding,Other Public Bodies,Castle School Education Trust,1702.97, 22-Dec-2020
1013,Revenue,CAHD,Academy Resource Base Funding,Other Public Bodies,Castle School Education Trust,1702.97, 22-Dec-2020
1014,Revenue,CAHD,Academy Resource Base Funding,Other Public Bodies,Castle School Education Trust,2189.53, 22-Dec-2020
1015,Revenue,CAHD,Academy Resource Base Funding,Other Public Bodies,Castle School Education Trust,1702.97, 22-Dec-2020
1016,Revenue,CAHD,Academy Resource Base Funding,Other Public Bodies,Castle School Education Trust,1702.97, 22-Dec-2020
1017,Revenue,CAHD,Academy Resource Base Funding,Other Public Bodies,Castle School Education Trust,1702.97, 22-Dec-2020
1018,Revenue,CAHD,Academy Resource Base Funding,Other Public Bodies,Castle School Education Trust,2513.88, 22-Dec-2020
1019,Revenue,CAHD,Academy Resource Base Funding,Other Public Bodies,Castle School Education Trust,1702.97, 22-Dec-2020
1020,Revenue,CAHD,Academy Resource Base Funding,Other Public Bodies,Castle School Education Trust,1500.00, 07-Dec-2020
1021,Revenue,CAHD,Statemented Support Academies,Other Public Bodies,Castle School Education Trust,672.03, 22-Dec-2020
1022,Revenue,CAHD,Statemented Support Academies,Other Public Bodies,Castle School Education Trust,822.50, 22-Dec-2020
1023,Revenue,CAHD,Statemented Support Academies,Other Public Bodies,Castle School Education Trust,872.46, 22-Dec-2020
1024,Revenue,CAHD,Statemented Support Academies,Other Public Bodies,Castle School Education Trust,848.88, 22-Dec-2020
1025,Revenue,CAHD,Statemented Support Academies,Other Public Bodies,Castle School Education Trust,541.58, 22-Dec-2020
1026,Revenue,CAHD,Statemented Support Academies,Other Public Bodies,Castle School Education Trust,1444.17, 22-Dec-2020
1027,Revenue,CAHD,Statemented Support Academies,Other Public Bodies,Castle School Education Trust,956.00, 22-Dec-2020
1028,Revenue,CAHD,Statemented Support Academies,Other Public Bodies,Castle School Education Trust,1025.73, 22-Dec-2020
1029,Revenue,CAHD,Statemented Support Academies,Other Public Bodies,Castle School Education Trust,1628.42, 22-Dec-2020
1030,Revenue,CAHD,Statemented Support Academies,Other Public Bodies,Castle School Education Trust,560.17, 22-Dec-2020
1031,Revenue,CAHD,Schools Specific Grant Income,Other Public Bodies,Castle School Education Trust,2100.00, 04-Dec-2020
1032,Revenue,CAHD,Statemented Support Academies,Other Public Bodies,Castle School Education Trust,630.58, 22-Dec-2020
1033,Revenue,CAHD,Statemented Support Academies,Other Public Bodies,Castle School Education Trust,778.14, 22-Dec-2020
1034,Revenue,CAHD,Statemented Support Academies,Other Public Bodies,Castle School Education Trust,941.58, 22-Dec-2020
1035,Revenue,CAHD,Statemented Support Academies,Other Public Bodies,Castle School Education Trust,613.08, 22-Dec-2020
1036,Revenue,CAHD,Statemented Support Academies,Other Public Bodies,Castle School Educational Turust,1129.92, 22-Dec-2020
1037,Revenue,CAHD,Statemented Support Academies,Other Public Bodies,Castle School Educational Turust,854.00, 22-Dec-2020
1038,Revenue,CAHD,Statemented Support Academies,Other Public Bodies,Castle School Educational Turust,790.58, 22-Dec-2020
1039,Revenue,CAHD,Statemented Support Academies,Other Public Bodies,Castle School Educational Turust,508.67, 22-Dec-2020
1040,Revenue,CAHD,Statemented Support Academies,Other Public Bodies,Castle School Educational Turust,1148.20, 22-Dec-2020
1041,Revenue,CAHD,Statemented Support Academies,Other Public Bodies,Castle School Educational Turust,1097.25, 22-Dec-2020
1042,Revenue,CAHD,Statemented Support Academies,Other Public Bodies,Castle School Educational Turust,580.67, 22-Dec-2020
1043,Revenue,CAHD,CSC - North LAC Placements,Interpreting & Translation,Cater Walsh Reporting Limited,479.00, 03-Dec-2020
1044,Revenue,CAHD,Social Lettings Agency,Rent,Individual,595.11, 01-Dec-2020
1045,Revenue,CAHD,Social Lettings Agency,Fees - General,Individual,10.53, 01-Dec-2020
1046,Revenue,CAHD,Social Lettings Agency,Rent,Individual,595.11, 30-Dec-2020
1047,Revenue,CAHD,Social Lettings Agency,Fees - General,Individual,10.53, 30-Dec-2020
1048,Revenue,CAHD,CSC - OT Equipment - Children,Daily Living Equipment,Caudwell,612.18, 17-Dec-2020
1049,Revenue,CAHD,North - Community based support,Day Care / Social Activities,Causeway House,2176.64, 15-Dec-2020
1050,Revenue,CAHD,South - Commissioned Services,Day Care / Social Activities,Causeway House,5358.20, 15-Dec-2020
1051,Revenue,CAHD,Central - Commissioned Services,Day Care / Social Activities,Causeway House,1447.08, 15-Dec-2020
1052,Revenue,CAHD,18-25 Year Olds,Day Care / Social Activities,Causeway House,4502.92, 15-Dec-2020
1053,Revenue,CAHD,Central - Commissioned Services,Day Care / Social Activities,Causeway House,3671.36, 15-Dec-2020
1054,Revenue,CAHD,Central - Commissioned Services,Day Care / Social Activities,Causeway House,3969.44, 15-Dec-2020
1055,Revenue,CAHD,Central - Commissioned Services,Day Care / Social Activities,Causeway House,2119.20, 15-Dec-2020
1056,Revenue,CAHD,North - Community based support,Day Care / Social Activities,Causeway House,3290.72, 15-Dec-2020
1057,Revenue,CAHD,North - Community based support,Day Care / Social Activities,Causeway House,4902.56, 15-Dec-2020
1058,Revenue,CAHD,Central - Commissioned Services,Day Care / Social Activities,Causeway House,3725.16, 15-Dec-2020
1059,Revenue,CAHD,North - Community based support,Day Care / Social Activities,Causeway House,3212.08, 15-Dec-2020
1060,Revenue,CAHD,North - Community based support,Day Care / Social Activities,Causeway House,579.68, 15-Dec-2020
1061,Revenue,CAHD,Training - Adult Services,Training Expenses,Central Consultancy & Training,7595.00, 21-Dec-2020
1062,Revenue,CAHD,South - Commissioned Services,Permanent Residential,Challenge House,2834.44, 15-Dec-2020
1063,Revenue,CAHD,South - Commissioned Services,Permanent Residential,Challenge House,2836.00, 15-Dec-2020
1064,Revenue,CAHD,North - S117,Permanent Residential,Challenge House,2571.40, 15-Dec-2020
1065,Revenue,CAHD,North - Community based support,Permanent Residential,Challenge House,2233.00, 15-Dec-2020
1066,Revenue,CAHD,Central - Commissioned Services,Permanent Residential,Challenge House,2365.64, 15-Dec-2020
1067,Revenue,CAHD,North - Community based support,Permanent Residential,Challenge House,2363.40, 15-Dec-2020
1068,Revenue,CAHD,Central - Commissioned Services,Permanent Residential,Challenge House,2720.00, 15-Dec-2020
1069,Revenue,CAHD,North - Community based support,Permanent Residential,Challenge House,2834.40, 15-Dec-2020
1070,Revenue,CAHD,North - Community based support,Permanent Nursing,Challenge House,3205.48, 15-Dec-2020
1071,Revenue,CAHD,North - S117,Permanent Nursing,Challenge House,2453.28, 15-Dec-2020
1072,Revenue,CAHD,North - Community based support,Permanent Nursing,Challenge House,2453.28, 15-Dec-2020
1073,Revenue,CAHD,North - Community based support,Permanent Nursing,Challenge House,3205.48, 15-Dec-2020
1074,Revenue,CAHD,South Glos Users in South Glos Homes,Permanent Nursing,Challenge House,735.68, 15-Dec-2020
1075,Revenue,CAHD,North - Community based support,Permanent Nursing,Challenge House,3400.00, 15-Dec-2020
1076,Revenue,CAHD,South Glos Users in South Glos Homes,Permanent Nursing,Challenge House,735.68, 15-Dec-2020
1077,Revenue,CAHD,South Glos Users in South Glos Homes,Permanent Nursing,Challenge House,4387.81, 15-Dec-2020
1078,Revenue,CAHD,South Glos Users in South Glos Homes,Permanent Nursing,Challenge House,735.68, 15-Dec-2020
1079,Revenue,CAHD,South - Commissioned Services,Permanent Nursing,Challenge House,2941.88, 15-Dec-2020
1080,Revenue,CAHD,South Glos Users in South Glos Homes,Permanent Nursing,Challenge House,735.68, 15-Dec-2020
1081,Revenue,CAHD,North - Community based support,Permanent Nursing,Challenge House,3272.64, 15-Dec-2020
1082,Revenue,CAHD,South Glos Users in South Glos Homes,Permanent Nursing,Challenge House,735.68, 15-Dec-2020
1083,Revenue,CAHD,Central - Commissioned Services,Respite Planned - Nursing,Challenge House,1335.71, 15-Dec-2020
1084,Revenue,CAHD,South Glos Users in South Glos Homes,Permanent Nursing,Challenge House,735.68, 15-Dec-2020
1085,Revenue,CAHD,South Glos Users in South Glos Homes,Permanent Nursing,Challenge House,735.68, 15-Dec-2020
1086,Revenue,CAHD,South - Commissioned Services,Permanent Residential,Challenge House,3060.00, 15-Dec-2020
1087,Revenue,CAHD,South Glos Users in South Glos Homes,Permanent Nursing,Challenge House,735.68, 15-Dec-2020
1088,Revenue,CAHD,South Glos Users in South Glos Homes,Permanent Nursing,Challenge House,735.68, 15-Dec-2020
1089,Revenue,CAHD,South Glos Users in South Glos Homes,Permanent Nursing,Challenge House,735.68, 15-Dec-2020
1090,Revenue,CAHD,South Glos Users in South Glos Homes,Permanent Nursing,Challenge House,735.68, 15-Dec-2020
1091,Revenue,CAHD,South Glos Users in South Glos Homes,Permanent Nursing,Challenge House,735.68, 15-Dec-2020
1092,Revenue,CAHD,South Glos Users in South Glos Homes,Permanent Nursing,Challenge House,735.68, 15-Dec-2020
1093,Revenue,CAHD,South Glos Users in South Glos Homes,Permanent Nursing,Challenge House,735.68, 15-Dec-2020
1094,Revenue,CAHD,South Glos Users in South Glos Homes,Permanent Nursing,Challenge House,735.68, 15-Dec-2020
1095,Revenue,CAHD,North - Community based support,Permanent Nursing,Challenge House,2884.08, 15-Dec-2020
1096,Revenue,CAHD,South Glos Users in South Glos Homes,Permanent Nursing,Challenge House,735.68, 15-Dec-2020
1097,Revenue,CAHD,North - Community based support,Permanent Nursing,Challenge House,3243.60, 15-Dec-2020
1098,Revenue,CAHD,South Glos Users in South Glos Homes,Permanent Nursing,Challenge House,735.68, 15-Dec-2020
1099,Revenue,CAHD,North - Community based support,Permanent Nursing,Challenge House,3405.60, 15-Dec-2020
1100,Revenue,CAHD,South Glos Users in South Glos Homes,Permanent Nursing,Challenge House,735.68, 15-Dec-2020
1101,Revenue,CAHD,North - Community based support,Permanent Residential,Challenge House,3121.20, 15-Dec-2020
1102,Revenue,CAHD,South Glos Users in South Glos Homes,Permanent Nursing,Challenge House,735.68, 15-Dec-2020
1103,Revenue,CAHD,North - Community based support,Permanent Nursing,Challenge House,2884.08, 15-Dec-2020
1104,Revenue,CAHD,South Glos Users in South Glos Homes,Permanent Nursing,Challenge House,735.68, 15-Dec-2020
1105,Revenue,CAHD,South Glos Users in South Glos Homes,Permanent Nursing,Challenge House,735.68, 15-Dec-2020
1106,Revenue,CAHD,CSC - Vinney Green Secure Unit,"Provisions (Food, etc)",Charles Saunders Limited,775.47, 11-Dec-2020
1107,Revenue,CAHD,CSC - Vinney Green Secure Unit,"Provisions (Food, etc)",Charles Saunders Limited,558.56, 18-Dec-2020
1108,Revenue,CAHD,CSC - Vinney Green Secure Unit,"Provisions (Food, etc)",Charles Saunders Limited,127.42, 18-Dec-2020
1109,Revenue,CAHD,CSC - Vinney Green Secure Unit,"Provisions (Food, etc)",Charles Saunders Limited,574.92, 24-Dec-2020
1110,Revenue,CAHD,CSC - Vinney Green Secure Unit,"Provisions (Food, etc)",Charles Saunders Limited,52.48, 24-Dec-2020
1111,Revenue,CAHD,CSC - Vinney Green Secure Unit,"Provisions (Food, etc)",Charles Saunders Limited,217.40, 30-Dec-2020
1112,Revenue,CAHD,CSC - Vinney Green Secure Unit,"Provisions (Food, etc)",Charles Saunders Limited,238.81, 30-Dec-2020
1113,Revenue,CAHD,Statemented Support Academies,Other Public Bodies,Charlton Wood Primary Academy,702.17, 22-Dec-2020
1114,Revenue,CAHD,South - Commissioned Services,Other Small Contracts,Cherish Able Care Limited,1144.11, 18-Dec-2020
1115,Revenue,CAHD,South - Commissioned Services,Other Small Contracts,Cherish Able Care Limited,1249.92, 24-Dec-2020
1116,Revenue,CAHD,South - Commissioned Services,Other Small Contracts,Cherish Able Care Limited,1029.00, 30-Dec-2020
1117,Revenue,CAHD,South - Commissioned Services,Other Small Contracts,Cherish Able Care Limited,1029.00, 01-Dec-2020
1118,Revenue,CAHD,South - Commissioned Services,Other Small Contracts,Cherish Able Care Limited,1029.00, 01-Dec-2020
1119,Revenue,CAHD,South - Commissioned Services,Other Small Contracts,Cherish Able Care Limited,1029.00, 01-Dec-2020
1120,Revenue,CAHD,Central - Commissioned Services,Other Small Contracts,Cherish Able Care Limited,1516.62, 01-Dec-2020
1121,Revenue,CAHD,South - Commissioned Services,Other Small Contracts,Cherish Able Care Limited,5150.87, 01-Dec-2020
1122,Revenue,CAHD,North - Community based support,Other Small Contracts,Cherish Able Care Limited,1526.28, 01-Dec-2020
1123,Revenue,CAHD,Central - Commissioned Services,Other Small Contracts,Cherish Able Care Limited,1477.98, 02-Dec-2020
1124,Revenue,CAHD,South - Commissioned Services,Other Small Contracts,Cherish Able Care Limited,6214.22, 02-Dec-2020
1125,Revenue,CAHD,North - Community based support,Other Small Contracts,Cherish Able Care Limited,1574.58, 02-Dec-2020
1126,Revenue,CAHD,Central - Commissioned Services,Other Small Contracts,Cherish Able Care Limited,1477.98, 16-Dec-2020
1127,Revenue,CAHD,South - Commissioned Services,Other Small Contracts,Cherish Able Care Limited,5746.94, 16-Dec-2020
1128,Revenue,CAHD,North - Community based support,Other Small Contracts,Cherish Able Care Limited,1197.84, 16-Dec-2020
1129,Revenue,CAHD,Central - Commissioned Services,Other Small Contracts,Cherish Able Care Limited,1487.64, 15-Dec-2020
1130,Revenue,CAHD,South - Commissioned Services,Other Small Contracts,Cherish Able Care Limited,6494.24, 15-Dec-2020
1131,Revenue,CAHD,North - Community based support,Other Small Contracts,Cherish Able Care Limited,685.86, 15-Dec-2020
1132,Revenue,CAHD,Central - Commissioned Services,Other Small Contracts,Cherish Able Care Limited,2245.95, 23-Dec-2020
1133,Revenue,CAHD,South - Commissioned Services,Other Small Contracts,Cherish Able Care Limited,6842.52, 23-Dec-2020
1134,Revenue,CAHD,North - Community based support,Other Small Contracts,Cherish Able Care Limited,666.54, 23-Dec-2020
1135,Revenue,CAHD,South - Commissioned Services,Supported Living,Cherry Orchards,1313.76, 08-Dec-2020
1136,Revenue,CAHD,South - Commissioned Services,Supported Living,Cherry Orchards,1159.20, 23-Dec-2020
1137,Revenue,CAHD,18-25 Year Olds,Other Small Contracts,Cherry Orchards,1613.22, 15-Dec-2020
1138,Revenue,CAHD,18-25 Year Olds,Other Small Contracts,Cherry Orchards,1622.88, 23-Dec-2020
1139,Revenue,CAHD,South - Commissioned Services,Other Small Contracts,Cherry Orchards,6491.52, 22-Dec-2020
1140,Revenue,CAHD,South - Commissioned Services,Supported Living,Cherry Orchards,2085.84, 15-Dec-2020
1141,Revenue,CAHD,18-25 Year Olds,Supported Living,Cherry Orchards,2030.52, 15-Dec-2020
1142,Revenue,CAHD,North - Community based support,Supported Living,Cherry Orchards,1042.96, 15-Dec-2020
1143,Revenue,CAHD,S28A cases,Permanent Residential,Chescombe Trust Ltd,9959.72, 15-Dec-2020
1144,Revenue,CAHD,Covid - ASC - Infection Control,Grants to Voluntary Bodies,Chescombe Trust Ltd,6620.16, 02-Dec-2020
1145,Revenue,CAHD,18-25 Year Olds,Other Small Contracts,Cintre,846.60, 01-Dec-2020
1146,Revenue,CAHD,Central - Commissioned Services,Other Small Contracts,Cintre,199.20, 01-Dec-2020
1147,Revenue,CAHD,South - Commissioned Services,Other Small Contracts,Cintre,1274.88, 01-Dec-2020
1148,Revenue,CAHD,18-25 Year Olds,Other Small Contracts,Cintre,846.60, 11-Dec-2020
1149,Revenue,CAHD,Central - Commissioned Services,Other Small Contracts,Cintre,318.72, 11-Dec-2020
1150,Revenue,CAHD,South - Commissioned Services,Other Small Contracts,Cintre,1334.64, 11-Dec-2020
1151,Revenue,CAHD,18-25 Year Olds,Other Small Contracts,Cintre,846.60, 11-Dec-2020
1152,Revenue,CAHD,Central - Commissioned Services,Other Small Contracts,Cintre,278.88, 11-Dec-2020
1153,Revenue,CAHD,South - Commissioned Services,Other Small Contracts,Cintre,1334.64, 11-Dec-2020
1154,Revenue,CAHD,18-25 Year Olds,Other Small Contracts,Cintre,846.60, 16-Dec-2020
1155,Revenue,CAHD,Central - Commissioned Services,Other Small Contracts,Cintre,239.04, 16-Dec-2020
1156,Revenue,CAHD,South - Commissioned Services,Other Small Contracts,Cintre,1334.64, 16-Dec-2020
1157,Revenue,CAHD,18-25 Year Olds,Other Small Contracts,Cintre,846.60, 21-Dec-2020
1158,Revenue,CAHD,Central - Commissioned Services,Other Small Contracts,Cintre,278.88, 21-Dec-2020
1159,Revenue,CAHD,South - Commissioned Services,Other Small Contracts,Cintre,1334.64, 21-Dec-2020
1160,Revenue,CAHD,Research & Conferences,Consultants Fees,Claire Leandro Ltd,2282.00, 01-Dec-2020
1161,Revenue,CAHD,Research & Conferences,Consultants Fees,Claire Leandro Ltd,1100.00, 01-Dec-2020
1162,Revenue,CAHD,Early Years Inclusion Fund,Other Public Bodies,Individual,650.00, 18-Dec-2020
1163,Revenue,CAHD,South - Commissioned Services,Permanent Residential,Clearwater Care,5280.28, 15-Dec-2020
1164,Revenue,CAHD,South - Commissioned Services,Permanent Residential,Cleeve Lodge,3760.12, 15-Dec-2020
1165,Revenue,CAHD,South - Commissioned Services,Permanent Residential,Cleeve Lodge,3760.12, 15-Dec-2020
1166,Revenue,CAHD,South - Commissioned Services,Permanent Residential,Cleeve Lodge,1334.60, 15-Dec-2020
1167,Revenue,CAHD,South - Commissioned Services,Permanent Residential,Cleeve Lodge,4400.00, 15-Dec-2020
1168,Revenue,CAHD,North - Community based support,Permanent Residential,Cleeve Lodge,4400.00, 15-Dec-2020
1169,Revenue,CAHD,South - Commissioned Services,Permanent Residential,Cleeve Lodge,4000.00, 15-Dec-2020
1170,Revenue,CAHD,South - Commissioned Services,Permanent Residential,Cleeve Lodge,2950.88, 15-Dec-2020
1171,Revenue,CAHD,Independent Special Placements - Pre 16,Other Private Contractors,Clifton College,8380.30, 30-Dec-2020
1172,Revenue,CAHD,Central - Commissioned Services,Other Small Contracts,Clover Health and Home Care Ltd,1040.76, 10-Dec-2020
1173,Revenue,CAHD,Central - Commissioned Services,Other Small Contracts,Clover Health and Home Care Ltd,1040.76, 10-Dec-2020
1174,Revenue,CAHD,Central - Commissioned Services,Other Small Contracts,Clover Health and Home Care Ltd,1014.21, 10-Dec-2020
1175,Revenue,CAHD,Central - Commissioned Services,Other Small Contracts,Clover Health and Home Care Ltd,892.08, 10-Dec-2020
1176,Revenue,CAHD,Central - Commissioned Services,Other Small Contracts,Clover Health and Home Care Ltd,892.08, 10-Dec-2020
1177,Revenue,CAHD,Covid - ASC - Infection Control,Grants to Voluntary Bodies,Clover Health and Home Care Ltd,2320.53, 29-Dec-2020
1178,Revenue,CAHD,Health Inequalities,Other Small Contracts,Cohesian Consultancy,500.00, 30-Dec-2020
1179,Revenue,CAHD,SLA Grants - Support Serv,Grants to Voluntary Bodies,Cohesian Consultancy,500.00, 30-Dec-2020
1180,Revenue,CAHD,North - Community based support,Permanent Residential,Collingwood Care Home,3000.00, 15-Dec-2020
1181,Revenue,CAHD,South - Commissioned Services,Permanent Residential,Collingwood Care Home,2554.36, 15-Dec-2020
1182,Revenue,CAHD,South - Commissioned Services,Permanent Residential,Community Theraputic Services,7893.40, 15-Dec-2020
1183,Revenue,CAHD,Jointly Funded H&SC Packages,Permanent Residential,Community Theraputic Services,4875.84, 15-Dec-2020
1184,Revenue,CAHD,North - Community based support,Permanent Residential,Community Theraputic Services,8119.76, 15-Dec-2020
1185,Revenue,CAHD,Jointly Funded H&SC Packages,Permanent Residential,Community Theraputic Services,2027.52, 15-Dec-2020
1186,Revenue,CAHD,CSC - Vinney Green Secure Unit,R & M by Departments,Complete Weed Control (North Wessex) Ltd,622.00, 18-Dec-2020
1187,Revenue,CAHD,Information Systems - Software,Software Support & Maintenance,Comset Ltd,9609.02, 10-Dec-2020
1188,Revenue,CAHD,Bed and Breakfast,Bed & Breakfast,Connolly & Callaghan Limited,593.60, 22-Dec-2020
1189,Revenue,CAHD,Bed and Breakfast,Bed & Breakfast,Connolly & Callaghan Limited,593.60, 22-Dec-2020
1190,Revenue,CAHD,Bed and Breakfast,Bed & Breakfast,Connolly & Callaghan Limited,422.80, 02-Dec-2020
1191,Revenue,CAHD,Bed and Breakfast,Bed & Breakfast,Connolly & Callaghan Limited,422.80, 22-Dec-2020
1192,Revenue,CAHD,Bed and Breakfast,Bed & Breakfast,Connolly & Callaghan Limited,424.00, 22-Dec-2020
1193,Revenue,CAHD,Bed and Breakfast,Bed & Breakfast,Connolly & Callaghan Limited,515.90, 22-Dec-2020
1194,Revenue,CAHD,Bed and Breakfast,Bed & Breakfast,Connolly & Callaghan Limited,422.80, 07-Dec-2020
1195,Revenue,CAHD,Bed and Breakfast,Bed & Breakfast,Connolly & Callaghan Limited,679.00, 07-Dec-2020
1196,Revenue,CAHD,Bed and Breakfast,Other Supplies & Services,Connolly & Callaghan Limited,420.00, 07-Dec-2020
1197,Revenue,CAHD,Bed and Breakfast,Bed & Breakfast,Connolly & Callaghan Limited,515.90, 14-Dec-2020
1198,Revenue,CAHD,Bed and Breakfast,Bed & Breakfast,Connolly & Callaghan Limited,422.80, 10-Dec-2020
1199,Revenue,CAHD,Covid 19 - Housing,Other Supplies & Services,Connolly & Callaghan Limited,420.00, 10-Dec-2020
1200,Revenue,CAHD,Bed and Breakfast,Bed & Breakfast,Connolly & Callaghan Limited,679.00, 10-Dec-2020
1201,Revenue,CAHD,Bed and Breakfast,Other Supplies & Services,Connolly & Callaghan Limited,420.00, 10-Dec-2020
1202,Revenue,CAHD,Bed and Breakfast,Bed & Breakfast,Connolly & Callaghan Limited,515.90, 14-Dec-2020
1203,Revenue,CAHD,Bed and Breakfast,Bed & Breakfast,Connolly & Callaghan Limited,422.80, 16-Dec-2020
1204,Revenue,CAHD,Covid 19 - Housing,Other Supplies & Services,Connolly & Callaghan Limited,420.00, 15-Dec-2020
1205,Revenue,CAHD,Bed and Breakfast,Other Supplies & Services,Connolly & Callaghan Limited,420.00, 15-Dec-2020
1206,Revenue,CAHD,Bed and Breakfast,Bed & Breakfast,Connolly & Callaghan Limited,515.90, 17-Dec-2020
1207,Revenue,CAHD,Bed and Breakfast,Bed & Breakfast,Connolly & Callaghan Limited,422.80, 21-Dec-2020
1208,Revenue,CAHD,Covid 19 - Housing,Other Supplies & Services,Connolly & Callaghan Limited,420.00, 24-Dec-2020
1209,Revenue,CAHD,Bed and Breakfast,Bed & Breakfast,Connolly & Callaghan Limited,679.00, 22-Dec-2020
1210,Revenue,CAHD,Bed and Breakfast,Other Supplies & Services,Connolly & Callaghan Limited,420.00, 21-Dec-2020
1211,Revenue,CAHD,Bed and Breakfast,Bed & Breakfast,Connolly & Callaghan Limited,515.90, 21-Dec-2020
1212,Revenue,CAHD,Bed and Breakfast,Bed & Breakfast,Connolly & Callaghan Limited,515.90, 30-Dec-2020
1213,Revenue,CAHD,CSC - Vinney Green Secure Unit,Service Contracts (Premises),Cool-Rite Limited,789.00, 21-Dec-2020
1214,Revenue,CAHD,CSC - Vinney Green Secure Unit,Other Supplies & Services,Coram Voice,2247.50, 30-Dec-2020
1215,Revenue,CAHD,CSC - Vinney Green Secure Unit,Operational Equipment,Corporate Amusement Services Limited,2700.00, 07-Dec-2020
1216,Revenue,CAHD,Independent Special Placements - Post 16,Other Private Contractors,Cotswold Chine School,40078.35, 29-Dec-2020
1217,Revenue,CAHD,Independent Special Placements - Pre 16,Other Private Contractors,Cotswold Chine School,24434.87, 29-Dec-2020
1218,Revenue,CAHD,Independent Special Placements - Pre 16,Other Private Contractors,Cotswold Chine School,24434.87, 24-Dec-2020
1219,Revenue,CAHD,Independent Special Placements - Pre 16,Other Private Contractors,Cotswold Chine School,25727.72, 29-Dec-2020
1220,Revenue,CAHD,Independent Special Placements - Pre 16,Other Private Contractors,Cotswold Chine School,25793.63, 29-Dec-2020
1221,Revenue,CAHD,Alexandra Way,Cleaning & Domestic Services,Countrywide Healthcare Supplies Ltd,522.66, 23-Dec-2020
1222,Revenue,CAHD,North - Community based support,Permanent Residential,Court House Residential C.H.,3400.00, 15-Dec-2020
1223,Revenue,CAHD,Covid - ASC - Infection Control,Grants to Voluntary Bodies,Courtfield Healthcare Ltd,1885.43, 16-Dec-2020
1224,Revenue,CAHD,Early Years Inclusion Fund,Other Public Bodies,Courtney Ladybirds Pre-School,4250.00, 15-Dec-2020
1225,Revenue,CAHD,Mental Health  Projects,Project Funding,Creative Youth Network,6140.00, 17-Dec-2020
1226,Revenue,CAHD,S28A cases,Permanent Residential,Creedy Court,10597.96, 15-Dec-2020
1227,Revenue,CAHD,S28A cases,Permanent Residential,Creedy Court,8904.92, 15-Dec-2020
1228,Revenue,CAHD,North - Community based support,Permanent Residential,Creedy Court,14054.00, 15-Dec-2020
1229,Revenue,CAHD,Childrens - Safeguarding Board,Training Expenses,Cruidin Training and Consultancy Ltd,2000.00, 08-Dec-2020
1230,Revenue,CAHD,Community Support - South,Preventative Assistance,Cucumber Recruitment Limited,505.00, 11-Dec-2020
1231,Revenue,CAHD,Community Support - South,Preventative Assistance,Cucumber Recruitment Limited,990.00, 11-Dec-2020
1232,Revenue,CAHD,Community Support - South,Preventative Assistance,Cucumber Recruitment Limited,1389.00, 30-Dec-2020
1233,Revenue,CAHD,Community Support - South,Preventative Assistance,Cucumber Recruitment Limited,1410.00, 30-Dec-2020
1234,Revenue,CAHD,Community Support - South,Preventative Assistance,Cucumber Recruitment Limited,1422.00, 30-Dec-2020
1235,Revenue,CAHD,Central - Commissioned Services,Supported Living,Cygnet Healthcare Limited,3304.00, 15-Dec-2020
1236,Revenue,CAHD,South - Commissioned Services,Permanent Residential,Daneswood,12759.56, 15-Dec-2020
1237,Revenue,CAHD,South - Commissioned Services,Day Care / Social Activities,Daneswood,1441.60, 15-Dec-2020
1238,Revenue,CAHD,North - Community based support,Permanent Residential,Daneswood,13579.68, 15-Dec-2020
1239,Revenue,CAHD,South - S117,Permanent Nursing,Danshell Healthcare Group,11437.64, 15-Dec-2020
1240,Revenue,CAHD,Jointly Funded H&SC Packages,Permanent Nursing,Danshell Healthcare Group,1697.16, 15-Dec-2020
1241,Revenue,CAHD,Learning Difficulties PSL,Rent,Individual,2400.00, 22-Dec-2020
1242,Revenue,CAHD,South - Commissioned Services,Day Care / Social Activities,Deafblind Uk,991.29, 18-Dec-2020
1243,Revenue,CAHD,South - Commissioned Services,Day Care / Social Activities,Deafblind Uk,1317.90, 18-Dec-2020
1244,Revenue,CAHD,North - Community based support,Day Care / Social Activities,Deafblind Uk,641.76, 18-Dec-2020
1245,Revenue,CAHD,Central - Commissioned Services,Permanent Residential,Debt Recovery,4173.72, 15-Dec-2020
1246,Revenue,CAHD,South - Commissioned Services,Permanent Residential,Debt Recovery,4266.36, 15-Dec-2020
1247,Revenue,CAHD,North - Community based support,Permanent Nursing,Debt Recovery,4478.12, 15-Dec-2020
1248,Revenue,CAHD,North - Community based support,Permanent Nursing,Debt Recovery,3687.20, 15-Dec-2020
1249,Revenue,CAHD,Central - Commissioned Services,Permanent Residential,Debt Recovery,4617.04, 15-Dec-2020
1250,Revenue,CAHD,North - Community based support,Permanent Nursing,Debt Recovery,5604.96, 15-Dec-2020
1251,Revenue,CAHD,North - Community based support,Permanent Nursing,Debt Recovery,3586.16, 15-Dec-2020
1252,Revenue,CAHD,Central - Commissioned Services,Permanent Nursing,Debt Recovery,5568.36, 15-Dec-2020
1253,Revenue,CAHD,North - Community based support,Permanent Residential,Debt Recovery,3643.92, 15-Dec-2020
1254,Revenue,CAHD,North - Community based support,Permanent Nursing,Debt Recovery,6274.96, 15-Dec-2020
1255,Revenue,CAHD,North - Community based support,Permanent Nursing,Debt Recovery,4121.24, 15-Dec-2020
1256,Revenue,CAHD,South - Commissioned Services,Permanent Nursing,Debt Recovery,6437.72, 15-Dec-2020
1257,Revenue,CAHD,South Glos Users in South Glos Homes,Permanent Nursing,Deerhurst Nursing Home,735.68, 15-Dec-2020
1258,Revenue,CAHD,South - Commissioned Services,Permanent Nursing,Deerhurst Nursing Home,3881.40, 15-Dec-2020
1259,Revenue,CAHD,South Glos Users in South Glos Homes,Permanent Nursing,Deerhurst Nursing Home,735.68, 15-Dec-2020
1260,Revenue,CAHD,South - Commissioned Services,Permanent Nursing,Deerhurst Nursing Home,4160.00, 15-Dec-2020
1261,Revenue,CAHD,South - Commissioned Services,Permanent Nursing,Deerhurst Nursing Home,4400.00, 15-Dec-2020
1262,Revenue,CAHD,South Glos Users in South Glos Homes,Permanent Nursing,Deerhurst Nursing Home,735.68, 15-Dec-2020
1263,Revenue,CAHD,South - Commissioned Services,Day Care / Social Activities,Deerhurst Nursing Home,568.16, 15-Dec-2020
1264,Revenue,CAHD,South Glos Users in South Glos Homes,Permanent Nursing,Deerhurst Nursing Home,735.68, 15-Dec-2020
1265,Revenue,CAHD,South - Commissioned Services,Permanent Nursing,Deerhurst Nursing Home,4098.52, 15-Dec-2020
1266,Revenue,CAHD,South Glos Users in South Glos Homes,Permanent Nursing,Deerhurst Nursing Home,735.68, 15-Dec-2020
1267,Revenue,CAHD,South - Commissioned Services,Fees & Charges Income - General,Deerhurst Nursing Home,994.46, 15-Dec-2020
1268,Revenue,CAHD,South - Commissioned Services,Fees & Charges Income - General,Deerhurst Nursing Home,868.31, 15-Dec-2020
1269,Revenue,CAHD,South - Commissioned Services,Permanent Nursing,Deerhurst Nursing Home,4006.00, 15-Dec-2020
1270,Revenue,CAHD,South Glos Users in South Glos Homes,Permanent Nursing,Deerhurst Nursing Home,735.68, 15-Dec-2020
1271,Revenue,CAHD,North - Community based support,Permanent Nursing,Deerhurst Nursing Home,3891.20, 15-Dec-2020
1272,Revenue,CAHD,South - Commissioned Services,Permanent Nursing,Deerhurst Nursing Home,3965.12, 15-Dec-2020
1273,Revenue,CAHD,South Glos Users in South Glos Homes,Permanent Nursing,Deerhurst Nursing Home,735.68, 15-Dec-2020
1274,Revenue,CAHD,North - Community based support,Permanent Nursing,Deerhurst Nursing Home,4140.00, 15-Dec-2020
1275,Revenue,CAHD,South - Commissioned Services,Permanent Nursing,Deerhurst Nursing Home,4129.40, 15-Dec-2020
1276,Revenue,CAHD,South - Commissioned Services,Permanent Nursing,Deerhurst Nursing Home,4088.08, 15-Dec-2020
1277,Revenue,CAHD,South Glos Users in South Glos Homes,Permanent Nursing,Deerhurst Nursing Home,735.68, 15-Dec-2020
1278,Revenue,CAHD,South - bed purchasing and direct  payments,Permanent Nursing,Deerhurst Nursing Home,4084.08, 15-Dec-2020
1279,Revenue,CAHD,South Glos Users in South Glos Homes,Permanent Nursing,Deerhurst Nursing Home,735.68, 15-Dec-2020
1280,Revenue,CAHD,South Glos Users in South Glos Homes,Permanent Nursing,Deerhurst Nursing Home,735.68, 15-Dec-2020
1281,Revenue,CAHD,South Glos Users in South Glos Homes,Permanent Nursing,Deerhurst Nursing Home,735.68, 15-Dec-2020
1282,Revenue,CAHD,North - Community based support,Permanent Nursing,Deerhurst Nursing Home,4088.08, 15-Dec-2020
1283,Revenue,CAHD,South Glos Users in South Glos Homes,Permanent Nursing,Deerhurst Nursing Home,735.68, 15-Dec-2020
1284,Revenue,CAHD,South - Commissioned Services,Permanent Nursing,Deerhurst Nursing Home,4086.08, 15-Dec-2020
1285,Revenue,CAHD,South Glos Users in South Glos Homes,Permanent Nursing,Deerhurst Nursing Home,735.68, 15-Dec-2020
1286,Revenue,CAHD,South Glos Users in South Glos Homes,Permanent Nursing,Deerhurst Nursing Home,735.68, 15-Dec-2020
1287,Revenue,CAHD,South - Commissioned Services,Permanent Nursing,Deerhurst Nursing Home,3969.04, 15-Dec-2020
1288,Revenue,CAHD,South Glos Users in South Glos Homes,Permanent Nursing,Deerhurst Nursing Home,735.68, 15-Dec-2020
1289,Revenue,CAHD,South Glos Users in South Glos Homes,Permanent Nursing,Deerhurst Nursing Home,735.68, 15-Dec-2020
1290,Revenue,CAHD,South - Commissioned Services,Permanent Nursing,Deerhurst Nursing Home,4132.00, 15-Dec-2020
1291,Revenue,CAHD,South Glos Users in South Glos Homes,Permanent Nursing,Deerhurst Nursing Home,735.68, 15-Dec-2020
1292,Revenue,CAHD,South Glos Users in South Glos Homes,Permanent Nursing,Deerhurst Nursing Home,735.68, 15-Dec-2020
1293,Revenue,CAHD,South Glos Users in South Glos Homes,Permanent Nursing,Deerhurst Nursing Home,735.68, 15-Dec-2020
1294,Revenue,CAHD,South Glos Users in South Glos Homes,Permanent Nursing,Deerhurst Nursing Home,735.68, 15-Dec-2020
1295,Revenue,CAHD,North - Community based support,Permanent Nursing,Deerhurst Nursing Home,4006.00, 15-Dec-2020
1296,Revenue,CAHD,South Glos Users in South Glos Homes,Permanent Nursing,Deerhurst Nursing Home,735.68, 15-Dec-2020
1297,Revenue,CAHD,South - Commissioned Services,Permanent Nursing,Deerhurst Nursing Home,4085.36, 15-Dec-2020
1298,Revenue,CAHD,South Glos Users in South Glos Homes,Permanent Nursing,Deerhurst Nursing Home,735.68, 15-Dec-2020
1299,Revenue,CAHD,South Glos Users in South Glos Homes,Permanent Nursing,Deerhurst Nursing Home,735.68, 15-Dec-2020
1300,Revenue,CAHD,South Glos Users in South Glos Homes,Permanent Nursing,Deerhurst Nursing Home,735.68, 15-Dec-2020
1301,Revenue,CAHD,South - Commissioned Services,Permanent Nursing,Deerhurst Nursing Home,4006.00, 15-Dec-2020
1302,Revenue,CAHD,South - Commissioned Services,Permanent Residential,Deerhurst Nursing Home,4129.00, 15-Dec-2020
1303,Revenue,CAHD,South Glos Users in South Glos Homes,Permanent Nursing,Deerhurst Nursing Home,735.68, 15-Dec-2020
1304,Revenue,CAHD,South Glos Users in South Glos Homes,Permanent Nursing,Deerhurst Nursing Home,735.68, 15-Dec-2020
1305,Revenue,CAHD,South - Commissioned Services,Permanent Nursing,Deerhurst Nursing Home,4006.00, 15-Dec-2020
1306,Revenue,CAHD,South - Commissioned Services,Permanent Residential,Deerhurst Nursing Home,3891.20, 15-Dec-2020
1307,Revenue,CAHD,South Glos Users in South Glos Homes,Permanent Nursing,Deerhurst Nursing Home,735.68, 15-Dec-2020
1308,Revenue,CAHD,North - Community based support,Permanent Nursing,Deerhurst Nursing Home,3094.88, 15-Dec-2020
1309,Revenue,CAHD,South Glos Users in South Glos Homes,Permanent Nursing,Deerhurst Nursing Home,735.68, 15-Dec-2020
1310,Revenue,CAHD,South Glos Users in South Glos Homes,Permanent Nursing,Deerhurst Nursing Home,735.68, 15-Dec-2020
1311,Revenue,CAHD,South Glos Users in South Glos Homes,Permanent Nursing,Deerhurst Nursing Home,735.68, 15-Dec-2020
1312,Revenue,CAHD,South Glos Users in South Glos Homes,Permanent Nursing,Deerhurst Nursing Home,735.68, 15-Dec-2020
1313,Revenue,CAHD,South - Commissioned Services,Permanent Nursing,Deerhurst Nursing Home,7906.57, 15-Dec-2020
1314,Revenue,CAHD,South - Commissioned Services,Permanent Nursing,Deerhurst Nursing Home,2006.15, 15-Dec-2020
1315,Revenue,CAHD,South - Commissioned Services,Permanent Nursing,Deerhurst Nursing Home,1298.09, 15-Dec-2020
1316,Revenue,CAHD,South Glos Users in South Glos Homes,Permanent Nursing,Deerhurst Nursing Home,735.68, 15-Dec-2020
1317,Revenue,CAHD,Covid - ASC - Infection Control,Grants to Voluntary Bodies,Deerhurst Nursing Home,2787.44, 10-Dec-2020
1318,Revenue,CAHD,South - Commissioned Services,Supported Living,Design House,2714.44, 15-Dec-2020
1319,Revenue,CAHD,South - Commissioned Services,Other Small Contracts,Design House,3124.28, 15-Dec-2020
1320,Revenue,CAHD,South - Commissioned Services,Supported Living,Design House,3053.16, 15-Dec-2020
1321,Revenue,CAHD,South - Commissioned Services,Day Care / Social Activities,Design House,526.72, 15-Dec-2020
1322,Revenue,CAHD,18-25 Year Olds,Supported Living,Design House,3412.80, 15-Dec-2020
1323,Revenue,CAHD,18-25 Year Olds,Supported Living,Design House,3013.92, 15-Dec-2020
1324,Revenue,CAHD,Central - Commissioned Services,Day Care / Social Activities,Design House,2991.44, 15-Dec-2020
1325,Revenue,CAHD,South - Commissioned Services,Day Care / Social Activities,Design House,1317.04, 15-Dec-2020
1326,Revenue,CAHD,South - Commissioned Services,Supported Living,Design House,2691.36, 15-Dec-2020
1327,Revenue,CAHD,South - Commissioned Services,Supported Living,Design House,2691.36, 15-Dec-2020
1328,Revenue,CAHD,South - Commissioned Services,Other Small Contracts,Design House,2192.32, 15-Dec-2020
1329,Revenue,CAHD,South - Commissioned Services,Supported Living,Design House,1934.44, 15-Dec-2020
1330,Revenue,CAHD,South - Commissioned Services,Day Care / Social Activities,Design House,526.72, 15-Dec-2020
1331,Revenue,CAHD,South - Commissioned Services,Other Small Contracts,Design House,2566.92, 15-Dec-2020
1332,Revenue,CAHD,South - Commissioned Services,Supported Living,Design House,4393.28, 15-Dec-2020
1333,Revenue,CAHD,North - Community based support,Supported Living,Design House,3115.32, 15-Dec-2020
1334,Revenue,CAHD,South - Commissioned Services,Day Care / Social Activities,Design House,1536.08, 15-Dec-2020
1335,Revenue,CAHD,South - Commissioned Services,Supported Living,Design House,2983.16, 15-Dec-2020
1336,Revenue,CAHD,South - Commissioned Services,Supported Living,Design House,2593.64, 15-Dec-2020
1337,Revenue,CAHD,South - Commissioned Services,Supported Living,Design House,2302.64, 15-Dec-2020
1338,Revenue,CAHD,South - Commissioned Services,Supported Living,Design House,2302.64, 15-Dec-2020
1339,Revenue,CAHD,Bed and Breakfast,Bed & Breakfast,Designz Ltd,518.00, 30-Dec-2020
1340,Revenue,CAHD,Training - Adult Services,Training Expenses,Do The Write Thing,850.00, 10-Dec-2020
1341,Revenue,CAHD,Statemented Support Academies,Other Public Bodies,Downend School,978.57, 22-Dec-2020
1342,Revenue,CAHD,Statemented Support Academies,Other Public Bodies,Downend School,660.24, 22-Dec-2020
1343,Revenue,CAHD,Statemented Support Academies,Other Public Bodies,Downend School,1025.73, 22-Dec-2020
1344,Revenue,CAHD,Statemented Support Academies,Other Public Bodies,Downend School,1013.94, 22-Dec-2020
1345,Revenue,CAHD,Statemented Support Academies,Other Public Bodies,Downend School,801.72, 22-Dec-2020
1346,Revenue,CAHD,Statemented Support Academies,Other Public Bodies,Downend School,530.55, 22-Dec-2020
1347,Revenue,CAHD,Statemented Support Academies,Other Public Bodies,Downend School,530.67, 22-Dec-2020
1348,Revenue,CAHD,Statemented Support Academies,Other Public Bodies,Downend School,1108.26, 22-Dec-2020
1349,Revenue,CAHD,Statemented Support Academies,Other Public Bodies,Downend School,554.13, 22-Dec-2020
1350,Revenue,CAHD,Statemented Support Academies,Other Public Bodies,Downend School,666.00, 22-Dec-2020
1351,Revenue,CAHD,Statemented Support Academies,Other Public Bodies,Downend School,1438.38, 22-Dec-2020
1352,Revenue,CAHD,Statemented Support Academies,Other Public Bodies,Downend School,1709.55, 22-Dec-2020
1353,Revenue,CAHD,Statemented Support Academies,Other Public Bodies,Downend School,1192.50, 22-Dec-2020
1354,Revenue,CAHD,Statemented Support Academies,Other Public Bodies,Downend School,1544.49, 22-Dec-2020
1355,Revenue,CAHD,CSC - Care Leavers Support Costs,Leaving Care,Durham County Council,32705.00, 04-Dec-2020
1356,Revenue,CAHD,CSC - Care Leavers Support Costs,Leaving Care,Durham County Council,31650.00, 30-Dec-2020
1357,Revenue,CAHD,Independent Special Placements - Pre 16,Other Private Contractors,Durham School,8491.45, 16-Dec-2020
1358,Revenue,CAHD,CSC - Therapeutic Foster Care Programm,Special Fostering Scheme,Individual,573.00, 04-Dec-2020
1359,Revenue,CAHD,CSC - Therapeutic Foster Care Programm,Special Fostering Scheme,Individual,573.00, 11-Dec-2020
1360,Revenue,CAHD,CSC - Therapeutic Foster Care Programm,Special Fostering Scheme,Individual,573.00, 18-Dec-2020
1361,Revenue,CAHD,CSC - Therapeutic Foster Care Programm,Special Fostering Scheme,Individual,573.00, 24-Dec-2020
1362,Revenue,CAHD,CSC - Therapeutic Foster Care Programm,Special Fostering Scheme,Individual,573.00, 30-Dec-2020
1363,Revenue,CAHD,North - Community based support,Permanent Residential,East Court,2763.56, 15-Dec-2020
1364,Revenue,CAHD,CSC - Residential Placements,Permanent Residential,East Sussex County Council,30635.00, 24-Dec-2020
1365,Revenue,CAHD,CSC - Residential Placements,Permanent Residential,East Sussex County Council,29650.00, 18-Dec-2020
1366,Revenue,CAHD,Central - Commissioned Services,Permanent Residential,Edendale Lodge,3000.00, 15-Dec-2020
1367,Revenue,CAHD,Training - Adult Services,Training Expenses,Edge Training & Consultancy Limited,875.00, 18-Dec-2020
1368,Revenue,CAHD,South - Commissioned Services,Permanent Residential,Edgemont House Ltd,3200.00, 15-Dec-2020
1369,Revenue,CAHD,South - bed purchasing and direct  payments,Permanent Residential,Edgemont House Ltd,3264.00, 15-Dec-2020
1370,Revenue,CAHD,South Glos Users in South Glos Homes,Permanent Nursing,Edgemont View Ltd,3757.22, 15-Dec-2020
1371,Revenue,CAHD,South Glos Users in South Glos Homes,Permanent Nursing,Edgemont View Ltd,735.68, 15-Dec-2020
1372,Revenue,CAHD,South - Commissioned Services,Permanent Nursing,Edgemont View Ltd,3500.00, 15-Dec-2020
1373,Revenue,CAHD,South Glos Users in South Glos Homes,Permanent Nursing,Edgemont View Ltd,735.68, 15-Dec-2020
1374,Revenue,CAHD,South Glos Users in South Glos Homes,Permanent Nursing,Edgemont View Ltd,4046.24, 15-Dec-2020
1375,Revenue,CAHD,South Glos Users in South Glos Homes,Permanent Nursing,Edgemont View Ltd,735.68, 15-Dec-2020
1376,Revenue,CAHD,South Glos Users in South Glos Homes,Permanent Nursing,Edgemont View Ltd,735.68, 15-Dec-2020
1377,Revenue,CAHD,South Glos Users in South Glos Homes,Permanent Nursing,Edgemont View Ltd,735.68, 15-Dec-2020
1378,Revenue,CAHD,South Glos Users in South Glos Homes,Permanent Nursing,Edgemont View Ltd,735.68, 15-Dec-2020
1379,Revenue,CAHD,South - Commissioned Services,Permanent Nursing,Edgemont View Ltd,3600.00, 15-Dec-2020
1380,Revenue,CAHD,South Glos Users in South Glos Homes,Permanent Nursing,Edgemont View Ltd,735.68, 15-Dec-2020
1381,Revenue,CAHD,South - Commissioned Services,Permanent Nursing,Edgemont View Ltd,17500.00, 15-Dec-2020
1382,Revenue,CAHD,South - Commissioned Services,Permanent Nursing,Edgemont View Ltd,3500.00, 15-Dec-2020
1383,Revenue,CAHD,South Glos Users in South Glos Homes,Permanent Nursing,Edgemont View Ltd,2522.33, 15-Dec-2020
1384,Revenue,CAHD,South Glos Users in South Glos Homes,Permanent Nursing,Edgemont View Ltd,735.68, 15-Dec-2020
1385,Revenue,CAHD,South Glos Users in South Glos Homes,Permanent Nursing,Edgemont View Ltd,4151.34, 15-Dec-2020
1386,Revenue,CAHD,South Glos Users in South Glos Homes,Permanent Nursing,Edgemont View Ltd,735.68, 15-Dec-2020
1387,Revenue,CAHD,South Glos Users in South Glos Homes,Permanent Nursing,Edgemont View Ltd,735.68, 15-Dec-2020
1388,Revenue,CAHD,South Glos Users in South Glos Homes,Permanent Nursing,Edgemont View Ltd,1996.85, 15-Dec-2020
1389,Revenue,CAHD,South Glos Users in South Glos Homes,Permanent Nursing,Edgemont View Ltd,735.68, 15-Dec-2020
1390,Revenue,CAHD,South Glos Users in South Glos Homes,Permanent Nursing,Edgemont View Ltd,735.68, 15-Dec-2020
1391,Revenue,CAHD,South - Commissioned Services,Permanent Nursing,Edgemont View Ltd,3655.68, 15-Dec-2020
1392,Revenue,CAHD,South Glos Users in South Glos Homes,Permanent Nursing,Edgemont View Ltd,735.68, 15-Dec-2020
1393,Revenue,CAHD,South - Commissioned Services,Respite Planned - Nursing,Edgemont View Ltd,6528.00, 15-Dec-2020
1394,Revenue,CAHD,South Glos Users in South Glos Homes,Permanent Nursing,Edgemont View Ltd,1471.36, 15-Dec-2020
1395,Revenue,CAHD,South - Commissioned Services,Respite Planned - Nursing,Edgemont View Ltd,699.43, 15-Dec-2020
1396,Revenue,CAHD,Early Years Inclusion Fund,Other Public Bodies,Elaine Godfrey,1400.00, 21-Dec-2020
1397,Revenue,CAHD,Planning and Partnerships Procurement,Other Supplies & Services,Eldercare,450.00, 01-Dec-2020
1398,Revenue,CAHD,Planning and Partnerships Procurement,Other Supplies & Services,Eldercare,2717.75, 01-Dec-2020
1399,Revenue,CAHD,Planning and Partnerships Procurement,Other Supplies & Services,Eldercare,1544.00, 30-Dec-2020
1400,Revenue,CAHD,Planning and Partnerships Procurement,Other Supplies & Services,Eldercare,450.00, 30-Dec-2020
1401,Revenue,CAHD,Planning and Partnerships Procurement,Other Supplies & Services,Eldercare,2702.00, 30-Dec-2020
1402,Revenue,CAHD,Planning and Partnerships Procurement,Other Supplies & Services,Eldercare,2511.84, 30-Dec-2020
1403,Revenue,CAHD,Supporting People Programme,Grants to Voluntary Bodies,Elim Housing Association Limited,5362.00, 01-Dec-2020
1404,Revenue,CAHD,Supporting People Programme,Grants to Voluntary Bodies,Elim Housing Association Limited,5362.00, 30-Dec-2020
1405,Revenue,CAHD,Community Support - North,Preventative Assistance,Elite Hygiene Services Limited,998.00, 17-Dec-2020
1406,Revenue,CAHD,Social Lettings Agency,Rent,Individual,1169.28, 04-Dec-2020
1407,Revenue,CAHD,Social Lettings Agency,Fees - General,Individual,15.12, 04-Dec-2020
1408,Revenue,CAHD,CSC - Legal Fees,Legal Fees,Emma Roberts,425.00, 17-Dec-2020
1409,Revenue,CAHD,Special ISB,Other Public Bodies,Enable Trust,1643.84, 18-Dec-2020
1410,Revenue,CAHD,Special ISB,Other Public Bodies,Enable Trust,1698.64, 18-Dec-2020
1411,Revenue,CAHD,Special ISB,Other Public Bodies,Enable Trust,1643.84, 18-Dec-2020
1412,Revenue,CAHD,Special ISB,Other Public Bodies,Enable Trust,1698.64, 18-Dec-2020
1413,Revenue,CAHD,Special ISB,Other Public Bodies,Enable Trust,1698.64, 18-Dec-2020
1414,Revenue,CAHD,Special ISB,Other Public Bodies,Enable Trust,5753.44, 18-Dec-2020
1415,Revenue,CAHD,Special ISB,Other Public Bodies,Enable Trust,6794.56, 18-Dec-2020
1416,Revenue,CAHD,Special ISB,Other Public Bodies,Enable Trust,7397.28, 18-Dec-2020
1417,Revenue,CAHD,Special ISB,Other Public Bodies,Enable Trust,7643.88, 22-Dec-2020
1418,Revenue,CAHD,Special ISB,Other Public Bodies,Enable Trust,1175.88, 22-Dec-2020
1419,Revenue,CAHD,Special ISB,Other Public Bodies,Enable Trust,1540.84, 22-Dec-2020
1420,Revenue,CAHD,Special ISB,Other Public Bodies,Enable Trust,1175.88, 22-Dec-2020
1421,Revenue,CAHD,Special ISB,Other Public Bodies,Enable Trust,1175.88, 22-Dec-2020
1422,Revenue,CAHD,Special ISB,Other Public Bodies,Enable Trust,892.04, 22-Dec-2020
1423,Revenue,CAHD,Special ISB,Other Public Bodies,Enable Trust,1540.84, 22-Dec-2020
1424,Revenue,CAHD,Special ISB,Other Public Bodies,Enable Trust,1540.84, 22-Dec-2020
1425,Revenue,CAHD,Special ISB,Other Public Bodies,Enable Trust,1175.88, 22-Dec-2020
1426,Revenue,CAHD,Special ISB,Other Public Bodies,Enable Trust,1175.88, 22-Dec-2020
1427,Revenue,CAHD,Special ISB,Other Public Bodies,Enable Trust,1175.88, 22-Dec-2020
1428,Revenue,CAHD,Special ISB,Other Public Bodies,Enable Trust,1540.84, 22-Dec-2020
1429,Revenue,CAHD,Special ISB,Other Public Bodies,Enable Trust,648.69, 22-Dec-2020
1430,Revenue,CAHD,Special ISB,Other Public Bodies,Enable Trust,892.04, 22-Dec-2020
1431,Revenue,CAHD,Special ISB,Other Public Bodies,Enable Trust,892.04, 22-Dec-2020
1432,Revenue,CAHD,Special ISB,Other Public Bodies,Enable Trust,1175.88, 22-Dec-2020
1433,Revenue,CAHD,Special ISB,Other Public Bodies,Enable Trust,1175.88, 22-Dec-2020
1434,Revenue,CAHD,Special ISB,Other Public Bodies,Enable Trust,1175.88, 22-Dec-2020
1435,Revenue,CAHD,Special ISB,Other Public Bodies,Enable Trust,1540.84, 22-Dec-2020
1436,Revenue,CAHD,Special ISB,Other Public Bodies,Enable Trust,648.69, 22-Dec-2020
1437,Revenue,CAHD,Special ISB,Other Public Bodies,Enable Trust,1702.97, 22-Dec-2020
1438,Revenue,CAHD,Special ISB,Other Public Bodies,Enable Trust,1540.84, 22-Dec-2020
1439,Revenue,CAHD,Special ISB,Other Public Bodies,Enable Trust,1175.88, 22-Dec-2020
1440,Revenue,CAHD,Special ISB,Other Public Bodies,Enable Trust,1175.88, 22-Dec-2020
1441,Revenue,CAHD,Special ISB,Other Public Bodies,Enable Trust,892.04, 22-Dec-2020
1442,Revenue,CAHD,Special ISB,Other Public Bodies,Enable Trust,1175.88, 22-Dec-2020
1443,Revenue,CAHD,Special ISB,Other Public Bodies,Enable Trust,892.04, 22-Dec-2020
1444,Revenue,CAHD,Special ISB,Other Public Bodies,Enable Trust,2189.53, 22-Dec-2020
1445,Revenue,CAHD,Special ISB,Other Public Bodies,Enable Trust,1175.88, 22-Dec-2020
1446,Revenue,CAHD,Special ISB,Other Public Bodies,Enable Trust,1175.88, 22-Dec-2020
1447,Revenue,CAHD,Special ISB,Other Public Bodies,Enable Trust,1175.88, 22-Dec-2020
1448,Revenue,CAHD,Special ISB,Other Public Bodies,Enable Trust,1175.88, 22-Dec-2020
1449,Revenue,CAHD,Special ISB,Other Public Bodies,Enable Trust,1175.88, 22-Dec-2020
1450,Revenue,CAHD,Special ISB,Other Public Bodies,Enable Trust,2189.53, 22-Dec-2020
1451,Revenue,CAHD,Special ISB,Other Public Bodies,Enable Trust,1175.88, 22-Dec-2020
1452,Revenue,CAHD,Special ISB,Other Public Bodies,Enable Trust,1540.84, 22-Dec-2020
1453,Revenue,CAHD,Special ISB,Other Public Bodies,Enable Trust,892.04, 22-Dec-2020
1454,Revenue,CAHD,Special ISB,Other Public Bodies,Enable Trust,1540.84, 22-Dec-2020
1455,Revenue,CAHD,Special ISB,Other Public Bodies,Enable Trust,1175.88, 22-Dec-2020
1456,Revenue,CAHD,Special ISB,Other Public Bodies,Enable Trust,1540.84, 22-Dec-2020
1457,Revenue,CAHD,Special ISB,Other Public Bodies,Enable Trust,1175.88, 22-Dec-2020
1458,Revenue,CAHD,Special ISB,Other Public Bodies,Enable Trust,1540.84, 22-Dec-2020
1459,Revenue,CAHD,Special ISB,Other Public Bodies,Enable Trust,1175.88, 22-Dec-2020
1460,Revenue,CAHD,Special ISB,Other Public Bodies,Enable Trust,1175.88, 22-Dec-2020
1461,Revenue,CAHD,Special ISB,Other Public Bodies,Enable Trust,1175.88, 22-Dec-2020
1462,Revenue,CAHD,Special ISB,Other Public Bodies,Enable Trust,1175.88, 22-Dec-2020
1463,Revenue,CAHD,Special ISB,Other Public Bodies,Enable Trust,2189.53, 22-Dec-2020
1464,Revenue,CAHD,Special ISB,Other Public Bodies,Enable Trust,1540.84, 22-Dec-2020
1465,Revenue,CAHD,Special ISB,Other Public Bodies,Enable Trust,892.04, 22-Dec-2020
1466,Revenue,CAHD,Special ISB,Other Public Bodies,Enable Trust,892.04, 22-Dec-2020
1467,Revenue,CAHD,Special ISB,Other Public Bodies,Enable Trust,1540.84, 22-Dec-2020
1468,Revenue,CAHD,Special ISB,Other Public Bodies,Enable Trust,1540.84, 22-Dec-2020
1469,Revenue,CAHD,Special ISB,Other Public Bodies,Enable Trust,1175.88, 22-Dec-2020
1470,Revenue,CAHD,Special ISB,Other Public Bodies,Enable Trust,1175.88, 22-Dec-2020
1471,Revenue,CAHD,Special ISB,Other Public Bodies,Enable Trust,1540.84, 22-Dec-2020
1472,Revenue,CAHD,Special ISB,Other Public Bodies,Enable Trust,1540.84, 22-Dec-2020
1473,Revenue,CAHD,Special ISB,Other Public Bodies,Enable Trust,1175.88, 22-Dec-2020
1474,Revenue,CAHD,Special ISB,Other Public Bodies,Enable Trust,1175.88, 22-Dec-2020
1475,Revenue,CAHD,Special ISB,Other Public Bodies,Enable Trust,1175.88, 22-Dec-2020
1476,Revenue,CAHD,Special ISB,Other Public Bodies,Enable Trust,1175.88, 22-Dec-2020
1477,Revenue,CAHD,Special ISB,Other Public Bodies,Enable Trust,1540.84, 22-Dec-2020
1478,Revenue,CAHD,Special ISB,Other Public Bodies,Enable Trust,2189.53, 22-Dec-2020
1479,Revenue,CAHD,Special ISB,Other Public Bodies,Enable Trust,2189.53, 22-Dec-2020
1480,Revenue,CAHD,Special ISB,Other Public Bodies,Enable Trust,1175.88, 22-Dec-2020
1481,Revenue,CAHD,Special ISB,Other Public Bodies,Enable Trust,648.69, 22-Dec-2020
1482,Revenue,CAHD,Special ISB,Other Public Bodies,Enable Trust,1175.88, 22-Dec-2020
1483,Revenue,CAHD,Special ISB,Other Public Bodies,Enable Trust,1175.88, 22-Dec-2020
1484,Revenue,CAHD,Special ISB,Other Public Bodies,Enable Trust,892.04, 22-Dec-2020
1485,Revenue,CAHD,Special ISB,Other Public Bodies,Enable Trust,1175.88, 22-Dec-2020
1486,Revenue,CAHD,Special ISB,Other Public Bodies,Enable Trust,892.04, 22-Dec-2020
1487,Revenue,CAHD,Special ISB,Other Public Bodies,Enable Trust,1540.84, 22-Dec-2020
1488,Revenue,CAHD,Special ISB,Other Public Bodies,Enable Trust,1175.88, 22-Dec-2020
1489,Revenue,CAHD,Special ISB,Other Public Bodies,Enable Trust,892.04, 22-Dec-2020
1490,Revenue,CAHD,Special ISB,Other Public Bodies,Enable Trust,1540.84, 22-Dec-2020
1491,Revenue,CAHD,Special ISB,Other Public Bodies,Enable Trust,1540.84, 22-Dec-2020
1492,Revenue,CAHD,Special ISB,Other Public Bodies,Enable Trust,1175.88, 22-Dec-2020
1493,Revenue,CAHD,Special ISB,Other Public Bodies,Enable Trust,2189.53, 22-Dec-2020
1494,Revenue,CAHD,Special ISB,Other Public Bodies,Enable Trust,2189.53, 22-Dec-2020
1495,Revenue,CAHD,Special ISB,Other Public Bodies,Enable Trust,2189.53, 22-Dec-2020
1496,Revenue,CAHD,School Grants - Special,Other Public Bodies,Enable Trust,38190.00, 23-Dec-2020
1497,Revenue,CAHD,School Grants - Special,Other Public Bodies,Enable Trust,8127.00, 23-Dec-2020
1498,Revenue,CAHD,School Grants - Special,Other Public Bodies,Enable Trust,13781.00, 23-Dec-2020
1499,Revenue,CAHD,Special ISB,Other Public Bodies,Enable Trust,821.92, 18-Dec-2020
1500,Revenue,CAHD,Special ISB,Other Public Bodies,Enable Trust,849.32, 18-Dec-2020
1501,Revenue,CAHD,Special ISB,Other Public Bodies,Enable Trust,821.92, 18-Dec-2020
1502,Revenue,CAHD,Special ISB,Other Public Bodies,Enable Trust,849.32, 18-Dec-2020
1503,Revenue,CAHD,Special ISB,Other Public Bodies,Enable Trust,849.32, 18-Dec-2020
1504,Revenue,CAHD,Special ISB,Other Public Bodies,Enable Trust,4109.60, 18-Dec-2020
1505,Revenue,CAHD,Special ISB,Other Public Bodies,Enable Trust,4246.60, 18-Dec-2020
1506,Revenue,CAHD,Special ISB,Other Public Bodies,Enable Trust,4109.60, 18-Dec-2020
1507,Revenue,CAHD,Special ISB,Other Public Bodies,Enable Trust,2547.96, 22-Dec-2020
1508,Revenue,CAHD,Special ISB,Other Public Bodies,Enable Trust,1175.88, 22-Dec-2020
1509,Revenue,CAHD,Special ISB,Other Public Bodies,Enable Trust,1702.97, 22-Dec-2020
1510,Revenue,CAHD,Special ISB,Other Public Bodies,Enable Trust,892.04, 22-Dec-2020
1511,Revenue,CAHD,Special ISB,Other Public Bodies,Enable Trust,1702.97, 22-Dec-2020
1512,Revenue,CAHD,Special ISB,Other Public Bodies,Enable Trust,1175.88, 22-Dec-2020
1513,Revenue,CAHD,Special ISB,Other Public Bodies,Enable Trust,2189.53, 22-Dec-2020
1514,Revenue,CAHD,Special ISB,Other Public Bodies,Enable Trust,2189.53, 22-Dec-2020
1515,Revenue,CAHD,Special ISB,Other Public Bodies,Enable Trust,1508.32, 22-Dec-2020
1516,Revenue,CAHD,Special ISB,Other Public Bodies,Enable Trust,892.04, 22-Dec-2020
1517,Revenue,CAHD,Special ISB,Other Public Bodies,Enable Trust,892.04, 22-Dec-2020
1518,Revenue,CAHD,Special ISB,Other Public Bodies,Enable Trust,2513.88, 22-Dec-2020
1519,Revenue,CAHD,Special ISB,Other Public Bodies,Enable Trust,892.04, 22-Dec-2020
1520,Revenue,CAHD,Special ISB,Other Public Bodies,Enable Trust,892.04, 22-Dec-2020
1521,Revenue,CAHD,Special ISB,Other Public Bodies,Enable Trust,1702.97, 22-Dec-2020
1522,Revenue,CAHD,Special ISB,Other Public Bodies,Enable Trust,1702.97, 22-Dec-2020
1523,Revenue,CAHD,Special ISB,Other Public Bodies,Enable Trust,1175.88, 22-Dec-2020
1524,Revenue,CAHD,Special ISB,Other Public Bodies,Enable Trust,1702.97, 22-Dec-2020
1525,Revenue,CAHD,Special ISB,Other Public Bodies,Enable Trust,1702.97, 22-Dec-2020
1526,Revenue,CAHD,Special ISB,Other Public Bodies,Enable Trust,1175.88, 22-Dec-2020
1527,Revenue,CAHD,Special ISB,Other Public Bodies,Enable Trust,1175.88, 22-Dec-2020
1528,Revenue,CAHD,Special ISB,Other Public Bodies,Enable Trust,892.04, 22-Dec-2020
1529,Revenue,CAHD,Special ISB,Other Public Bodies,Enable Trust,1702.97, 22-Dec-2020
1530,Revenue,CAHD,Special ISB,Other Public Bodies,Enable Trust,1175.88, 22-Dec-2020
1531,Revenue,CAHD,Special ISB,Other Public Bodies,Enable Trust,1175.88, 22-Dec-2020
1532,Revenue,CAHD,Special ISB,Other Public Bodies,Enable Trust,1175.88, 22-Dec-2020
1533,Revenue,CAHD,Special ISB,Other Public Bodies,Enable Trust,1702.97, 22-Dec-2020
1534,Revenue,CAHD,Special ISB,Other Public Bodies,Enable Trust,1175.88, 22-Dec-2020
1535,Revenue,CAHD,Special ISB,Other Public Bodies,Enable Trust,1702.97, 22-Dec-2020
1536,Revenue,CAHD,Special ISB,Other Public Bodies,Enable Trust,1175.88, 22-Dec-2020
1537,Revenue,CAHD,Special ISB,Other Public Bodies,Enable Trust,1175.88, 22-Dec-2020
1538,Revenue,CAHD,Special ISB,Other Public Bodies,Enable Trust,1175.88, 22-Dec-2020
1539,Revenue,CAHD,Special ISB,Other Public Bodies,Enable Trust,1013.75, 22-Dec-2020
1540,Revenue,CAHD,Special ISB,Other Public Bodies,Enable Trust,1175.88, 22-Dec-2020
1541,Revenue,CAHD,Special ISB,Other Public Bodies,Enable Trust,892.04, 22-Dec-2020
1542,Revenue,CAHD,Special ISB,Other Public Bodies,Enable Trust,1175.88, 22-Dec-2020
1543,Revenue,CAHD,Special ISB,Other Public Bodies,Enable Trust,1175.88, 22-Dec-2020
1544,Revenue,CAHD,Special ISB,Other Public Bodies,Enable Trust,2189.53, 22-Dec-2020
1545,Revenue,CAHD,Special ISB,Other Public Bodies,Enable Trust,1702.97, 22-Dec-2020
1546,Revenue,CAHD,Special ISB,Other Public Bodies,Enable Trust,1702.97, 22-Dec-2020
1547,Revenue,CAHD,Special ISB,Other Public Bodies,Enable Trust,892.04, 22-Dec-2020
1548,Revenue,CAHD,Special ISB,Other Public Bodies,Enable Trust,648.69, 22-Dec-2020
1549,Revenue,CAHD,Special ISB,Other Public Bodies,Enable Trust,1175.88, 22-Dec-2020
1550,Revenue,CAHD,Special ISB,Other Public Bodies,Enable Trust,892.04, 22-Dec-2020
1551,Revenue,CAHD,Special ISB,Other Public Bodies,Enable Trust,1175.88, 22-Dec-2020
1552,Revenue,CAHD,Special ISB,Other Public Bodies,Enable Trust,1702.97, 22-Dec-2020
1553,Revenue,CAHD,Special ISB,Other Public Bodies,Enable Trust,1540.84, 22-Dec-2020
1554,Revenue,CAHD,Special ISB,Other Public Bodies,Enable Trust,892.04, 22-Dec-2020
1555,Revenue,CAHD,Special ISB,Other Public Bodies,Enable Trust,1702.97, 22-Dec-2020
1556,Revenue,CAHD,Special ISB,Other Public Bodies,Enable Trust,1175.88, 22-Dec-2020
1557,Revenue,CAHD,Special ISB,Other Public Bodies,Enable Trust,1175.88, 22-Dec-2020
1558,Revenue,CAHD,Special ISB,Other Public Bodies,Enable Trust,1175.88, 22-Dec-2020
1559,Revenue,CAHD,Special ISB,Other Public Bodies,Enable Trust,892.04, 22-Dec-2020
1560,Revenue,CAHD,Special ISB,Other Public Bodies,Enable Trust,892.04, 22-Dec-2020
1561,Revenue,CAHD,Special ISB,Other Public Bodies,Enable Trust,892.04, 22-Dec-2020
1562,Revenue,CAHD,Special ISB,Other Public Bodies,Enable Trust,1175.88, 22-Dec-2020
1563,Revenue,CAHD,Special ISB,Other Public Bodies,Enable Trust,892.04, 22-Dec-2020
1564,Revenue,CAHD,Special ISB,Other Public Bodies,Enable Trust,892.04, 22-Dec-2020
1565,Revenue,CAHD,Special ISB,Other Public Bodies,Enable Trust,892.04, 22-Dec-2020
1566,Revenue,CAHD,Special ISB,Other Public Bodies,Enable Trust,1175.88, 22-Dec-2020
1567,Revenue,CAHD,Special ISB,Other Public Bodies,Enable Trust,1175.88, 22-Dec-2020
1568,Revenue,CAHD,Special ISB,Other Public Bodies,Enable Trust,892.04, 22-Dec-2020
1569,Revenue,CAHD,Special ISB,Other Public Bodies,Enable Trust,892.04, 22-Dec-2020
1570,Revenue,CAHD,Special ISB,Other Public Bodies,Enable Trust,1175.88, 22-Dec-2020
1571,Revenue,CAHD,Special ISB,Other Public Bodies,Enable Trust,1175.88, 22-Dec-2020
1572,Revenue,CAHD,Special ISB,Other Public Bodies,Enable Trust,1175.88, 22-Dec-2020
1573,Revenue,CAHD,Special ISB,Other Public Bodies,Enable Trust,1702.97, 22-Dec-2020
1574,Revenue,CAHD,Special ISB,Other Public Bodies,Enable Trust,1175.88, 22-Dec-2020
1575,Revenue,CAHD,Special ISB,Other Public Bodies,Enable Trust,892.04, 22-Dec-2020
1576,Revenue,CAHD,Special ISB,Other Public Bodies,Enable Trust,892.04, 22-Dec-2020
1577,Revenue,CAHD,Special ISB,Other Public Bodies,Enable Trust,1702.97, 22-Dec-2020
1578,Revenue,CAHD,Special ISB,Other Public Bodies,Enable Trust,2189.53, 22-Dec-2020
1579,Revenue,CAHD,Special ISB,Other Public Bodies,Enable Trust,1175.88, 22-Dec-2020
1580,Revenue,CAHD,Special ISB,Other Public Bodies,Enable Trust,892.04, 22-Dec-2020
1581,Revenue,CAHD,Special ISB,Other Public Bodies,Enable Trust,2189.53, 22-Dec-2020
1582,Revenue,CAHD,Special ISB,Other Public Bodies,Enable Trust,1540.84, 22-Dec-2020
1583,Revenue,CAHD,Special ISB,Other Public Bodies,Enable Trust,648.69, 22-Dec-2020
1584,Revenue,CAHD,Special ISB,Other Public Bodies,Enable Trust,1175.88, 22-Dec-2020
1585,Revenue,CAHD,Special ISB,Other Public Bodies,Enable Trust,2189.53, 22-Dec-2020
1586,Revenue,CAHD,Special ISB,Other Public Bodies,Enable Trust,1175.88, 22-Dec-2020
1587,Revenue,CAHD,Special ISB,Other Public Bodies,Enable Trust,2189.53, 22-Dec-2020
1588,Revenue,CAHD,Special ISB,Other Public Bodies,Enable Trust,1021.76, 22-Dec-2020
1589,Revenue,CAHD,Special ISB,Other Public Bodies,Enable Trust,1702.97, 22-Dec-2020
1590,Revenue,CAHD,Special ISB,Other Public Bodies,Enable Trust,1702.97, 22-Dec-2020
1591,Revenue,CAHD,Special ISB,Other Public Bodies,Enable Trust,1702.97, 22-Dec-2020
1592,Revenue,CAHD,Special ISB,Other Public Bodies,Enable Trust,2513.88, 22-Dec-2020
1593,Revenue,CAHD,Special ISB,Other Public Bodies,Enable Trust,2189.53, 22-Dec-2020
1594,Revenue,CAHD,Special ISB,Other Public Bodies,Enable Trust,1702.97, 22-Dec-2020
1595,Revenue,CAHD,Special ISB,Other Public Bodies,Enable Trust,1702.97, 22-Dec-2020
1596,Revenue,CAHD,Special ISB,Other Public Bodies,Enable Trust,1175.88, 22-Dec-2020
1597,Revenue,CAHD,Special ISB,Other Public Bodies,Enable Trust,1702.97, 22-Dec-2020
1598,Revenue,CAHD,Special ISB,Other Public Bodies,Enable Trust,2513.88, 22-Dec-2020
1599,Revenue,CAHD,Special ISB,Other Public Bodies,Enable Trust,2513.88, 22-Dec-2020
1600,Revenue,CAHD,Special ISB,Other Public Bodies,Enable Trust,2585.09, 22-Dec-2020
1601,Revenue,CAHD,School Grants - Special,Other Public Bodies,Enable Trust,33947.00, 23-Dec-2020
1602,Revenue,CAHD,School Grants - Special,Other Public Bodies,Enable Trust,7224.00, 23-Dec-2020
1603,Revenue,CAHD,School Grants - Special,Other Public Bodies,Enable Trust,12250.00, 23-Dec-2020
1604,Revenue,CAHD,North - Community based support,Other Small Contracts,Epiphany In Care,1108.80, 21-Dec-2020
1605,Revenue,CAHD,North - Community based support,Other Small Contracts,Epiphany In Care,4739.28, 01-Dec-2020
1606,Revenue,CAHD,North - Community based support,Other Small Contracts,Epiphany In Care,1089.00, 02-Dec-2020
1607,Revenue,CAHD,North - Community based support,Other Small Contracts,Epiphany In Care,4739.28, 01-Dec-2020
1608,Revenue,CAHD,North - Community based support,Other Small Contracts,Epiphany In Care,4118.40, 02-Dec-2020
1609,Revenue,CAHD,18-25 Year Olds,Other Small Contracts,Epiphany In Care,925.65, 30-Dec-2020
1610,Revenue,CAHD,18-25 Year Olds,Other Small Contracts,Epiphany In Care,811.80, 30-Dec-2020
1611,Revenue,CAHD,South - Commissioned Services,Other Small Contracts,Epiphany In Care,1742.40, 02-Dec-2020
1612,Revenue,CAHD,North - Community based support,Other Small Contracts,Epiphany In Care,1108.80, 21-Dec-2020
1613,Revenue,CAHD,North - Community based support,Other Small Contracts,Epiphany In Care,4739.28, 01-Dec-2020
1614,Revenue,CAHD,Central - Commissioned Services,Other Small Contracts,Epiphany In Care,1188.00, 04-Dec-2020
1615,Revenue,CAHD,South - Commissioned Services,Other Small Contracts,Epiphany In Care,1742.40, 11-Dec-2020
1616,Revenue,CAHD,North - Community based support,Other Small Contracts,Epiphany In Care,10800.95, 15-Dec-2020
1617,Revenue,CAHD,North - Community based support,Other Small Contracts,Epiphany In Care,1069.20, 21-Dec-2020
1618,Revenue,CAHD,Central - Commissioned Services,Other Small Contracts,Epiphany In Care,1188.00, 24-Dec-2020
1619,Revenue,CAHD,Central - Commissioned Services,Other Small Contracts,Epiphany In Care,1108.80, 30-Dec-2020
1620,Revenue,CAHD,North - Community based support,Other Small Contracts,Epiphany In Care,10819.20, 24-Dec-2020
1621,Revenue,CAHD,North - Community based support,Other Small Contracts,Epiphany In Care,1108.80, 30-Dec-2020
1622,Revenue,CAHD,North - S117,Permanent Residential,Evolve House,3276.80, 15-Dec-2020
1623,Revenue,CAHD,Placements OLA Special Schools and RB,Other L.A.s - General,Excalibur Academies Trust T/A,2238.77, 21-Dec-2020
1624,Revenue,CAHD,Social Lettings Agency,Prop.Serv. General Repairs,Express Property Services Limited,39.00, 02-Dec-2020
1625,Revenue,CAHD,Social Lettings Agency,Prop.Serv. General Repairs,Express Property Services Limited,113.00, 02-Dec-2020
1626,Revenue,CAHD,Social Lettings Agency,Prop.Serv. General Repairs,Express Property Services Limited,55.00, 02-Dec-2020
1627,Revenue,CAHD,Social Lettings Agency,Prop.Serv. General Repairs,Express Property Services Limited,2470.00, 02-Dec-2020
1628,Revenue,CAHD,Social Lettings Agency,Prop.Serv. General Repairs,Express Property Services Limited,58.00, 02-Dec-2020
1629,Revenue,CAHD,Social Lettings Agency,Prop.Serv. General Repairs,Express Property Services Limited,122.00, 02-Dec-2020
1630,Revenue,CAHD,Learning Difficulties PSL,Prop.Serv. General Repairs,Express Property Services Limited,121.00, 02-Dec-2020
1631,Revenue,CAHD,Homeless - Private Sector Leasing,Prop.Serv. General Repairs,Express Property Services Limited,112.00, 02-Dec-2020
1632,Revenue,CAHD,Homeless - Private Sector Leasing,Prop.Serv. General Repairs,Express Property Services Limited,65.00, 02-Dec-2020
1633,Revenue,CAHD,Extra Care Housing,Private & Voluntary Home Care,Extra Care Charitable Trust,27505.67, 11-Dec-2020
1634,Revenue,CAHD,Covid - ASC - Infection Control,Grants to Voluntary Bodies,Extra Care Charitable Trust,6816.57, 29-Dec-2020
1635,Revenue,CAHD,North - Community based support,Permanent Residential,Eyre Court,5000.00, 15-Dec-2020
1636,Revenue,CAHD,North - Community based support,Day Care / Social Activities,Eyre Court,1320.17, 15-Dec-2020
1637,Revenue,CAHD,South - Commissioned Services,Permanent Nursing,Fairview Court,3886.76, 15-Dec-2020
1638,Revenue,CAHD,South Glos Users in South Glos Homes,Permanent Nursing,Fairview Court,735.68, 15-Dec-2020
1639,Revenue,CAHD,South Glos Users in South Glos Homes,Permanent Nursing,Fairview Court,735.68, 15-Dec-2020
1640,Revenue,CAHD,South Glos Users in South Glos Homes,Permanent Nursing,Fairview Court,1182.34, 15-Dec-2020
1641,Revenue,CAHD,South Glos Users in South Glos Homes,Permanent Nursing,Fairview Court,735.68, 15-Dec-2020
1642,Revenue,CAHD,South Glos Users in South Glos Homes,Permanent Nursing,Fairview Court,735.68, 15-Dec-2020
1643,Revenue,CAHD,South - Commissioned Services,Permanent Nursing,Fairview Court,4137.76, 15-Dec-2020
1644,Revenue,CAHD,South Glos Users in South Glos Homes,Permanent Nursing,Fairview Court,3888.59, 15-Dec-2020
1645,Revenue,CAHD,South Glos Users in South Glos Homes,Permanent Nursing,Fairview Court,735.68, 15-Dec-2020
1646,Revenue,CAHD,South Glos Users in South Glos Homes,Permanent Nursing,Fairview Court,735.68, 15-Dec-2020
1647,Revenue,CAHD,South Glos Users in South Glos Homes,Permanent Nursing,Fairview Court,735.68, 15-Dec-2020
1648,Revenue,CAHD,South - Commissioned Services,Permanent Nursing,Fairview Court,7714.29, 15-Dec-2020
1649,Revenue,CAHD,South - Commissioned Services,Permanent Nursing,Fairview Court,4800.00, 15-Dec-2020
1650,Revenue,CAHD,South Glos Users in South Glos Homes,Permanent Nursing,Fairview Court,3862.32, 15-Dec-2020
1651,Revenue,CAHD,South Glos Users in South Glos Homes,Permanent Nursing,Fairview Court,735.68, 15-Dec-2020
1652,Revenue,CAHD,South - Commissioned Services,Permanent Nursing,Fairview Court,3618.72, 15-Dec-2020
1653,Revenue,CAHD,South Glos Users in South Glos Homes,Permanent Nursing,Fairview Court,735.68, 15-Dec-2020
1654,Revenue,CAHD,South Glos Users in South Glos Homes,Permanent Nursing,Fairview Court,735.68, 15-Dec-2020
1655,Revenue,CAHD,South - Commissioned Services,Permanent Nursing,Fairview Court,4800.00, 15-Dec-2020
1656,Revenue,CAHD,South Glos Users in South Glos Homes,Permanent Nursing,Fairview Court,735.68, 15-Dec-2020
1657,Revenue,CAHD,South - S117,Permanent Nursing,Fairview Court,4257.32, 15-Dec-2020
1658,Revenue,CAHD,South Glos Users in South Glos Homes,Permanent Nursing,Fairview Court,735.68, 15-Dec-2020
1659,Revenue,CAHD,South Glos Users in South Glos Homes,Permanent Nursing,Fairview Court,735.68, 15-Dec-2020
1660,Revenue,CAHD,South - bed purchasing and direct  payments,Permanent Nursing,Fairview Court,4078.24, 15-Dec-2020
1661,Revenue,CAHD,South Glos Users in South Glos Homes,Permanent Nursing,Fairview Court,735.68, 15-Dec-2020
1662,Revenue,CAHD,South Glos Users in South Glos Homes,Permanent Nursing,Fairview Court,735.68, 15-Dec-2020
1663,Revenue,CAHD,South Glos Users in South Glos Homes,Permanent Nursing,Fairview Court,735.68, 15-Dec-2020
1664,Revenue,CAHD,South Glos Users in South Glos Homes,Permanent Nursing,Fairview Court,735.68, 15-Dec-2020
1665,Revenue,CAHD,South - Commissioned Services,Permanent Nursing,Fairview Court,4800.00, 15-Dec-2020
1666,Revenue,CAHD,South Glos Users in South Glos Homes,Permanent Nursing,Fairview Court,735.68, 15-Dec-2020
1667,Revenue,CAHD,South Glos Users in South Glos Homes,Permanent Nursing,Fairview Court,735.68, 15-Dec-2020
1668,Revenue,CAHD,South Glos Users in South Glos Homes,Permanent Nursing,Fairview Court,735.68, 15-Dec-2020
1669,Revenue,CAHD,South Glos Users in South Glos Homes,Permanent Nursing,Fairview Court,735.68, 15-Dec-2020
1670,Revenue,CAHD,South - Commissioned Services,Permanent Residential,Fairview Court,4048.64, 15-Dec-2020
1671,Revenue,CAHD,South Glos Users in South Glos Homes,Permanent Nursing,Fairview Court,735.68, 15-Dec-2020
1672,Revenue,CAHD,South Glos Users in South Glos Homes,Permanent Nursing,Fairview Court,735.68, 15-Dec-2020
1673,Revenue,CAHD,South - Commissioned Services,Permanent Nursing,Fairview Court,4800.00, 15-Dec-2020
1674,Revenue,CAHD,South Glos Users in South Glos Homes,Permanent Nursing,Fairview Court,735.68, 15-Dec-2020
1675,Revenue,CAHD,South - Commissioned Services,Fees & Charges Income - General,Fairview Court,555.68, 15-Dec-2020
1676,Revenue,CAHD,South Glos Users in South Glos Homes,Permanent Nursing,Fairview Court,735.68, 15-Dec-2020
1677,Revenue,CAHD,North - Community based support,Permanent Residential,Fairview Court,3321.44, 15-Dec-2020
1678,Revenue,CAHD,South - bed purchasing and direct  payments,Permanent Nursing,Fairview Court,4137.76, 15-Dec-2020
1679,Revenue,CAHD,South Glos Users in South Glos Homes,Permanent Nursing,Fairview Court,735.68, 15-Dec-2020
1680,Revenue,CAHD,South Glos Users in South Glos Homes,Permanent Nursing,Fairview Court,735.68, 15-Dec-2020
1681,Revenue,CAHD,South Glos Users in South Glos Homes,Permanent Nursing,Fairview Court,735.68, 15-Dec-2020
1682,Revenue,CAHD,South Glos Users in South Glos Homes,Permanent Nursing,Fairview Court,1996.85, 15-Dec-2020
1683,Revenue,CAHD,South Glos Users in South Glos Homes,Permanent Nursing,Fairview Court,735.68, 15-Dec-2020
1684,Revenue,CAHD,South - Commissioned Services,Permanent Nursing,Fairview Court,3553.36, 15-Dec-2020
1685,Revenue,CAHD,South Glos Users in South Glos Homes,Permanent Nursing,Fairview Court,735.68, 15-Dec-2020
1686,Revenue,CAHD,North - Community based support,Permanent Nursing,Fairview Court,3886.76, 15-Dec-2020
1687,Revenue,CAHD,South Glos Users in South Glos Homes,Permanent Nursing,Fairview Court,735.68, 15-Dec-2020
1688,Revenue,CAHD,South - Commissioned Services,Permanent Nursing,Fairview Court,3192.96, 15-Dec-2020
1689,Revenue,CAHD,South Glos Users in South Glos Homes,Permanent Nursing,Fairview Court,735.68, 15-Dec-2020
1690,Revenue,CAHD,South - Commissioned Services,Permanent Nursing,Fairview Court,3618.72, 15-Dec-2020
1691,Revenue,CAHD,South Glos Users in South Glos Homes,Permanent Nursing,Fairview Court,735.68, 15-Dec-2020
1692,Revenue,CAHD,South - Commissioned Services,Permanent Nursing,Fairview Court,4028.00, 15-Dec-2020
1693,Revenue,CAHD,South Glos Users in South Glos Homes,Permanent Nursing,Fairview Court,735.68, 15-Dec-2020
1694,Revenue,CAHD,South - Commissioned Services,Permanent Nursing,Fairview Court,4137.76, 15-Dec-2020
1695,Revenue,CAHD,South Glos Users in South Glos Homes,Permanent Nursing,Fairview Court,735.68, 15-Dec-2020
1696,Revenue,CAHD,South - Commissioned Services,Permanent Residential,Fairview House,2349.60, 15-Dec-2020
1697,Revenue,CAHD,South - Commissioned Services,Permanent Residential,Fairview House,3400.00, 15-Dec-2020
1698,Revenue,CAHD,South - Commissioned Services,Permanent Residential,Fairview House,3400.00, 15-Dec-2020
1699,Revenue,CAHD,South Glos Users in South Glos Homes,Permanent Nursing,Fairview House,735.68, 15-Dec-2020
1700,Revenue,CAHD,South - Commissioned Services,Permanent Residential,Fairview House,3600.00, 15-Dec-2020
1701,Revenue,CAHD,South - Commissioned Services,Permanent Residential,Fairview House,3468.00, 15-Dec-2020
1702,Revenue,CAHD,South - Commissioned Services,Permanent Residential,Fairview House,3800.00, 15-Dec-2020
1703,Revenue,CAHD,South - Commissioned Services,Permanent Residential,Faith House,2457.71, 15-Dec-2020
1704,Revenue,CAHD,North - Community based support,Permanent Residential,Faith House,2861.88, 15-Dec-2020
1705,Revenue,CAHD,North - Community based support,Permanent Nursing,Faith House,2346.00, 15-Dec-2020
1706,Revenue,CAHD,North - Community based support,Permanent Nursing,Faith House,782.00, 15-Dec-2020
1707,Revenue,CAHD,Central - Commissioned Services,Permanent Residential,Faith House,3128.00, 15-Dec-2020
1708,Revenue,CAHD,North - Community based support,Permanent Residential,Faith House,3039.60, 15-Dec-2020
1709,Revenue,CAHD,South - Commissioned Services,Permanent Residential,Faith House,2958.00, 15-Dec-2020
1710,Revenue,CAHD,CSC - Parent & Child Assessments,Foster Parent Allowances,Families First (SW) Ltd,7257.00, 24-Dec-2020
1711,Revenue,CAHD,CSC - Parent & Child Assessments,Foster Parent Allowances,Families First (SW) Ltd,7498.90, 24-Dec-2020
1712,Revenue,CAHD,CSC - Parent & Child Assessments,Foster Parent Allowances,Families First (SW) Ltd,11015.23, 18-Dec-2020
1713,Revenue,CAHD,CSC - Parent & Child Assessments,Foster Parent Allowances,Families First (SW) Ltd,7512.23, 01-Dec-2020
1714,Revenue,CAHD,CSC - Parent & Child Assessments,Foster Parent Allowances,Families First (SW) Ltd,11015.23, 01-Dec-2020
1715,Revenue,CAHD,CSC - Parent & Child Assessments,Foster Parent Allowances,Families First (SW) Ltd,7269.90, 02-Dec-2020
1716,Revenue,CAHD,Post 16 High Needs Placements,Other Private Contractors,Farleigh FEC-Frome Priory,24176.30, 29-Dec-2020
1717,Revenue,CAHD,Post 16 High Needs Placements,Other Private Contractors,Farleigh FEC-Frome Priory,22350.10, 29-Dec-2020
1718,Revenue,CAHD,Post 16 High Needs Placements,Other Private Contractors,Farleigh FEC-Frome Priory,22815.17, 24-Dec-2020
1719,Revenue,CAHD,Post 16 High Needs Placements,Other Private Contractors,Farleigh FEC-Frome Priory,24176.30, 29-Dec-2020
1720,Revenue,CAHD,Post 16 High Needs Placements,Other Private Contractors,Farleigh FEC-Frome Priory,22552.28, 29-Dec-2020
1721,Revenue,CAHD,Post 16 High Needs Placements,Other Private Contractors,Farleigh FEC-Frome Priory,13255.06, 29-Dec-2020
1722,Revenue,CAHD,CSC - Fostering Carer Support,Care Mgt/Asesmnt Staff Pay,Felicia Bonsu,2000.00, 10-Dec-2020
1723,Revenue,CAHD,South - Commissioned Services,Permanent Nursing,Field House Care Home,7922.86, 15-Dec-2020
1724,Revenue,CAHD,North - Community based support,Permanent Nursing,Field House Care Home,3522.56, 15-Dec-2020
1725,Revenue,CAHD,North - Community based support,Permanent Nursing,Field House Care Home,3403.60, 15-Dec-2020
1726,Revenue,CAHD,North - Community based support,Permanent Nursing,Field House Care Home,3589.48, 15-Dec-2020
1727,Revenue,CAHD,Central - Commissioned Services,Permanent Nursing,Field House Care Home,3760.00, 15-Dec-2020
1728,Revenue,CAHD,Central - Commissioned Services,Permanent Nursing,Field House Care Home,3740.00, 15-Dec-2020
1729,Revenue,CAHD,North - Community based support,Permanent Nursing,Field House Care Home,2271.72, 15-Dec-2020
1730,Revenue,CAHD,Central - Commissioned Services,Permanent Nursing,Field House Care Home,3740.00, 15-Dec-2020
1731,Revenue,CAHD,North - Community based support,Permanent Nursing,Field House Care Home,2271.72, 15-Dec-2020
1732,Revenue,CAHD,North - Community based support,Permanent Nursing,Field House Care Home,3506.00, 15-Dec-2020
1733,Revenue,CAHD,Statemented Support Payments to OLAs,Other Public Bodies,Filton Avenue Primary School,1131.84, 21-Dec-2020
1734,Revenue,CAHD,Statemented Support Payments to OLAs,Other Public Bodies,Filton Avenue Primary School,1332.27, 21-Dec-2020
1735,Revenue,CAHD,North - Community based support,Respite Emergency - Residential,First Floor  Lingfield House,4596.48, 15-Dec-2020
1736,Revenue,CAHD,Covid 19- Spend on behalf of NHS,Respite Planned - Nursing,First Floor  Lingfield House,3800.00, 15-Dec-2020
1737,Revenue,CAHD,South - Commissioned Services,Permanent Nursing,First Floor  Lingfield House,2554.36, 15-Dec-2020
1738,Revenue,CAHD,South Glos Users in South Glos Homes,Permanent Nursing,First Floor  Lingfield House,735.68, 15-Dec-2020
1739,Revenue,CAHD,Covid 19- Spend on behalf of NHS,Respite Planned - Nursing,First Floor  Lingfield House,3800.00, 15-Dec-2020
1740,Revenue,CAHD,Covid 19- Spend on behalf of NHS,Respite Planned - Nursing,First Floor  Lingfield House,3800.00, 15-Dec-2020
1741,Revenue,CAHD,South - Commissioned Services,Permanent Residential,First Floor  Lingfield House,3160.00, 15-Dec-2020
1742,Revenue,CAHD,South - Commissioned Services,Permanent Residential,First Floor  Lingfield House,3360.00, 15-Dec-2020
1743,Revenue,CAHD,South - Commissioned Services,Permanent Nursing,First Floor  Lingfield House,14240.00, 15-Dec-2020
1744,Revenue,CAHD,South - Commissioned Services,Respite Planned - Nursing,First Floor  Lingfield House,7120.00, 15-Dec-2020
1745,Revenue,CAHD,South - Commissioned Services,Permanent Nursing,First Floor  Lingfield House,3560.00, 15-Dec-2020
1746,Revenue,CAHD,South - Commissioned Services,Fees & Charges Income - General,First Floor  Lingfield House,773.20, 15-Dec-2020
1747,Revenue,CAHD,Early Years Inclusion Fund,Other Public Bodies,First Steps Day Nursery,1000.00, 15-Dec-2020
1748,Revenue,CAHD,Early Years Inclusion Fund,Other Public Bodies,First Steps Day Nursery,1800.00, 04-Dec-2020
1749,Revenue,CAHD,CSC - Agency Fostering,Foster Parent Allowances,Five Rivers Child Care Limited,3510.00, 14-Dec-2020
1750,Revenue,CAHD,CSC - Agency Fostering,Foster Parent Allowances,Five Rivers Child Care Limited,3510.00, 24-Dec-2020
1751,Revenue,CAHD,CSC - Agency Fostering,Foster Parent Allowances,Five Rivers Child Care Limited,2152.03, 14-Dec-2020
1752,Revenue,CAHD,CSC - Agency Fostering,Foster Parent Allowances,Five Rivers Child Care Limited,3510.00, 23-Dec-2020
1753,Revenue,CAHD,CSC - Agency Fostering,Foster Parent Allowances,Five Rivers Child Care Limited,3552.86, 24-Dec-2020
1754,Revenue,CAHD,CSC - Agency Fostering,Foster Parent Allowances,Five Rivers Child Care Limited,3336.60, 24-Dec-2020
1755,Revenue,CAHD,CSC - Agency Fostering,Foster Parent Allowances,Five Rivers Child Care Limited,3336.60, 24-Dec-2020
1756,Revenue,CAHD,CSC - Agency Fostering,Foster Parent Allowances,Five Rivers Child Care Limited,638.33, 30-Dec-2020
1757,Revenue,CAHD,CSC - Agency Fostering,Foster Parent Allowances,Five Rivers Child Care Limited,638.33, 30-Dec-2020
1758,Revenue,CAHD,CSC - Agency Fostering,Foster Parent Allowances,Foster Care Associates Limited,3733.80, 01-Dec-2020
1759,Revenue,CAHD,CSC - Agency Fostering,Foster Parent Allowances,Foster Care Associates Limited,3858.26, 18-Dec-2020
1760,Revenue,CAHD,CSC - Parent & Child Assessments,Foster Parent Allowances,Foster Care Associates Limited,6660.00, 11-Dec-2020
1761,Revenue,CAHD,CSC - Agency Fostering,Foster Parent Allowances,Foster Care Associates Limited,3648.30, 11-Dec-2020
1762,Revenue,CAHD,CSC - Agency Fostering,Foster Parent Allowances,Foster Care Associates Limited,6466.80, 11-Dec-2020
1763,Revenue,CAHD,CSC - Agency Fostering,Foster Parent Allowances,Foster Care Associates Limited,3810.00, 18-Dec-2020
1764,Revenue,CAHD,CSC - Agency Fostering,Foster Parent Allowances,Fostering Matters Ltd,3407.10, 11-Dec-2020
1765,Revenue,CAHD,CSC - Agency Fostering,Foster Parent Allowances,Fostering Matters Ltd,3407.10, 11-Dec-2020
1766,Revenue,CAHD,CSC - Parent & Child Assessments,Foster Parent Allowances,Fostering Solutions Limited,3786.80, 08-Dec-2020
1767,Revenue,CAHD,CSC - Parent & Child Assessments,Foster Parent Allowances,Fostering Solutions Limited,1874.47, 08-Dec-2020
1768,Revenue,CAHD,CSC - Parent & Child Assessments,Foster Parent Allowances,Fostering Solutions Limited,4604.27, 08-Dec-2020
1769,Revenue,CAHD,CSC - Parent & Child Assessments,Foster Parent Allowances,Fostering Solutions Limited,2638.97, 08-Dec-2020
1770,Revenue,CAHD,CSC - Parent & Child Assessments,Foster Parent Allowances,Fostering Solutions Limited,5810.84, 30-Dec-2020
1771,Revenue,CAHD,Covid 19 -Adult Social Care,Other Small Contracts,Fourways Care Limited,39.84, 01-Dec-2020
1772,Revenue,CAHD,Central - Commissioned Services,Other Small Contracts,Fourways Care Limited,174.00, 01-Dec-2020
1773,Revenue,CAHD,South - Commissioned Services,Other Small Contracts,Fourways Care Limited,843.00, 01-Dec-2020
1774,Revenue,CAHD,North - Community based support,Other Small Contracts,Fourways Care Limited,9922.92, 01-Dec-2020
1775,Revenue,CAHD,Covid 19 -Adult Social Care,Other Small Contracts,Fourways Care Limited,39.84, 03-Dec-2020
1776,Revenue,CAHD,South - Commissioned Services,Other Small Contracts,Fourways Care Limited,803.16, 03-Dec-2020
1777,Revenue,CAHD,North - Community based support,Other Small Contracts,Fourways Care Limited,9749.64, 03-Dec-2020
1778,Revenue,CAHD,Covid 19 -Adult Social Care,Other Small Contracts,Fourways Care Limited,39.84, 15-Dec-2020
1779,Revenue,CAHD,South - Commissioned Services,Other Small Contracts,Fourways Care Limited,600.00, 15-Dec-2020
1780,Revenue,CAHD,North - Community based support,Other Small Contracts,Fourways Care Limited,9060.36, 15-Dec-2020
1781,Revenue,CAHD,Covid 19 -Adult Social Care,Other Small Contracts,Fourways Care Limited,39.84, 21-Dec-2020
1782,Revenue,CAHD,Central - Commissioned Services,Other Small Contracts,Fourways Care Limited,180.00, 21-Dec-2020
1783,Revenue,CAHD,South - Commissioned Services,Other Small Contracts,Fourways Care Limited,857.94, 21-Dec-2020
1784,Revenue,CAHD,North - Community based support,Other Small Contracts,Fourways Care Limited,9524.52, 21-Dec-2020
1785,Revenue,CAHD,Covid 19 -Adult Social Care,Other Small Contracts,Fourways Care Limited,39.84, 30-Dec-2020
1786,Revenue,CAHD,Central - Commissioned Services,Other Small Contracts,Fourways Care Limited,180.00, 30-Dec-2020
1787,Revenue,CAHD,South - Commissioned Services,Other Small Contracts,Fourways Care Limited,818.10, 30-Dec-2020
1788,Revenue,CAHD,North - Community based support,Other Small Contracts,Fourways Care Limited,9385.08, 30-Dec-2020
1789,Revenue,CAHD,"Education, Learning and Skills",Conference Expenses,Frank Wise School,500.00, 18-Dec-2020
1790,Revenue,CAHD,Supporting People Programme,Grants to Voluntary Bodies,Freeways Trust Limited,1067.00, 01-Dec-2020
1791,Revenue,CAHD,Supporting People Programme,Grants to Voluntary Bodies,Freeways Trust Limited,1067.00, 30-Dec-2020
1792,Revenue,CAHD,North - Community based support,Other Small Contracts,Freeways Trust Limited,549.92, 01-Dec-2020
1793,Revenue,CAHD,North - Community based support,Other Small Contracts,Freeways Trust Limited,864.16, 01-Dec-2020
1794,Revenue,CAHD,Central - Commissioned Services,Other Small Contracts,Freeways Trust Limited,707.04, 07-Dec-2020
1795,Revenue,CAHD,Central - Commissioned Services,Other Small Contracts,Freeways Trust Limited,707.04, 07-Dec-2020
1796,Revenue,CAHD,North - Community based support,Other Small Contracts,Freeways Trust Limited,864.16, 14-Dec-2020
1797,Revenue,CAHD,North - Community based support,Other Small Contracts,Freeways Trust Limited,549.92, 15-Dec-2020
